{"text_format":"1","workbook":"xlsx","n_sheets":15,"sheets":["団体データ","プログラムデータ","著作権データ","著作権データ (例)","印刷","団体精算書","提出書類確認","参加申込書","出演者名簿","登録外名簿","著作権申請","アナウンス原稿","請求書","ステージ配置図","運搬車輌用団体確認票"],"not_rendered":{"charts":0,"images":4,"macros":1,"external_links":0,"defined_names":12,"comments":0,"pivot_tables":0},"unopened":[],"bounds":{"document_bytes":16777216,"sheet_cells":100000,"rows_first":2000,"rows_last":500,"rows_between":2000,"halvings":0,"cell_chars":16384,"cell_head_chars":4096},"cells_cut":0,"cells_raw":0,"read":"whole","date_system":"1900"}

{"sheet":"団体データ","index":0,"n_rows":41,"n_cols":52,"rows_kept":41,"cut":false,"hidden":false,"merged":[[26,15,26,44],[30,23,30,25],[30,26,30,27],[30,28,30,30],[32,1,32,2],[32,3,32,9],[32,10,32,13],[30,14,30,16],[30,17,30,22],[29,1,31,2],[30,9,30,11],[30,12,30,13],[30,3,30,8],[13,1,15,2],[22,3,22,9],[21,1,22,2],[16,1,19,2],[13,3,13,9],[16,3,19,9],[15,3,15,9],[21,3,21,9],[14,3,14,9],[1,1,4,60],[6,1,8,60],[9,1,9,60],[21,28,21,60],[11,28,11,60],[13,28,13,60],[14,28,14,60],[15,28,15,60],[21,10,21,27],[13,10,13,27],[14,10,14,27],[15,10,15,27],[11,16,11,17],[11,18,11,20],[11,21,11,22],[11,1,11,2],[11,3,11,9],[11,10,11,12],[23,15,23,44],[24,15,24,44],[11,13,11,15],[16,15,16,44],[17,15,17,44],[18,15,18,44],[19,15,19,44],[16,10,16,14],[17,10,17,14],[18,10,18,14],[19,10,19,14],[11,23,11,25],[11,26,11,27],[37,1,40,2],[37,3,38,9],[39,3,40,9],[37,10,37,44],[39,10,39,44],[38,10,38,21],[40,10,40,21],[22,51,22,60],[28,1,28,2],[29,47,29,60],[23,1,26,2],[23,3,26,9],[23,10,23,14],[24,10,24,14],[25,10,25,14],[29,3,29,9],[28,10,28,14],[29,10,29,14],[26,10,26,14],[28,3,28,9],[22,10,22,27],[22,28,22,50],[25,15,25,44],[33,1,33,2],[33,3,33,9],[33,10,33,13],[33,14,33,60],[35,1,35,2],[34,10,34,15],[34,20,34,25],[34,26,34,29],[34,1,34,2],[34,3,34,9],[34,16,34,19],[35,3,35,9],[35,10,35,13],[35,14,35,60]]}
[]
[null,"セキュリティの警告が表示されますが，【コンテンツの有効化】を押してください。\nそうしなければマクロが有効となりませんので必ずお願いします。"]
[]
[]
[]
[]
[null,"アンサンブルコンテスト参加申込書入力シート【団体データ】"]
[]
[]
[null,"（■色のセルは直接入力，■色のセルは選択式になっています）"]
[]
[null,"①",null,"申込日",null,null,null,null,null,null,"令和",null,null,{"$f":"YEAR(TODAY())-2018","v":5},null,null,"年",null,11,null,null,"月",null,null,null,null,"日",null,"←ドロップダウンリストより選択して下さい。"]
[]
[null,"②",null,"フリガナ",null,null,null,null,null,null,{"$f":"PHONETIC(K15)","v":""},null,null,null,null,null,null,null,null,null,null,null,null,null,null,null,null,null,"←自動入力されますが，違う場合は直接入力して訂正下さい。"]
[null,null,null,"団体名",null,null,null,null,null,null,null,null,null,null,null,null,null,null,null,null,null,null,null,null,null,null,null,null,"←中学校，高等学校については「吹奏楽部，音楽部」は入力せず，正式名称で入力して下さい。（福岡県立，○○市立など）大学，一般についてはクラブ名等，正確に入力して下さい。"]
[null,null,null,"団体所属長名",null,null,null,null,null,null,null,null,null,null,null,null,null,null,null,null,null,null,null,null,null,null,null,null,"←中学校，高等学校は学校長，大学は学長・学部長，一般については団長とします。\n　※名字と名前の間は1文字スペースを入れて下さい。"]
[null,"③",null,"団体所在地",null,null,null,null,null,null,"郵便番号",null,null,null,null,null,null,null,null,null,null,null,null,null,null,null,null,null,null,null,null,null,null,null,null,null,null,null,null,null,null,null,null,null,null,null,"　英数字は半角で入力して下さい。"]
[null,null,null,null,null,null,null,null,null,null,"住所",null,null,null,null,null,null,null,null,null,null,null,null,null,null,null,null,null,null,null,null,null,null,null,null,null,null,null,null,null,null,null,null,null,null,null,"←福岡県より入力してください。"]
[null,null,null,null,null,null,null,null,null,null,"電話"]
[null,null,null,null,null,null,null,null,null,null,"ＦＡＸ"]
[]
[null,"④",null,"フリガナ",null,null,null,null,null,null,{"$f":"PHONETIC(K23)","v":""},null,null,null,null,null,null,null,null,null,null,null,null,null,null,null,null,null,"←自動入力されますが，違う場合は直接入力して訂正下さい。"]
[null,null,null,"責任者名\n（顧問名）",null,null,null,null,null,null,null,null,null,null,null,null,null,null,null,null,null,null,null,null,null,null,null,null,"←名字と名前の間は1文字スペースを入れて下さい。",null,null,null,null,null,null,null,null,null,null,null,null,null,null,null,null,null,null,null,null,null,null,"（例）チクホウ　ジロウ\n（例）筑豊　次郎"]
[null,"⑤",null,"責任者連絡先",null,null,null,null,null,null,"郵便番号",null,null,null,null,null,null,null,null,null,null,null,null,null,null,null,null,null,null,null,null,null,null,null,null,null,null,null,null,null,null,null,null,null,null,null,"　英数字は半角で入力して下さい。"]
[null,null,null,null,null,null,null,null,null,null,"住所",null,null,null,null,null,null,null,null,null,null,null,null,null,null,null,null,null,null,null,null,null,null,null,null,null,null,null,null,null,null,null,null,null,null,null,"←福岡県より入力してください。"]
[null,null,null,null,null,null,null,null,null,null,"電話"]
[null,null,null,null,null,null,null,null,null,null,"携帯電話"]
[]
[null,"⑥",null,"出演部門",null,null,null,null,null,null,null,null,null,null,null,"←ドロップダウンリストより選択してください。"]
[null,"⑦",null,"エントリー数",null,null,null,null,null,null,null,null,null,null,null,"←ドロップダウンリストより選択してください。"]
[null,null,null,"Aチーム",null,null,null,null,null,null,null,null,null,null,"重奏",null,null,"Bチーム",null,null,null,null,null,null,null,null,null,null,"重奏",null,null,"←１チームのみのエントリーの場合は，Aチームのほうに入力。"]
[null,null,null,"↑ドロップダウンリストより選択してください。該当編成がない場合，空欄(１番上)を選択ののち手書きにてご記入下さい。"]
[null,"⑧",null,"登録外部員数",null,null,null,null,null,null,null,null,null,null,"←出演者以外で大会当日に来場する生徒数を記入ください。"]
[null,"⑨",null,"プログラム購入数",null,null,null,null,null,null,null,null,null,null,"←購入希望数を入力ください。なお，1団体につき3部配布します。"]
[null,"⑩",null,"ピアノ椅子使用",null,null,null,null,null,null,"Aチーム",null,null,null,null,null,null,null,null,null,"Bチーム"]
[null,"⑪",null,"楽器搬入車両",null,null,null,null,null,null,"使用します",null,null,null,"←ドロップダウンリストより選択してください。ただし，貸し切りバスでの搬入は認められない。"]
[]
[null,"⑫",null,"写真・録音の承諾",null,null,null,null,null,null,"当連盟指定の各社による録音・写真撮影・ビデオ撮影・販売されることを"]
[null,null,null,null,null,null,null,null,null,null,"承諾します",null,null,null,null,null,null,null,null,null,null,null,"←ドロップダウンリストより選択してください。"]
[null,null,null,"氏名掲載の承諾",null,null,null,null,null,null,"プログラムに団体名・氏名が掲載されることを"]
[null,null,null,null,null,null,null,null,null,null,"承諾します",null,null,null,null,null,null,null,null,null,null,null,"←ドロップダウンリストより選択してください。"]

{"sheet":"プログラムデータ","index":1,"n_rows":47,"n_cols":118,"rows_kept":47,"cut":false,"hidden":false,"merged":[[30,8,37,12],[30,13,30,17],[30,18,30,46],[38,1,41,7],[42,1,43,7],[44,1,46,7],[45,47,45,56],[46,8,46,17],[46,18,46,46],[46,47,46,49],[46,50,46,51],[46,52,46,54],[46,55,46,56],[41,8,43,12],[41,13,41,17],[41,18,41,46],[42,13,42,17],[42,18,42,46],[43,13,43,17],[43,18,43,46],[44,8,45,12],[44,13,44,17],[44,18,44,46],[45,13,45,17],[34,13,37,21],[35,22,35,46],[35,47,35,49],[35,50,35,51],[35,52,35,54],[35,55,35,56],[36,22,36,46],[36,47,36,49],[36,50,36,51],[36,52,36,54],[36,55,36,56],[34,22,34,46],[34,47,34,49],[34,50,34,51],[34,52,34,54],[34,55,34,56],[37,22,37,46],[37,47,37,49],[37,50,37,51],[37,52,37,54],[37,55,37,56],[45,18,45,46],[38,8,40,12],[38,13,38,17],[38,18,38,46],[38,48,39,60],[39,13,39,17],[39,18,39,46],[40,13,40,17],[40,18,40,46],[40,48,40,60],[31,13,31,17],[31,18,31,46],[32,13,32,17],[32,18,32,46],[32,47,32,56],[33,13,33,21],[33,22,33,46],[33,47,33,49],[33,50,33,51],[33,52,33,54],[33,55,33,56],[24,47,24,56],[29,8,29,17],[29,18,29,46],[25,47,25,49],[25,50,25,51],[25,52,25,54],[25,55,25,56],[24,8,26,12],[24,13,24,17],[24,18,24,46],[25,13,25,17],[25,18,25,46],[26,13,26,17],[26,18,26,46],[27,8,28,12],[27,13,27,17],[27,18,27,46],[28,13,28,17],[28,18,28,46],[20,55,20,56],[21,8,23,12],[21,13,21,17],[21,18,21,46],[22,13,22,17],[22,18,22,46],[23,13,23,17],[23,18,23,46],[19,22,19,46],[19,47,19,49],[19,50,19,51],[19,52,19,54],[16,13,16,21],[16,22,16,46],[16,47,16,49],[16,50,16,51],[16,52,16,54],[16,55,16,56],[17,22,17,46],[17,47,17,49],[17,50,17,51],[17,52,17,54],[17,55,17,56],[20,109,20,111],[20,112,20,113],[20,114,20,116],[30,1,37,7],[18,22,18,46],[18,47,18,49],[18,50,18,51],[18,52,18,54],[18,55,18,56],[19,55,19,56],[20,22,20,46],[20,47,20,49],[20,50,20,51],[20,52,20,54],[17,13,20,21],[13,1,29,7],[13,8,20,12],[13,13,13,17],[13,18,13,46],[14,13,14,17],[14,18,14,46],[15,13,15,17],[15,18,15,46],[15,47,15,56],[15,109,15,118],[16,75,16,83],[16,84,16,108],[16,109,16,111],[16,112,16,113],[16,114,16,116],[16,117,16,118],[17,84,17,108],[17,109,17,111],[17,112,17,113],[17,114,17,116],[20,117,20,118],[21,70,23,74],[21,75,21,79],[21,80,21,108],[22,75,22,79],[22,80,22,108],[23,75,23,79],[23,80,23,108],[17,75,20,83],[17,117,17,118],[18,84,18,108],[18,109,18,111],[18,112,18,113],[18,114,18,116],[18,117,18,118],[19,84,19,108],[19,109,19,111],[19,112,19,113],[19,114,19,116],[19,117,19,118],[13,70,20,74],[13,75,13,79],[13,80,13,108],[14,75,14,79],[24,109,24,118],[25,75,25,79],[25,80,25,108],[25,109,25,111],[25,112,25,113],[25,114,25,116],[25,117,25,118],[26,75,26,79],[26,80,26,108],[30,63,37,69],[30,70,37,74],[30,75,30,79],[30,80,30,108],[31,75,31,79],[31,80,31,108],[32,75,32,79],[32,80,32,108],[24,70,26,74],[24,75,24,79],[24,80,24,108],[13,63,29,69],[14,80,14,108],[15,75,15,79],[15,80,15,108],[20,84,20,108],[36,109,36,111],[36,112,36,113],[36,114,36,116],[36,117,36,118],[37,84,37,108],[27,70,28,74],[27,75,27,79],[27,80,27,108],[28,75,28,79],[28,80,28,108],[29,70,29,79],[29,80,29,108],[42,63,43,69],[42,75,42,79],[42,80,42,108],[43,75,43,79],[43,80,43,108],[32,109,32,118],[33,75,33,83],[33,84,33,108],[33,109,33,111],[33,112,33,113],[33,114,33,116],[33,117,33,118],[34,75,37,83],[34,84,34,108],[34,109,34,111],[34,112,34,113],[34,114,34,116],[34,117,34,118],[35,84,35,108],[35,109,35,111],[35,112,35,113],[35,114,35,116],[35,117,35,118],[36,84,36,108],[38,80,38,108],[38,110,39,122],[39,75,39,79],[39,80,39,108],[40,75,40,79],[40,80,40,108],[40,110,40,122],[41,70,43,74],[41,75,41,79],[41,80,41,108],[1,1,4,122],[6,1,8,122],[9,1,9,122],[11,1,11,122],[44,63,46,69],[44,70,45,74],[44,75,44,79],[44,80,44,108],[45,75,45,79],[45,80,45,108],[45,109,45,118],[46,70,46,79],[46,80,46,108],[46,109,46,111],[46,112,46,113],[46,114,46,116],[46,117,46,118],[37,109,37,111],[37,112,37,113],[37,114,37,116],[37,117,37,118],[38,63,41,69],[38,70,40,74],[38,75,38,79]]}
[]
[null,"＊プログラム・アナウンス原稿の入力を行います。ここで入力・プリントアウトされたものが\n　そのままプログラム原稿として使用されますので入力ミスや誤字脱字等には十分お気をつけください。\n　なお，表示・印字のできない外字等については，プリントアウトしたものに手書きで加筆してください。"]
[]
[]
[]
[]
[null,"アンサンブルコンテスト参加申込書入力シート【プログラムデータ】"]
[]
[]
[null,"（■色のセルは直接入力，■色のセルは選択式になっています）"]
[]
[null,"＊外国曲・外国人作曲者や編曲者はカタカナ表記でお願いします。《例１》を参照ください。\n　読み方については，各団体にてお調べください。\n【例】Canzon sepitimi toni No.2 for Brass Octet\n　　　　→ 第7旋法による8声のカンツォン第2番\n　　　Giovanni Gabrieli → G．ガブリエリ　※ファーストネーム等はアルファベット表記でお願いします。\n\n＊組曲やメドレー曲等については，演奏される部分や楽章・楽章名を入力してください。\n　作曲者が複数にわたる場合は，代表(１番最初の方など)を記入し，「他」でかまいません。\n　詳しくは下記《例２》を参考に入力してください。"]
[]
[null,"例１",null,null,null,null,null,null,"曲名",null,null,null,null,"フリガナ",null,null,null,null,"ダイナナセンポウニヨルハッセイノカンツォンダイニバン",null,null,null,null,null,null,null,null,null,null,null,null,null,null,null,null,null,null,null,null,null,null,null,null,null,null,null,null,null,null,null,null,null,null,null,null,null,null,null,null,null,null,null,null,"例２",null,null,null,null,null,null,"曲名",null,null,null,null,"フリガナ",null,null,null,null,"クミキョクドウブツノシャニクサイヨリ"]
[null,null,null,null,null,null,null,null,null,null,null,null,null,"記載",null,null,null,null,"第7旋法による８声のカンツォン第2番",null,null,null,null,null,null,null,null,null,null,null,null,null,null,null,null,null,null,null,null,null,null,null,null,null,null,null,null,null,null,null,null,null,null,null,null,null,null,null,null,null,null,null,null,null,null,null,null,null,null,null,null,null,null,null,null,"記載",null,null,null,null,"組曲「動物の謝肉祭」より"]
[null,null,null,null,null,null,null,null,null,null,null,null,null,"原語表記",null,null,null,null,"Canzon sepitimi toni No.2 for Brass Octet",null,null,null,null,null,null,null,null,null,null,null,null,null,null,null,null,null,null,null,null,null,null,null,null,null,null,null,null,"演奏時間",null,null,null,null,null,null,null,null,null,null,null,null,null,null,null,null,null,null,null,null,null,null,null,null,null,null,null,"原語表記",null,null,null,null,"Le carnaval des animaux",null,null,null,null,null,null,null,null,null,null,null,null,null,null,null,null,null,null,null,null,null,null,null,null,null,null,null,null,"演奏時間"]
[null,null,null,null,null,null,null,null,null,null,null,null,null,"組曲等の演奏部分",null,null,null,null,null,null,null,null,null,null,null,null,null,null,null,null,null,null,null,null,null,null,null,null,null,null,null,null,null,null,null,null,null,null,null,null,"分",null,null,null,null,"秒",null,null,null,null,null,null,null,null,null,null,null,null,null,null,null,null,null,null,null,"組曲等の演奏部分",null,null,null,null,null,null,null,null,"１. 序奏と堂々たるライオンの行進",null,null,null,null,null,null,null,null,null,null,null,null,null,null,null,null,null,null,null,null,null,null,null,null,"2",null,null,"分",null,"00",null,null,"秒"]
[null,null,null,null,null,null,null,null,null,null,null,null,null,"日本語でよい",null,null,null,null,null,null,null,null,null,null,null,null,null,null,null,null,null,null,null,null,null,null,null,null,null,null,null,null,null,null,null,null,null,null,null,null,"分",null,null,null,null,"秒",null,null,null,null,null,null,null,null,null,null,null,null,null,null,null,null,null,null,null,"日本語でよい",null,null,null,null,null,null,null,null,"10. 大きな鳥籠",null,null,null,null,null,null,null,null,null,null,null,null,null,null,null,null,null,null,null,null,null,null,null,null,"0",null,null,"分",null,"40",null,null,"秒"]
[null,null,null,null,null,null,null,null,null,null,null,null,null,null,null,null,null,null,null,null,null,null,null,null,null,null,null,null,null,null,null,null,null,null,null,null,null,null,null,null,null,null,null,null,null,null,null,null,null,null,"分",null,null,null,null,"秒",null,null,null,null,null,null,null,null,null,null,null,null,null,null,null,null,null,null,null,null,null,null,null,null,null,null,null,null,"14. 終曲",null,null,null,null,null,null,null,null,null,null,null,null,null,null,null,null,null,null,null,null,null,null,null,null,"2",null,null,"分",null,"00",null,null,"秒"]
[null,null,null,null,null,null,null,null,null,null,null,null,null,null,null,null,null,null,null,null,null,null,null,null,null,null,null,null,null,null,null,null,null,null,null,null,null,null,null,null,null,null,null,null,null,null,null,null,null,null,"分",null,null,null,null,"秒",null,null,null,null,null,null,null,null,null,null,null,null,null,null,null,null,null,null,null,null,null,null,null,null,null,null,null,null,null,null,null,null,null,null,null,null,null,null,null,null,null,null,null,null,null,null,null,null,null,null,null,null,null,null,null,null,"分",null,null,null,null,"秒"]
[null,null,null,null,null,null,null,null,null,null,null,null,null,null,null,null,null,null,null,null,null,null,null,null,null,null,null,null,null,null,null,null,null,null,null,null,null,null,null,null,null,null,null,null,null,null,null,null,null,null,"分",null,null,null,null,"秒",null,null,null,null,null,null,null,null,null,null,null,null,null,null,null,null,null,null,null,null,null,null,null,null,null,null,null,null,null,null,null,null,null,null,null,null,null,null,null,null,null,null,null,null,null,null,null,null,null,null,null,null,null,null,null,null,"分",null,null,null,null,"秒"]
[null,null,null,null,null,null,null,null,"作曲者",null,null,null,null,"フリガナ",null,null,null,null,"ガブリエリ",null,null,null,null,null,null,null,null,null,null,null,null,null,null,null,null,null,null,null,null,null,null,null,null,null,null,null,null,null,null,null,null,null,null,null,null,null,null,null,null,null,null,null,null,null,null,null,null,null,null,null,"作曲者",null,null,null,null,"フリガナ",null,null,null,null,"サンサーンス"]
[null,null,null,null,null,null,null,null,null,null,null,null,null,"記載",null,null,null,null,"G.ガブリエリ",null,null,null,null,null,null,null,null,null,null,null,null,null,null,null,null,null,null,null,null,null,null,null,null,null,null,null,null,null,null,null,null,null,null,null,null,null,null,null,null,null,null,null,null,null,null,null,null,null,null,null,null,null,null,null,null,"記載",null,null,null,null,"C.サン＝サーンス"]
[null,null,null,null,null,null,null,null,null,null,null,null,null,"原語表記",null,null,null,null,"G. Gabrieli",null,null,null,null,null,null,null,null,null,null,null,null,null,null,null,null,null,null,null,null,null,null,null,null,null,null,null,null,null,null,null,null,null,null,null,null,null,null,null,null,null,null,null,null,null,null,null,null,null,null,null,null,null,null,null,null,"原語表記",null,null,null,null,"C. Saint-Saens"]
[null,null,null,null,null,null,null,null,"編曲者",null,null,null,null,"フリガナ",null,null,null,null,"キング",null,null,null,null,null,null,null,null,null,null,null,null,null,null,null,null,null,null,null,null,null,null,null,null,null,null,null,null,"合計演奏時間",null,null,null,null,null,null,null,null,null,null,null,null,null,null,null,null,null,null,null,null,null,null,"編曲者",null,null,null,null,"フリガナ",null,null,null,null,"クロカワケイイチ",null,null,null,null,null,null,null,null,null,null,null,null,null,null,null,null,null,null,null,null,null,null,null,null,null,null,null,null,"合計演奏時間"]
[null,null,null,null,null,null,null,null,null,null,null,null,null,"記載",null,null,null,null,"R.キング",null,null,null,null,null,null,null,null,null,null,null,null,null,null,null,null,null,null,null,null,null,null,null,null,null,null,null,null,"3",null,null,"分",null,"30",null,null,"秒",null,null,null,null,null,null,null,null,null,null,null,null,null,null,null,null,null,null,null,"記載",null,null,null,null,"黒川　圭一",null,null,null,null,null,null,null,null,null,null,null,null,null,null,null,null,null,null,null,null,null,null,null,null,null,null,null,null,"4",null,null,"分",null,"40",null,null,"秒"]
[null,null,null,null,null,null,null,null,null,null,null,null,null,"原語表記",null,null,null,null,"R. King",null,null,null,null,null,null,null,null,null,null,null,null,null,null,null,null,null,null,null,null,null,null,null,null,null,null,null,null,null,null,null,null,null,null,null,null,null,null,null,null,null,null,null,null,null,null,null,null,null,null,null,null,null,null,null,null,"原語表記"]
[null,null,null,null,null,null,null,null,"出版社",null,null,null,null,"原語",null,null,null,null,"Robert King",null,null,null,null,null,null,null,null,null,null,null,null,null,null,null,null,null,null,null,null,null,null,null,null,null,null,null,null,null,null,null,null,null,null,null,null,null,null,null,null,null,null,null,null,null,null,null,null,null,null,null,"出版社",null,null,null,null,"原語"]
[null,null,null,null,null,null,null,null,null,null,null,null,null,"日本語",null,null,null,null,"ロバート・キング社",null,null,null,null,null,null,null,null,null,null,null,null,null,null,null,null,null,null,null,null,null,null,null,null,null,null,null,null,null,null,null,null,null,null,null,null,null,null,null,null,null,null,null,null,null,null,null,null,null,null,null,null,null,null,null,null,"日本語",null,null,null,null,"ブレーン"]
[null,null,null,null,null,null,null,null,"編曲手続き",null,null,null,null,null,null,null,null,null,"出版されている楽譜(レンタルを含む)を使用しているので不要",null,null,null,null,null,null,null,null,null,null,null,null,null,null,null,null,null,null,null,null,null,null,null,null,null,null,null,null,null,null,null,null,null,null,null,null,null,null,null,null,null,null,null,null,null,null,null,null,null,null,null,"編曲手続き",null,null,null,null,null,null,null,null,null,"済んでいる"]
[null,"Aチーム",null,null,null,null,null,null,"曲名",null,null,null,null,"フリガナ",null,null,null,null,null,null,null,null,null,null,null,null,null,null,null,null,null,null,null,null,null,null,null,null,null,null,null,null,null,null,null,null,null,null,null,null,null,null,null,null,null,null,null,null,null,null,null,null,null,"Bチーム",null,null,null,null,null,null,"曲名",null,null,null,null,"フリガナ"]
[null,null,null,null,null,null,null,null,null,null,null,null,null,"記載",null,null,null,null,null,null,null,null,null,null,null,null,null,null,null,null,null,null,null,null,null,null,null,null,null,null,null,null,null,null,null,null,null,null,null,null,null,null,null,null,null,null,null,null,null,null,null,null,null,null,null,null,null,null,null,null,null,null,null,null,null,"記載"]
[null,null,null,null,null,null,null,null,null,null,null,null,null,"原語表記",null,null,null,null,null,null,null,null,null,null,null,null,null,null,null,null,null,null,null,null,null,null,null,null,null,null,null,null,null,null,null,null,null,"演奏時間",null,null,null,null,null,null,null,null,null,null,null,null,null,null,null,null,null,null,null,null,null,null,null,null,null,null,null,"原語表記",null,null,null,null,null,null,null,null,null,null,null,null,null,null,null,null,null,null,null,null,null,null,null,null,null,null,null,null,null,null,null,null,null,"演奏時間"]
[null,null,null,null,null,null,null,null,null,null,null,null,null,"組曲等の演奏部分",null,null,null,null,null,null,null,null,null,null,null,null,null,null,null,null,null,null,null,null,null,null,null,null,null,null,null,null,null,null,null,null,null,null,null,null,"分",null,null,null,null,"秒",null,null,null,null,null,null,null,null,null,null,null,null,null,null,null,null,null,null,null,"組曲等の演奏部分",null,null,null,null,null,null,null,null,null,null,null,null,null,null,null,null,null,null,null,null,null,null,null,null,null,null,null,null,null,null,null,null,null,null,null,null,"分",null,null,null,null,"秒"]
[null,null,null,null,null,null,null,null,null,null,null,null,null,"日本語でよい",null,null,null,null,null,null,null,null,null,null,null,null,null,null,null,null,null,null,null,null,null,null,null,null,null,null,null,null,null,null,null,null,null,null,null,null,"分",null,null,null,null,"秒",null,null,null,null,null,null,null,null,null,null,null,null,null,null,null,null,null,null,null,"日本語でよい",null,null,null,null,null,null,null,null,null,null,null,null,null,null,null,null,null,null,null,null,null,null,null,null,null,null,null,null,null,null,null,null,null,null,null,null,"分",null,null,null,null,"秒"]
[null,null,null,null,null,null,null,null,null,null,null,null,null,null,null,null,null,null,null,null,null,null,null,null,null,null,null,null,null,null,null,null,null,null,null,null,null,null,null,null,null,null,null,null,null,null,null,null,null,null,"分",null,null,null,null,"秒",null,null,null,null,null,null,null,null,null,null,null,null,null,null,null,null,null,null,null,null,null,null,null,null,null,null,null,null,null,null,null,null,null,null,null,null,null,null,null,null,null,null,null,null,null,null,null,null,null,null,null,null,null,null,null,null,"分",null,null,null,null,"秒"]
[null,null,null,null,null,null,null,null,null,null,null,null,null,null,null,null,null,null,null,null,null,null,null,null,null,null,null,null,null,null,null,null,null,null,null,null,null,null,null,null,null,null,null,null,null,null,null,null,null,null,"分",null,null,null,null,"秒",null,null,null,null,null,null,null,null,null,null,null,null,null,null,null,null,null,null,null,null,null,null,null,null,null,null,null,null,null,null,null,null,null,null,null,null,null,null,null,null,null,null,null,null,null,null,null,null,null,null,null,null,null,null,null,null,"分",null,null,null,null,"秒"]
[null,null,null,null,null,null,null,null,null,null,null,null,null,null,null,null,null,null,null,null,null,null,null,null,null,null,null,null,null,null,null,null,null,null,null,null,null,null,null,null,null,null,null,null,null,null,null,null,null,null,"分",null,null,null,null,"秒",null,null,null,null,null,null,null,null,null,null,null,null,null,null,null,null,null,null,null,null,null,null,null,null,null,null,null,null,null,null,null,null,null,null,null,null,null,null,null,null,null,null,null,null,null,null,null,null,null,null,null,null,null,null,null,null,"分",null,null,null,null,"秒"]
[null,{"$f":"団体データ!J31","v":0},null,null,null,null,null,null,"作曲者",null,null,null,null,"フリガナ",null,null,null,null,null,null,null,null,null,null,null,null,null,null,null,null,null,null,null,null,null,null,null,null,null,null,null,null,null,null,null,null,null,null,null,null,null,null,null,null,null,null,null,null,null,null,null,null,null,{"$f":"団体データ!X31","v":0},null,null,null,null,null,null,"作曲者",null,null,null,null,"フリガナ"]
[null,null,null,null,null,null,null,null,null,null,null,null,null,"記載",null,null,null,null,null,null,null,null,null,null,null,null,null,null,null,null,null,null,null,null,null,null,null,null,null,null,null,null,null,null,null,null,null,null,null,null,null,null,null,null,null,null,null,null,null,null,null,null,null,null,null,null,null,null,null,null,null,null,null,null,null,"記載"]
[null,null,null,null,null,null,null,null,null,null,null,null,null,"原語表記",null,null,null,null,null,null,null,null,null,null,null,null,null,null,null,null,null,null,null,null,null,null,null,null,null,null,null,null,null,null,null,null,null,null,null,null,null,null,null,null,null,null,null,null,null,null,null,null,null,null,null,null,null,null,null,null,null,null,null,null,null,"原語表記"]
[null,null,null,null,null,null,null,null,"編曲者",null,null,null,null,"フリガナ",null,null,null,null,null,null,null,null,null,null,null,null,null,null,null,null,null,null,null,null,null,null,null,null,null,null,null,null,null,null,null,null,null,null,null,null,null,null,null,null,null,null,null,null,null,null,null,null,null,null,null,null,null,null,null,null,"編曲者",null,null,null,null,"フリガナ"]
[null,{"$f":"団体データ!M31","v":0},null,null,null,null,null,null,null,null,null,null,null,"記載",null,null,null,null,null,null,null,null,null,null,null,null,null,null,null,null,null,null,null,null,null,null,null,null,null,null,null,null,null,null,null,null,null,null,null,null,null,null,null,null,null,null,null,null,null,null,null,null,null,{"$f":"団体データ!AA31","v":0},null,null,null,null,null,null,null,null,null,null,null,"記載"]
[null,null,null,null,null,null,null,null,null,null,null,null,null,"原語表記",null,null,null,null,null,null,null,null,null,null,null,null,null,null,null,null,null,null,null,null,null,null,null,null,null,null,null,null,null,null,null,null,null,null,null,null,null,null,null,null,null,null,null,null,null,null,null,null,null,null,null,null,null,null,null,null,null,null,null,null,null,"原語表記"]
[null,"重奏",null,null,null,null,null,null,"出版社",null,null,null,null,"原語",null,null,null,null,null,null,null,null,null,null,null,null,null,null,null,null,null,null,null,null,null,null,null,null,null,null,null,null,null,null,null,null,null,null,null,null,null,null,null,null,null,null,null,null,null,null,null,null,null,"重奏",null,null,null,null,null,null,"出版社",null,null,null,null,"原語"]
[null,null,null,null,null,null,null,null,null,null,null,null,null,"日本語",null,null,null,null,null,null,null,null,null,null,null,null,null,null,null,null,null,null,null,null,null,null,null,null,null,null,null,null,null,null,null,null,null,"演奏時間",null,null,null,null,null,null,null,null,null,null,null,null,null,null,null,null,null,null,null,null,null,null,null,null,null,null,null,"日本語",null,null,null,null,null,null,null,null,null,null,null,null,null,null,null,null,null,null,null,null,null,null,null,null,null,null,null,null,null,null,null,null,null,"演奏時間"]
[null,null,null,null,null,null,null,null,"編曲手続き",null,null,null,null,null,null,null,null,null,null,null,null,null,null,null,null,null,null,null,null,null,null,null,null,null,null,null,null,null,null,null,null,null,null,null,null,null,null,null,null,null,"分",null,null,null,null,"秒",null,null,null,null,null,null,null,null,null,null,null,null,null,null,"編曲手続き",null,null,null,null,null,null,null,null,null,null,null,null,null,null,null,null,null,null,null,null,null,null,null,null,null,null,null,null,null,null,null,null,null,null,null,null,null,null,null,null,null,"分",null,null,null,null,"秒"]

{"sheet":"著作権データ","index":2,"n_rows":38,"n_cols":75,"rows_kept":38,"cut":false,"hidden":false,"merged":[[1,1,4,75],[6,1,8,75],[9,1,9,75],[11,1,11,75],[13,1,13,2],[13,3,13,37],[13,38,13,47],[13,48,13,57],[13,58,13,67],[13,68,13,75],[14,68,14,69],[14,70,14,71],[14,72,14,73],[14,74,14,75],[15,1,15,2],[15,3,15,22],[15,23,15,37],[15,38,15,47],[15,48,15,57],[15,58,15,67],[14,1,14,2],[14,3,14,22],[14,23,14,37],[14,38,14,47],[14,48,14,57],[14,58,14,67],[15,68,15,69],[15,70,15,71],[15,72,15,73],[15,74,15,75],[16,74,16,75],[17,1,17,2],[17,3,17,22],[17,23,17,37],[17,38,17,47],[17,48,17,57],[17,58,17,67],[17,68,17,69],[17,70,17,71],[17,72,17,73],[17,74,17,75],[16,1,16,2],[16,3,16,22],[16,23,16,37],[16,38,16,47],[16,48,16,57],[16,58,16,67],[16,68,16,69],[16,70,16,71],[16,72,16,73],[18,74,18,75],[19,1,19,2],[19,3,19,22],[19,23,19,37],[19,38,19,47],[19,48,19,57],[19,58,19,67],[19,68,19,69],[19,70,19,71],[19,72,19,73],[19,74,19,75],[18,1,18,2],[18,3,18,22],[18,23,18,37],[18,38,18,47],[18,48,18,57],[18,58,18,67],[18,68,18,69],[18,70,18,71],[18,72,18,73],[20,74,20,75],[21,1,21,2],[21,3,21,22],[21,23,21,37],[21,38,21,47],[21,48,21,57],[21,58,21,67],[21,68,21,69],[21,70,21,71],[21,72,21,73],[21,74,21,75],[20,1,20,2],[20,3,20,22],[20,23,20,37],[20,38,20,47],[20,48,20,57],[20,58,20,67],[20,68,20,69],[20,70,20,71],[20,72,20,73],[22,74,22,75],[23,1,23,2],[23,3,23,22],[23,23,23,37],[23,38,23,47],[23,48,23,57],[23,58,23,67],[23,68,23,69],[23,70,23,71],[23,72,23,73],[23,74,23,75],[22,1,22,2],[22,3,22,22],[22,23,22,37],[22,38,22,47],[22,48,22,57],[22,58,22,67],[22,68,22,69],[22,70,22,71],[22,72,22,73],[24,74,24,75],[25,1,25,2],[25,3,25,22],[25,23,25,37],[25,38,25,47],[25,48,25,57],[25,58,25,67],[25,68,25,69],[25,70,25,71],[25,72,25,73],[25,74,25,75],[24,1,24,2],[24,3,24,22],[24,23,24,37],[24,38,24,47],[24,48,24,57],[24,58,24,67],[24,68,24,69],[24,70,24,71],[24,72,24,73],[26,74,26,75],[27,1,27,2],[27,3,27,22],[27,23,27,37],[27,38,27,47],[27,48,27,57],[27,58,27,67],[27,68,27,69],[27,70,27,71],[27,72,27,73],[27,74,27,75],[26,1,26,2],[26,3,26,22],[26,23,26,37],[26,38,26,47],[26,48,26,57],[26,58,26,67],[26,68,26,69],[26,70,26,71],[26,72,26,73],[28,74,28,75],[29,1,29,2],[29,3,29,22],[29,23,29,37],[29,38,29,47],[29,48,29,57],[29,58,29,67],[29,68,29,69],[29,70,29,71],[29,72,29,73],[29,74,29,75],[28,1,28,2],[28,3,28,22],[28,23,28,37],[28,38,28,47],[28,48,28,57],[28,58,28,67],[28,68,28,69],[28,70,28,71],[28,72,28,73],[30,74,30,75],[31,1,31,2],[31,3,31,22],[31,23,31,37],[31,38,31,47],[31,48,31,57],[31,58,31,67],[31,68,31,69],[31,70,31,71],[31,72,31,73],[31,74,31,75],[30,1,30,2],[30,3,30,22],[30,23,30,37],[30,38,30,47],[30,48,30,57],[30,58,30,67],[30,68,30,69],[30,70,30,71],[30,72,30,73],[32,74,32,75],[33,1,33,2],[33,3,33,22],[33,23,33,37],[33,38,33,47],[33,48,33,57],[33,58,33,67],[33,68,33,69],[33,70,33,71],[33,72,33,73],[33,74,33,75],[32,1,32,2],[32,3,32,22],[32,23,32,37],[32,38,32,47],[32,48,32,57],[32,58,32,67],[32,68,32,69],[32,70,32,71],[32,72,32,73],[34,74,34,75],[35,1,35,2],[35,3,35,22],[35,23,35,37],[35,38,35,47],[35,48,35,57],[35,58,35,67],[35,68,35,69],[35,70,35,71],[35,72,35,73],[35,74,35,75],[34,1,34,2],[34,3,34,22],[34,23,34,37],[34,38,34,47],[34,48,34,57],[34,58,34,67],[34,68,34,69],[34,70,34,71],[34,72,34,73],[37,74,37,75],[36,68,36,69],[36,70,36,71],[36,72,36,73],[36,74,36,75],[37,1,37,2],[37,3,37,22],[37,23,37,37],[37,38,37,47],[37,48,37,57],[37,58,37,67],[36,1,36,2],[36,3,36,22],[36,23,36,37],[36,38,36,47],[36,48,36,57],[36,58,36,67],[37,68,37,69],[37,70,37,71],[37,72,37,73]]}
[]
[null,"＊著作権申請用紙の入力を行います。著作権の申請は原語表記・フルネームが基本です。\nここで入力されたままJASRACへ申請書を送付しますので不備がある場合は再提出となります。\n楽章やタイトルなどスコアを参照に正確な入力をお願いします。"]
[]
[]
[]
[]
[null,"アンサンブルコンテスト参加申込書入力シート【著作権申請データ】"]
[]
[]
[null,"（選択式のものはありません。■色のセルに直接入力ください）"]
[]
[null,"２チームでエントリーされる団体様も、このシート1枚でまとめて入力ください。\n・組曲については，楽章ごと入力してください。楽章数がある場合は，数字も必要です。\n・メドレー曲等については演奏する楽曲ごと入力してください。\n・外国曲・外国人作曲者や編曲者は原語表記(英語など)で、かつ、フルネームでお願いします。\n・表示および印字のできない外字等は，プリントアウトしたものに手書きで書き加えて下さい。"]
[]
[null,null,null,"　曲　名　※曲名を左に入力。組曲の場合，楽章名は右に。楽章数・タイトル省略不可",null,null,null,null,null,null,null,null,null,null,null,null,null,null,null,null,null,null,null,null,null,null,null,null,null,null,null,null,null,null,null,null,null,null,"作曲者",null,null,null,null,null,null,null,null,null,"編曲者",null,null,null,null,null,null,null,null,null,"出版社",null,null,null,null,null,null,null,null,null,"演奏時間"]
[null,"例",null,"てぃーちてぃーる　～沖縄民謡による～",null,null,null,null,null,null,null,null,null,null,null,null,null,null,null,null,null,null,null,null,null,null,null,null,null,null,null,null,null,null,null,null,null,null,"福島　弘和",null,null,null,null,null,null,null,null,null,null,null,null,null,null,null,null,null,null,null,"ブレーン",null,null,null,null,null,null,null,null,null,"5",null,"分",null,"00",null,"秒"]
[null,"例",null,"Three Brass Cats",null,null,null,null,null,null,null,null,null,null,null,null,null,null,null,null,null,null,null,"Mr. Jums",null,null,null,null,null,null,null,null,null,null,null,null,null,null,"Chris Hazell",null,null,null,null,null,null,null,null,null,null,null,null,null,null,null,null,null,null,null,"Chester Music",null,null,null,null,null,null,null,null,null,"2",null,"分",null,"10",null,"秒"]
[null,"例",null,null,null,null,null,null,null,null,null,null,null,null,null,null,null,null,null,null,null,null,null,"Borage",null,null,null,null,null,null,null,null,null,null,null,null,null,null,"Chris Hazell",null,null,null,null,null,null,null,null,null,null,null,null,null,null,null,null,null,null,null,"Chester Music",null,null,null,null,null,null,null,null,null,"2",null,"分",null,"40",null,"秒"]
[null,null,null,"曲名",null,null,null,null,null,null,null,null,null,null,null,null,null,null,null,null,null,null,null,"楽章名",null,null,null,null,null,null,null,null,null,null,null,null,null,null,"作曲者",null,null,null,null,null,null,null,null,null,"編曲者",null,null,null,null,null,null,null,null,null,"出版社",null,null,null,null,null,null,null,null,null,null,null,"分",null,null,null,"秒"]
[null,1,null,null,null,null,null,null,null,null,null,null,null,null,null,null,null,null,null,null,null,null,null,null,null,null,null,null,null,null,null,null,null,null,null,null,null,null,null,null,null,null,null,null,null,null,null,null,null,null,null,null,null,null,null,null,null,null,null,null,null,null,null,null,null,null,null,null,null,null,"分",null,null,null,"秒"]
[null,2,null,null,null,null,null,null,null,null,null,null,null,null,null,null,null,null,null,null,null,null,null,null,null,null,null,null,null,null,null,null,null,null,null,null,null,null,null,null,null,null,null,null,null,null,null,null,null,null,null,null,null,null,null,null,null,null,null,null,null,null,null,null,null,null,null,null,null,null,"分",null,null,null,"秒"]
[null,3,null,null,null,null,null,null,null,null,null,null,null,null,null,null,null,null,null,null,null,null,null,null,null,null,null,null,null,null,null,null,null,null,null,null,null,null,null,null,null,null,null,null,null,null,null,null,null,null,null,null,null,null,null,null,null,null,null,null,null,null,null,null,null,null,null,null,null,null,"分",null,null,null,"秒"]
[null,4,null,null,null,null,null,null,null,null,null,null,null,null,null,null,null,null,null,null,null,null,null,null,null,null,null,null,null,null,null,null,null,null,null,null,null,null,null,null,null,null,null,null,null,null,null,null,null,null,null,null,null,null,null,null,null,null,null,null,null,null,null,null,null,null,null,null,null,null,"分",null,null,null,"秒"]
[null,5,null,null,null,null,null,null,null,null,null,null,null,null,null,null,null,null,null,null,null,null,null,null,null,null,null,null,null,null,null,null,null,null,null,null,null,null,null,null,null,null,null,null,null,null,null,null,null,null,null,null,null,null,null,null,null,null,null,null,null,null,null,null,null,null,null,null,null,null,"分",null,null,null,"秒"]
[null,6,null,null,null,null,null,null,null,null,null,null,null,null,null,null,null,null,null,null,null,null,null,null,null,null,null,null,null,null,null,null,null,null,null,null,null,null,null,null,null,null,null,null,null,null,null,null,null,null,null,null,null,null,null,null,null,null,null,null,null,null,null,null,null,null,null,null,null,null,"分",null,null,null,"秒"]
[null,7,null,null,null,null,null,null,null,null,null,null,null,null,null,null,null,null,null,null,null,null,null,null,null,null,null,null,null,null,null,null,null,null,null,null,null,null,null,null,null,null,null,null,null,null,null,null,null,null,null,null,null,null,null,null,null,null,null,null,null,null,null,null,null,null,null,null,null,null,"分",null,null,null,"秒"]
[null,8,null,null,null,null,null,null,null,null,null,null,null,null,null,null,null,null,null,null,null,null,null,null,null,null,null,null,null,null,null,null,null,null,null,null,null,null,null,null,null,null,null,null,null,null,null,null,null,null,null,null,null,null,null,null,null,null,null,null,null,null,null,null,null,null,null,null,null,null,"分",null,null,null,"秒"]
[null,9,null,null,null,null,null,null,null,null,null,null,null,null,null,null,null,null,null,null,null,null,null,null,null,null,null,null,null,null,null,null,null,null,null,null,null,null,null,null,null,null,null,null,null,null,null,null,null,null,null,null,null,null,null,null,null,null,null,null,null,null,null,null,null,null,null,null,null,null,"分",null,null,null,"秒"]
[null,10,null,null,null,null,null,null,null,null,null,null,null,null,null,null,null,null,null,null,null,null,null,null,null,null,null,null,null,null,null,null,null,null,null,null,null,null,null,null,null,null,null,null,null,null,null,null,null,null,null,null,null,null,null,null,null,null,null,null,null,null,null,null,null,null,null,null,null,null,"分",null,null,null,"秒"]
[null,11,null,null,null,null,null,null,null,null,null,null,null,null,null,null,null,null,null,null,null,null,null,null,null,null,null,null,null,null,null,null,null,null,null,null,null,null,null,null,null,null,null,null,null,null,null,null,null,null,null,null,null,null,null,null,null,null,null,null,null,null,null,null,null,null,null,null,null,null,"分",null,null,null,"秒"]
[null,12,null,null,null,null,null,null,null,null,null,null,null,null,null,null,null,null,null,null,null,null,null,null,null,null,null,null,null,null,null,null,null,null,null,null,null,null,null,null,null,null,null,null,null,null,null,null,null,null,null,null,null,null,null,null,null,null,null,null,null,null,null,null,null,null,null,null,null,null,"分",null,null,null,"秒"]
[null,13,null,null,null,null,null,null,null,null,null,null,null,null,null,null,null,null,null,null,null,null,null,null,null,null,null,null,null,null,null,null,null,null,null,null,null,null,null,null,null,null,null,null,null,null,null,null,null,null,null,null,null,null,null,null,null,null,null,null,null,null,null,null,null,null,null,null,null,null,"分",null,null,null,"秒"]
[null,14,null,null,null,null,null,null,null,null,null,null,null,null,null,null,null,null,null,null,null,null,null,null,null,null,null,null,null,null,null,null,null,null,null,null,null,null,null,null,null,null,null,null,null,null,null,null,null,null,null,null,null,null,null,null,null,null,null,null,null,null,null,null,null,null,null,null,null,null,"分",null,null,null,"秒"]
[null,15,null,null,null,null,null,null,null,null,null,null,null,null,null,null,null,null,null,null,null,null,null,null,null,null,null,null,null,null,null,null,null,null,null,null,null,null,null,null,null,null,null,null,null,null,null,null,null,null,null,null,null,null,null,null,null,null,null,null,null,null,null,null,null,null,null,null,null,null,"分",null,null,null,"秒"]
[null,16,null,null,null,null,null,null,null,null,null,null,null,null,null,null,null,null,null,null,null,null,null,null,null,null,null,null,null,null,null,null,null,null,null,null,null,null,null,null,null,null,null,null,null,null,null,null,null,null,null,null,null,null,null,null,null,null,null,null,null,null,null,null,null,null,null,null,null,null,"分",null,null,null,"秒"]
[null,17,null,null,null,null,null,null,null,null,null,null,null,null,null,null,null,null,null,null,null,null,null,null,null,null,null,null,null,null,null,null,null,null,null,null,null,null,null,null,null,null,null,null,null,null,null,null,null,null,null,null,null,null,null,null,null,null,null,null,null,null,null,null,null,null,null,null,null,null,"分",null,null,null,"秒"]
[null,18,null,null,null,null,null,null,null,null,null,null,null,null,null,null,null,null,null,null,null,null,null,null,null,null,null,null,null,null,null,null,null,null,null,null,null,null,null,null,null,null,null,null,null,null,null,null,null,null,null,null,null,null,null,null,null,null,null,null,null,null,null,null,null,null,null,null,null,null,"分",null,null,null,"秒"]
[null,19,null,null,null,null,null,null,null,null,null,null,null,null,null,null,null,null,null,null,null,null,null,null,null,null,null,null,null,null,null,null,null,null,null,null,null,null,null,null,null,null,null,null,null,null,null,null,null,null,null,null,null,null,null,null,null,null,null,null,null,null,null,null,null,null,null,null,null,null,"分",null,null,null,"秒"]
[null,20,null,null,null,null,null,null,null,null,null,null,null,null,null,null,null,null,null,null,null,null,null,null,null,null,null,null,null,null,null,null,null,null,null,null,null,null,null,null,null,null,null,null,null,null,null,null,null,null,null,null,null,null,null,null,null,null,null,null,null,null,null,null,null,null,null,null,null,null,"分",null,null,null,"秒"]

{"sheet":"著作権データ (例)","index":3,"n_rows":38,"n_cols":75,"rows_kept":38,"cut":false,"hidden":false,"merged":[[1,1,4,75],[6,1,8,75],[9,1,9,75],[11,1,11,75],[13,1,13,2],[13,3,13,37],[13,38,13,47],[13,48,13,57],[13,58,13,67],[13,68,13,75],[14,68,14,69],[14,70,14,71],[14,72,14,73],[14,74,14,75],[15,1,15,2],[15,3,15,22],[15,23,15,37],[15,38,15,47],[15,48,15,57],[15,58,15,67],[14,1,14,2],[14,3,14,22],[14,23,14,37],[14,38,14,47],[14,48,14,57],[14,58,14,67],[15,68,15,69],[15,70,15,71],[15,72,15,73],[15,74,15,75],[16,74,16,75],[17,1,17,2],[17,3,17,22],[17,23,17,37],[17,38,17,47],[17,48,17,57],[17,58,17,67],[17,68,17,69],[17,70,17,71],[17,72,17,73],[17,74,17,75],[16,1,16,2],[16,3,16,22],[16,23,16,37],[16,38,16,47],[16,48,16,57],[16,58,16,67],[16,68,16,69],[16,70,16,71],[16,72,16,73],[18,74,18,75],[19,1,19,2],[19,3,19,22],[19,23,19,37],[19,38,19,47],[19,48,19,57],[19,58,19,67],[19,68,19,69],[19,70,19,71],[19,72,19,73],[19,74,19,75],[18,1,18,2],[18,3,18,22],[18,23,18,37],[18,38,18,47],[18,48,18,57],[18,58,18,67],[18,68,18,69],[18,70,18,71],[18,72,18,73],[20,74,20,75],[21,1,21,2],[21,3,21,22],[21,23,21,37],[21,38,21,47],[21,48,21,57],[21,58,21,67],[21,68,21,69],[21,70,21,71],[21,72,21,73],[21,74,21,75],[20,1,20,2],[20,3,20,22],[20,23,20,37],[20,38,20,47],[20,48,20,57],[20,58,20,67],[20,68,20,69],[20,70,20,71],[20,72,20,73],[22,74,22,75],[23,1,23,2],[23,3,23,22],[23,23,23,37],[23,38,23,47],[23,48,23,57],[23,58,23,67],[23,68,23,69],[23,70,23,71],[23,72,23,73],[23,74,23,75],[22,1,22,2],[22,3,22,22],[22,23,22,37],[22,38,22,47],[22,48,22,57],[22,58,22,67],[22,68,22,69],[22,70,22,71],[22,72,22,73],[24,74,24,75],[25,1,25,2],[25,3,25,22],[25,23,25,37],[25,38,25,47],[25,48,25,57],[25,58,25,67],[25,68,25,69],[25,70,25,71],[25,72,25,73],[25,74,25,75],[24,1,24,2],[24,3,24,22],[24,23,24,37],[24,38,24,47],[24,48,24,57],[24,58,24,67],[24,68,24,69],[24,70,24,71],[24,72,24,73],[26,74,26,75],[27,1,27,2],[27,3,27,22],[27,23,27,37],[27,38,27,47],[27,48,27,57],[27,58,27,67],[27,68,27,69],[27,70,27,71],[27,72,27,73],[27,74,27,75],[26,1,26,2],[26,3,26,22],[26,23,26,37],[26,38,26,47],[26,48,26,57],[26,58,26,67],[26,68,26,69],[26,70,26,71],[26,72,26,73],[28,74,28,75],[29,1,29,2],[29,3,29,22],[29,23,29,37],[29,38,29,47],[29,48,29,57],[29,58,29,67],[29,68,29,69],[29,70,29,71],[29,72,29,73],[29,74,29,75],[28,1,28,2],[28,3,28,22],[28,23,28,37],[28,38,28,47],[28,48,28,57],[28,58,28,67],[28,68,28,69],[28,70,28,71],[28,72,28,73],[30,74,30,75],[31,1,31,2],[31,3,31,22],[31,23,31,37],[31,38,31,47],[31,48,31,57],[31,58,31,67],[31,68,31,69],[31,70,31,71],[31,72,31,73],[31,74,31,75],[30,1,30,2],[30,3,30,22],[30,23,30,37],[30,38,30,47],[30,48,30,57],[30,58,30,67],[30,68,30,69],[30,70,30,71],[30,72,30,73],[32,74,32,75],[33,1,33,2],[33,3,33,22],[33,23,33,37],[33,38,33,47],[33,48,33,57],[33,58,33,67],[33,68,33,69],[33,70,33,71],[33,72,33,73],[33,74,33,75],[32,1,32,2],[32,3,32,22],[32,23,32,37],[32,38,32,47],[32,48,32,57],[32,58,32,67],[32,68,32,69],[32,70,32,71],[32,72,32,73],[34,74,34,75],[35,1,35,2],[35,3,35,22],[35,23,35,37],[35,38,35,47],[35,48,35,57],[35,58,35,67],[35,68,35,69],[35,70,35,71],[35,72,35,73],[35,74,35,75],[34,1,34,2],[34,3,34,22],[34,23,34,37],[34,38,34,47],[34,48,34,57],[34,58,34,67],[34,68,34,69],[34,70,34,71],[34,72,34,73],[37,74,37,75],[36,68,36,69],[36,70,36,71],[36,72,36,73],[36,74,36,75],[37,1,37,2],[37,3,37,22],[37,23,37,37],[37,38,37,47],[37,48,37,57],[37,58,37,67],[36,1,36,2],[36,3,36,22],[36,23,36,37],[36,38,36,47],[36,48,36,57],[36,58,36,67],[37,68,37,69],[37,70,37,71],[37,72,37,73]]}
[]
[null,"＊著作権申請用紙の入力を行います。著作権の申請は原語表記・フルネームが基本です。\nここで入力されたままJASRACへ申請書を送付しますので不備がある場合は再提出となります。\n楽章やタイトルなどスコアを参照に正確な入力をお願いします。"]
[]
[]
[]
[]
[null,"アンサンブルコンテスト参加申込書入力シート【著作権申請データ】入力参考"]
[]
[]
[null,"（選択式のものはありません。■色のセルに直接入力ください）"]
[]
[null,"２チームでエントリーされる団体様も、このシート1枚にまとめて入力ください。\n・組曲については，楽章ごと入力してください。楽章数がある場合は，数字も必要です。\n・メドレー曲等については演奏する楽曲ごと入力してください。\n・外国曲・外国人作曲者や編曲者は原語表記(英語など)で、かつ、フルネームでお願いします。\n・表示および印字のできない外字等は，プリントアウトしたものに手書きで書き加えて下さい。"]
[]
[null,null,null,"　曲　名　※曲名を左に入力。組曲の場合，楽章名は右に。楽章数・タイトル省略不可",null,null,null,null,null,null,null,null,null,null,null,null,null,null,null,null,null,null,null,null,null,null,null,null,null,null,null,null,null,null,null,null,null,null,"作曲者",null,null,null,null,null,null,null,null,null,"編曲者",null,null,null,null,null,null,null,null,null,"出版社",null,null,null,null,null,null,null,null,null,"演奏時間"]
[null,"例",null,"高度な技術への指標",null,null,null,null,null,null,null,null,null,null,null,null,null,null,null,null,null,null,null,null,null,null,null,null,null,null,null,null,null,null,null,null,null,null,"河辺　公一",null,null,null,null,null,null,null,null,null,null,null,null,null,null,null,null,null,null,null,"全日本吹奏楽連盟",null,null,null,null,null,null,null,null,null,"3",null,"分",null,"40",null,"秒"]
[null,"例",null,"FESTE ROMANE",null,null,null,null,null,null,null,null,null,null,null,null,null,null,null,null,null,null,null,"Ⅰ. Circenses",null,null,null,null,null,null,null,null,null,null,null,null,null,null,"Ottorini Respighi",null,null,null,null,null,null,null,null,null,"森田一浩",null,null,null,null,null,null,null,null,null,"ブレーンミュージック",null,null,null,null,null,null,null,null,null,2,null,"分",null,"00",null,"秒"]
[null,"例",null,null,null,null,null,null,null,null,null,null,null,null,null,null,null,null,null,null,null,null,null,"Ⅳ. La Befana",null,null,null,null,null,null,null,null,null,null,null,null,null,null,"Ottorini Respighi",null,null,null,null,null,null,null,null,null,"森田一浩",null,null,null,null,null,null,null,null,null,"ブレーンミュージック",null,null,null,null,null,null,null,null,null,"5",null,"分",null,"15",null,"秒"]
[null,null,null,"曲名",null,null,null,null,null,null,null,null,null,null,null,null,null,null,null,null,null,null,null,"楽章名",null,null,null,null,null,null,null,null,null,null,null,null,null,null,"作曲者",null,null,null,null,null,null,null,null,null,"編曲者",null,null,null,null,null,null,null,null,null,"出版社",null,null,null,null,null,null,null,null,null,null,null,"分",null,null,null,"秒"]
[null,1,null,"カーペンターズ・フォーエバー",null,null,null,null,null,null,null,null,null,null,null,null,null,null,null,null,null,null,null,"Sing",null,null,null,null,null,null,null,null,null,null,null,null,null,null,"Joe Raposo",null,null,null,null,null,null,null,null,null,"真島　俊夫",null,null,null,null,null,null,null,null,null,"ヤマハミュージックメディア",null,null,null,null,null,null,null,null,null,"1",null,"分",null,"11",null,"秒"]
[null,2,null,null,null,null,null,null,null,null,null,null,null,null,null,null,null,null,null,null,null,null,null,"We've Only Just Begun",null,null,null,null,null,null,null,null,null,null,null,null,null,null,"Roger Nichols & Paul Williams",null,null,null,null,null,null,null,null,null,"真島　俊夫",null,null,null,null,null,null,null,null,null,"ヤマハミュージックメディア",null,null,null,null,null,null,null,null,null,"2",null,"分",null,"22",null,"秒"]
[null,3,null,null,null,null,null,null,null,null,null,null,null,null,null,null,null,null,null,null,null,null,null,"Top of the World",null,null,null,null,null,null,null,null,null,null,null,null,null,null,"John Bettis & Richard Carpenter",null,null,null,null,null,null,null,null,null,"真島　俊夫",null,null,null,null,null,null,null,null,null,"ヤマハミュージックメディア",null,null,null,null,null,null,null,null,null,"3",null,"分",null,"33",null,"秒"]
[null,4,null,null,null,null,null,null,null,null,null,null,null,null,null,null,null,null,null,null,null,null,null,"(They Long To Be)Close to You",null,null,null,null,null,null,null,null,null,null,null,null,null,null,"Hal David & Burt Bacharach",null,null,null,null,null,null,null,null,null,"真島　俊夫",null,null,null,null,null,null,null,null,null,"ヤマハミュージックメディア",null,null,null,null,null,null,null,null,null,"4",null,"分",null,"44",null,"秒"]
[null,5,null,null,null,null,null,null,null,null,null,null,null,null,null,null,null,null,null,null,null,null,null,"Superstar",null,null,null,null,null,null,null,null,null,null,null,null,null,null,"Leon Russell & Bonnie Bramlett",null,null,null,null,null,null,null,null,null,"真島　俊夫",null,null,null,null,null,null,null,null,null,"ヤマハミュージックメディア",null,null,null,null,null,null,null,null,null,"5",null,"分",null,"55",null,"秒"]
[null,6,null,null,null,null,null,null,null,null,null,null,null,null,null,null,null,null,null,null,null,null,null,"For All We Know",null,null,null,null,null,null,null,null,null,null,null,null,null,null,"Fred Karlin & James Griffin & Robb Wilson",null,null,null,null,null,null,null,null,null,"真島　俊夫",null,null,null,null,null,null,null,null,null,"ヤマハミュージックメディア",null,null,null,null,null,null,null,null,null,"6",null,"分",null,"66",null,"秒"]
[null,7,null,"Belkis, Regina di Saba",null,null,null,null,null,null,null,null,null,null,null,null,null,null,null,null,null,null,null,"Il sogno di Salomone",null,null,null,null,null,null,null,null,null,null,null,null,null,null,"Ottorini Respighi",null,null,null,null,null,null,null,null,null,"石津谷　治法",null,null,null,null,null,null,null,null,null,"フォスターミュージック",null,null,null,null,null,null,null,null,null,"7",null,"分",null,"77",null,"秒"]
[null,8,null,null,null,null,null,null,null,null,null,null,null,null,null,null,null,null,null,null,null,null,null,"La danza di Belkis all'aurora",null,null,null,null,null,null,null,null,null,null,null,null,null,null,"Ottorini Respighi",null,null,null,null,null,null,null,null,null,"石津谷　治法",null,null,null,null,null,null,null,null,null,"フォスターミュージック",null,null,null,null,null,null,null,null,null,"8",null,"分",null,"88",null,"秒"]
[null,9,null,null,null,null,null,null,null,null,null,null,null,null,null,null,null,null,null,null,null,null,null,"Danza guerresca",null,null,null,null,null,null,null,null,null,null,null,null,null,null,"Ottorini Respighi",null,null,null,null,null,null,null,null,null,"石津谷　治法",null,null,null,null,null,null,null,null,null,"フォスターミュージック",null,null,null,null,null,null,null,null,null,"9",null,"分",null,"99",null,"秒"]
[null,10,null,null,null,null,null,null,null,null,null,null,null,null,null,null,null,null,null,null,null,null,null,"Danza orgiastica",null,null,null,null,null,null,null,null,null,null,null,null,null,null,"Ottorini Respighi",null,null,null,null,null,null,null,null,null,"石津谷　治法",null,null,null,null,null,null,null,null,null,"フォスターミュージック",null,null,null,null,null,null,null,null,null,"10",null,"分",null,"00",null,"秒"]
[null,11,null,null,null,null,null,null,null,null,null,null,null,null,null,null,null,null,null,null,null,null,null,null,null,null,null,null,null,null,null,null,null,null,null,null,null,null,null,null,null,null,null,null,null,null,null,null,null,null,null,null,null,null,null,null,null,null,null,null,null,null,null,null,null,null,null,null,null,null,"分",null,null,null,"秒"]
[null,12,null,null,null,null,null,null,null,null,null,null,null,null,null,null,null,null,null,null,null,null,null,null,null,null,null,null,null,null,null,null,null,null,null,null,null,null,null,null,null,null,null,null,null,null,null,null,null,null,null,null,null,null,null,null,null,null,null,null,null,null,null,null,null,null,null,null,null,null,"分",null,null,null,"秒"]
[null,13,null,null,null,null,null,null,null,null,null,null,null,null,null,null,null,null,null,null,null,null,null,null,null,null,null,null,null,null,null,null,null,null,null,null,null,null,null,null,null,null,null,null,null,null,null,null,null,null,null,null,null,null,null,null,null,null,null,null,null,null,null,null,null,null,null,null,null,null,"分",null,null,null,"秒"]
[null,14,null,null,null,null,null,null,null,null,null,null,null,null,null,null,null,null,null,null,null,null,null,null,null,null,null,null,null,null,null,null,null,null,null,null,null,null,null,null,null,null,null,null,null,null,null,null,null,null,null,null,null,null,null,null,null,null,null,null,null,null,null,null,null,null,null,null,null,null,"分",null,null,null,"秒"]
[null,15,null,null,null,null,null,null,null,null,null,null,null,null,null,null,null,null,null,null,null,null,null,null,null,null,null,null,null,null,null,null,null,null,null,null,null,null,null,null,null,null,null,null,null,null,null,null,null,null,null,null,null,null,null,null,null,null,null,null,null,null,null,null,null,null,null,null,null,null,"分",null,null,null,"秒"]
[null,16,null,null,null,null,null,null,null,null,null,null,null,null,null,null,null,null,null,null,null,null,null,null,null,null,null,null,null,null,null,null,null,null,null,null,null,null,null,null,null,null,null,null,null,null,null,null,null,null,null,null,null,null,null,null,null,null,null,null,null,null,null,null,null,null,null,null,null,null,"分",null,null,null,"秒"]
[null,17,null,null,null,null,null,null,null,null,null,null,null,null,null,null,null,null,null,null,null,null,null,null,null,null,null,null,null,null,null,null,null,null,null,null,null,null,null,null,null,null,null,null,null,null,null,null,null,null,null,null,null,null,null,null,null,null,null,null,null,null,null,null,null,null,null,null,null,null,"分",null,null,null,"秒"]
[null,18,null,null,null,null,null,null,null,null,null,null,null,null,null,null,null,null,null,null,null,null,null,null,null,null,null,null,null,null,null,null,null,null,null,null,null,null,null,null,null,null,null,null,null,null,null,null,null,null,null,null,null,null,null,null,null,null,null,null,null,null,null,null,null,null,null,null,null,null,"分",null,null,null,"秒"]
[null,19,null,null,null,null,null,null,null,null,null,null,null,null,null,null,null,null,null,null,null,null,null,null,null,null,null,null,null,null,null,null,null,null,null,null,null,null,null,null,null,null,null,null,null,null,null,null,null,null,null,null,null,null,null,null,null,null,null,null,null,null,null,null,null,null,null,null,null,null,"分",null,null,null,"秒"]
[null,20,null,null,null,null,null,null,null,null,null,null,null,null,null,null,null,null,null,null,null,null,null,null,null,null,null,null,null,null,null,null,null,null,null,null,null,null,null,null,null,null,null,null,null,null,null,null,null,null,null,null,null,null,null,null,null,null,null,null,null,null,null,null,null,null,null,null,null,null,"分",null,null,null,"秒"]

{"sheet":"印刷","index":4,"n_rows":17,"n_cols":2,"rows_kept":17,"cut":false,"hidden":false,"merged":[[1,1,1,87],[16,1,16,87]]}
[]
[null,"入力お疲れ様でした。\nここでは入力したデータを印刷します。\n下記ボタンにて必要書類をプリントアウトしてください。"]
[]
[]
[]
[]
[]
[]
[]
[]
[]
[]
[]
[]
[]
[]
[null,"必要に応じて，各ボタンよりプリントアウトして確認の上，大会申込日にご提出ください。"]

{"sheet":"団体精算書","index":5,"n_rows":35,"n_cols":49,"rows_kept":35,"cut":false,"hidden":true,"merged":[[23,45,23,47],[23,48,23,50],[17,18,17,24],[19,18,19,24],[17,25,17,29],[19,25,19,29],[24,21,24,23],[24,42,24,44],[24,45,24,47],[24,48,24,50],[28,15,28,20],[28,21,28,23],[28,24,28,29],[28,30,28,32],[28,33,28,35],[28,36,28,38],[28,39,28,41],[28,42,28,44],[23,24,23,29],[1,1,1,53],[3,2,3,52],[5,5,5,11],[5,12,5,49],[7,5,7,18],[7,19,7,49],[8,19,8,49],[8,5,8,9],[8,10,8,12],[8,13,8,18],[13,23,13,26],[12,3,13,4],[12,18,12,22],[13,27,13,31],[13,32,13,36],[13,37,13,41],[13,42,13,46],[13,47,13,51],[12,5,13,17],[13,18,13,22],[12,27,12,31],[12,37,12,41],[12,47,12,51],[16,25,16,29],[16,34,16,38],[16,44,16,48],[19,39,19,43],[19,44,19,48],[22,3,22,4],[22,5,22,17],[16,3,19,4],[16,5,19,17],[17,30,17,33],[19,30,19,33],[17,34,17,38],[19,34,19,38],[17,39,17,43],[17,44,17,48],[25,5,25,14],[25,15,25,20],[25,33,25,35],[25,36,25,38],[25,39,25,41],[25,42,25,44],[25,45,25,47],[25,48,25,50],[24,24,24,29],[24,30,24,32],[24,33,24,35],[24,36,24,38],[24,39,24,41],[24,5,24,14],[24,15,24,20],[25,21,25,23],[25,24,25,29],[25,30,25,32],[26,45,26,47],[26,48,26,50],[27,10,27,14],[27,15,27,20],[27,21,27,23],[27,24,27,29],[27,30,27,32],[27,33,27,35],[27,36,27,38],[27,39,27,41],[27,42,27,44],[27,45,27,47],[27,48,27,50],[26,30,26,32],[26,33,26,35],[26,36,26,38],[26,39,26,41],[26,42,26,44],[26,10,26,14],[26,15,26,20],[26,21,26,23],[26,24,26,29],[30,48,30,50],[30,23,30,32],[30,33,30,35],[30,36,30,38],[30,39,30,41],[30,42,30,44],[30,45,30,47],[26,5,27,9],[23,33,23,35],[23,36,23,38],[23,39,23,41],[23,42,23,44],[28,45,28,47],[28,48,28,50],[29,15,29,20],[29,24,29,29],[29,33,29,35],[29,36,29,38],[29,39,29,41],[29,42,29,44],[29,45,29,47],[29,48,29,50],[28,5,28,14],[29,5,29,14]]}
[]
[null,"大会当日にステージ配置図・チケット残券と併せてお持ちください。"]
[]
[null,null,"団　体　精　算　書"]
[]
[null,null,null,null,null,"事業名",null,null,null,null,null,null,{"$f":"\"第 \"&YEAR(TODAY())-1974&\" 回　九州アンサンブルコンテスト福岡県大会筑豊支部予選\"","v":"第 49 回　九州アンサンブルコンテスト福岡県大会筑豊支部予選"}]
[]
[null,null,null,null,null,"出演順",null,null,null,null,null,null,null,null,null,null,null,null,null,"団体名"]
[null,null,null,null,null,{"$f":"団体データ!K29","v":0},null,null,null,null,"－",null,null,null,null,null,null,null,null,{"$f":"団体データ!K15","v":0}]
[]
[null,null,null,null,null,null,"＊塗りつぶされた部分を入力してプリントアウトされた用紙をご提出ください。"]
[]
[null,null,null,"①",null,"リボン・プログラム数",null,null,null,null,null,null,null,null,null,null,null,null,"事前登録数",null,null,null,null,null,null,null,null,"当日欠席者",null,null,null,null,null,null,null,null,null,"引率者",null,null,null,null,null,null,null,null,null,"配布数"]
[null,null,null,null,null,null,null,null,null,null,null,null,null,null,null,null,null,null,{"$f":"団体データ!M31+団体データ!AA31","v":0},null,null,null,null,"-",null,null,null,null,null,null,null,null,"＋",null,null,null,null,3,null,null,null,null,"＝",null,null,null,null,{"$f":"S14-AB14+AL14","v":3}]
[]
[]
[null,null,null,"②",null,"チケット精算（残券確認）",null,null,null,null,null,null,null,null,null,null,null,null,null,null,null,null,null,null,null,"持ち帰り数",null,null,null,null,null,null,null,null,"販売数",null,null,null,null,null,null,null,null,null,"残券数"]
[null,null,null,null,null,null,null,null,null,null,null,null,null,null,null,null,null,null,"学生券",null,null,null,null,null,null,null,null,null,null,null,"-",null,null,null,null,null,null,null,null,"＝",null,null,null,null,{"$f":"Z18-AI18","v":0}]
[]
[null,null,null,null,null,null,null,null,null,null,null,null,null,null,null,null,null,null,"一般券",null,null,null,null,null,null,null,null,null,null,null,"-",null,null,null,null,null,null,null,null,"＝",null,null,null,null,{"$f":"Z20-AI20","v":0}]
[]
[]
[null,null,null,"③",null,"納入金額確認"]
[null,null,null,null,null,null,null,null,null,null,null,null,null,null,null,null,null,null,null,null,null,null,null,null,"(登録者－公的援助生徒数)",null,null,null,null,null,null,null,null,null,null,null,"万",null,null,"千",null,null,"百",null,null,"十",null,null,"一"]
[null,null,null,{"$f":"P25*Y25","v":0},null,"参加料",null,null,null,null,null,null,null,null,null,4000,null,null,null,null,null,"×",null,null,{"$f":"Y26","v":0},null,null,null,null,null,"＝",null,null,{"$f":"IF(ISERROR(MID(D25,LEN(D25)-5,1)),\"\",MID(D25,LEN(D25)-5,1))","v":""},null,null,{"$f":"IF(ISERROR(MID(D25,LEN(D25)-4,1)),\"\",MID(D25,LEN(D25)-4,1))","v":""},null,null,{"$f":"IF(ISERROR(MID(D25,LEN(D25)-3,1)),\"\",MID(D25,LEN(D25)-3,1))","v":""},null,null,{"$f":"IF(ISERROR(MID(D25,LEN(D25)-2,1)),\"\",MID(D25,LEN(D25)-2,1))","v":""},null,null,0,null,null,0]
[null,null,null,{"$f":"P26*Y26","v":0},null,"著作権料",null,null,null,null,null,null,null,null,null,700,null,null,null,null,null,"×",null,null,{"$f":"団体データ!K30","v":0},null,null,null,null,null,"＝",null,null,{"$f":"IF(ISERROR(MID(D26,LEN(D26)-5,1)),\"\",MID(D26,LEN(D26)-5,1))","v":""},null,null,{"$f":"IF(ISERROR(MID(D26,LEN(D26)-4,1)),\"\",MID(D26,LEN(D26)-4,1))","v":""},null,null,{"$f":"IF(ISERROR(MID(D26,LEN(D26)-3,1)),\"\",MID(D26,LEN(D26)-3,1))","v":""},null,null,{"$f":"IF(ISERROR(MID(D26,LEN(D26)-2,1)),\"\",MID(D26,LEN(D26)-2,1))","v":""},null,null,0,null,null,0]
[null,null,null,0,null,"前売り\nチケット",null,null,null,null,"学生券",null,null,null,null,800,null,null,null,null,null,"×",null,null,{"$f":"AI18","v":0},null,null,null,null,null,"＝",null,null,"",null,null,"",null,null,"",null,null,"",null,null,0,null,null,0]
[null,null,null,0,null,null,null,null,null,null,"一般券",null,null,null,null,1000,null,null,null,null,null,"×",null,null,{"$f":"AI20","v":0},null,null,null,null,null,"＝",null,null,"",null,null,"",null,null,"",null,null,"",null,null,0,null,null,0]
[null,null,null,0,null,"登録外部員チケット",null,null,null,null,null,null,null,null,null,500,null,null,null,null,null,"×",null,null,{"$f":"団体データ!K33","v":0},null,null,null,null,null,"＝",null,null,"",null,null,"",null,null,"",null,null,"",null,null,0,null,null,0]
[null,null,null,0,null,"ピアノ使用料",null,null,null,null,null,null,null,null,null,3000,null,null,null,null,null,null,null,null,0,null,null,null,null,null,null,null,null,"",null,null,"",null,null,"",null,null,"",null,null,0,null,null,0]
[null,null,null,{"$f":"SUM(D25:D30)","v":0},null,null,null,null,null,null,null,null,null,null,null,null,null,null,null,null,null,null,null,"合計",null,null,null,null,null,null,null,null,null,"",null,null,"",null,null,"",null,null,"",null,null,0,null,null,0]
[]
[null,null,null,null,null,"※出演当日の団体受付にて、提出してください。"]
[null,null,null,null,null,"※前売り券の残券と、ステージ配置図（A４で２枚）をご持参下さい。"]
[null,null,null,null,null,"※登録外部員チケットは、代表者会議にて販売・お渡しとなります。"]

{"sheet":"提出書類確認","index":6,"n_rows":41,"n_cols":52,"rows_kept":41,"cut":false,"hidden":false,"merged":[[38,51,38,52],[38,3,38,4],[38,5,38,14],[38,15,38,20],[38,30,38,32],[38,33,38,38],[38,21,38,29],[38,39,38,47],[41,22,41,23],[41,6,41,7],[41,38,41,39],[41,40,41,49],[41,8,41,18],[41,24,41,34],[38,48,38,50],[40,4,40,13],[40,14,40,22],[40,23,40,25],[40,26,40,51],[1,1,1,53],[28,15,28,27],[28,28,28,32],[28,33,28,34],[28,35,28,36],[37,37,37,50],[37,51,37,52],[35,15,37,36],[35,5,37,14],[35,3,37,4],[35,51,35,52],[36,51,36,52],[36,37,36,50],[34,51,34,52],[33,28,33,50],[34,28,34,50],[33,15,34,27],[35,37,35,50],[33,51,33,52],[33,5,34,14],[33,3,34,4],[32,3,32,4],[32,5,32,14],[32,15,32,36],[26,3,28,4],[27,15,27,27],[27,28,27,32],[32,37,32,50],[32,51,32,52],[29,51,29,52],[29,15,29,27],[29,28,29,32],[29,33,29,34],[29,35,29,36],[26,51,26,52],[27,51,27,52],[28,51,28,52],[27,33,27,34],[28,37,28,50],[27,35,27,50],[30,51,30,52],[31,51,31,52],[30,3,30,4],[30,5,30,14],[30,15,30,36],[30,37,30,50],[26,15,26,24],[26,25,26,27],[19,5,20,14],[19,3,20,4],[19,15,19,50],[19,51,19,52],[23,15,23,50],[23,51,23,52],[23,3,23,4],[23,5,23,14],[22,3,22,4],[22,5,22,14],[22,15,22,50],[22,51,22,52],[3,2,3,52],[5,5,5,11],[5,12,5,49],[7,5,7,11],[7,12,7,49],[10,3,10,4],[10,5,10,14],[10,51,10,52],[10,15,10,50],[31,3,31,4],[31,5,31,14],[31,37,31,50],[11,3,13,4],[11,5,13,14],[11,15,11,50],[13,15,13,50],[21,3,21,4],[21,5,21,14],[21,15,21,50],[29,3,29,4],[29,5,29,14],[29,37,29,50],[18,5,18,14],[20,15,20,50],[18,3,18,4],[26,28,26,32],[26,33,26,34],[26,35,26,36],[26,37,26,50],[26,5,28,14],[18,15,18,50],[14,5,17,14],[14,3,17,4],[31,15,31,27],[31,28,31,32],[31,33,31,34],[31,35,31,36],[11,51,11,52],[12,15,12,50],[12,51,12,52],[13,51,13,52],[17,15,17,50],[17,51,17,52],[20,51,20,52],[18,51,18,52],[15,15,15,50],[15,51,15,52],[16,15,16,50],[16,51,16,52],[14,15,14,50],[14,51,14,52],[21,51,21,52]]}
[]
[null,"提出前に書類の確認を行い，理事会当日にお持ちください。"]
[]
[null,null,"提　出　書　類　確　認　用　紙"]
[]
[null,null,null,null,null,"団体名",null,null,null,null,null,null,{"$f":"団体データ!K15","v":0}]
[]
[null,null,null,null,null,"会議名",null,null,null,null,null,null,"第4回 理事会（アンサンブルコンテスト申し込み）"]
[]
[null,null,null,"提出書類・・・以下の順番に並べて提出してください。"]
[null,null,null,"①",null,"本確認用紙",null,null,null,null,null,null,null,null,null,"必要書類の確認を行ってください。以下、レ点にてチェック",null,null,null,null,null,null,null,null,null,null,null,null,null,null,null,null,null,null,null,null,null,null,null,null,null,null,null,null,null,null,null,null,null,null,null,"□"]
[null,null,null,"②",null,"参加申込書",null,null,null,null,null,null,null,null,null,"必要事項は記入されていますか？",null,null,null,null,null,null,null,null,null,null,null,null,null,null,null,null,null,null,null,null,null,null,null,null,null,null,null,null,null,null,null,null,null,null,null,"□"]
[null,null,null,null,null,null,null,null,null,null,null,null,null,null,null,"所属長・責任者の２カ所に捺印されていますか？",null,null,null,null,null,null,null,null,null,null,null,null,null,null,null,null,null,null,null,null,null,null,null,null,null,null,null,null,null,null,null,null,null,null,null,"□"]
[null,null,null,null,null,null,null,null,null,null,null,null,null,null,null,"原本＋コピーの２枚×チーム数ありますか？",null,null,null,null,null,null,null,null,null,null,null,null,null,null,null,null,null,null,null,null,null,null,null,null,null,null,null,null,null,null,null,null,null,null,null,"□"]
[null,null,null,"③",null,"著作権申請書",null,null,null,null,null,null,null,null,null,"必要事項は記入されていますか？（原語表記・楽章・メドレー詳細など）",null,null,null,null,null,null,null,null,null,null,null,null,null,null,null,null,null,null,null,null,null,null,null,null,null,null,null,null,null,null,null,null,null,null,null,"□"]
[null,null,null,null,null,null,null,null,null,null,null,null,null,null,null,"大会開催日を手書きにてご記入いただけましたか？　【注】「提出日」ではありません！",null,null,null,null,null,null,null,null,null,null,null,null,null,null,null,null,null,null,null,null,null,null,null,null,null,null,null,null,null,null,null,null,null,null,null,"□"]
[null,null,null,null,null,null,null,null,null,null,null,null,null,null,null,"曲目・作曲者・編曲者・出版社の確認ができるページ\n（スコアの表紙）のコピーはありますか？",null,null,null,null,null,null,null,null,null,null,null,null,null,null,null,null,null,null,null,null,null,null,null,null,null,null,null,null,null,null,null,null,null,null,null,"□"]
[null,null,null,null,null,null,null,null,null,null,null,null,null,null,null,"申請書１枚＋スコアの表紙コピーが１枚×チーム数ありますか？",null,null,null,null,null,null,null,null,null,null,null,null,null,null,null,null,null,null,null,null,null,null,null,null,null,null,null,null,null,null,null,null,null,null,null,"□"]
[null,null,null,"④",null,"アナウンス原稿",null,null,null,null,null,null,null,null,null,"必要事項が記入された原稿が１枚×チーム数ありますか？　※特に読み仮名",null,null,null,null,null,null,null,null,null,null,null,null,null,null,null,null,null,null,null,null,null,null,null,null,null,null,null,null,null,null,null,null,null,null,null,"□"]
[null,null,null,"⑤",null,"出演者名簿",null,null,null,null,null,null,null,null,null,"氏名の誤字・脱字・印刷のない文字の手書き加筆はされていますか？",null,null,null,null,null,null,null,null,null,null,null,null,null,null,null,null,null,null,null,null,null,null,null,null,null,null,null,null,null,null,null,null,null,null,null,"□"]
[null,null,null,null,null,null,null,null,null,null,null,null,null,null,null,"原本＋コピーの２枚×チーム数ありますか？",null,null,null,null,null,null,null,null,null,null,null,null,null,null,null,null,null,null,null,null,null,null,null,null,null,null,null,null,null,null,null,null,null,null,null,"□"]
[null,null,null,"⑥",null,"登録外部員名簿",null,null,null,null,null,null,null,null,null,"【該当団体のみ】生徒氏名の確認および捺印されたもの（原本）が１枚ありますか？",null,null,null,null,null,null,null,null,null,null,null,null,null,null,null,null,null,null,null,null,null,null,null,null,null,null,null,null,null,null,null,null,null,null,null,"□"]
[null,null,null,"⑦",null,"振り込み請求書",null,null,null,null,null,null,null,null,null,"【必要団体のみ】団体名・金額の書かれた用紙が１枚ずつありますか？",null,null,null,null,null,null,null,null,null,null,null,null,null,null,null,null,null,null,null,null,null,null,null,null,null,null,null,null,null,null,null,null,null,null,null,"□"]
[null,null,null,"⑧",null,"最終確認",null,null,null,null,null,null,null,null,null,"①１枚　②2(4)枚　③必要数　④1(2)枚　⑤2(4)枚　⑥１枚　(⑦１枚以上）の順番で並んでいますか？",null,null,null,null,null,null,null,null,null,null,null,null,null,null,null,null,null,null,null,null,null,null,null,null,null,null,null,null,null,null,null,null,null,null,null,"□"]
[]
[null,null,null,"納入金・借用物の確認"]
[null,null,null,"①",null,"参加費\n〔登録者数〕",null,null,null,null,null,null,null,null,null,"１チーム￥5,000円",null,null,null,null,null,null,null,null,null,"×",null,null,{"$f":"団体データ!K30","v":0},null,null,null,null,"チーム",null,"＝",null,{"$f":"AC27*5000","v":0},null,null,null,null,null,null,null,null,null,null,null,null,null,"□"]
[null,null,null,null,null,null,null,null,null,null,null,null,null,null,null,"公的援助生徒数",null,null,null,null,null,null,null,null,null,null,null,null,0,null,null,null,null,"名",null,"吹奏楽祭・フェスティバルのみ",null,null,null,null,null,null,null,null,null,null,null,null,null,null,null,"□"]
[null,null,null,null,null,null,null,null,null,null,null,null,null,null,null,"最終的納入金額",null,null,null,null,null,null,null,null,null,null,null,null,{"$f":"AC27-AC28","v":0},null,null,null,null,"チーム",null,"＝",null,{"$f":"5000*AC29","v":0},null,null,null,null,null,null,null,null,null,null,null,null,null,"□"]
[null,null,null,"②",null,"登録外部員",null,null,null,null,null,null,null,null,null,"１人￥５００円（パンフレット無し）",null,null,null,null,null,null,null,null,null,null,null,null,{"$f":"団体データ!K33","v":0},null,null,null,null,"名",null,"＝",null,{"$f":"AC30*500","v":0},{"$f":"IF(団体データ!#REF!=\"有り\",\"○\",\"\")","v":{"$error":"#REF!"}},{"$f":"IF(団体データ!#REF!=\"有り\",\"○\",\"\")","v":{"$error":"#REF!"}},{"$f":"IF(団体データ!#REF!=\"有り\",\"○\",\"\")","v":{"$error":"#REF!"}},{"$f":"IF(団体データ!#REF!=\"有り\",\"○\",\"\")","v":{"$error":"#REF!"}},{"$f":"IF(団体データ!#REF!=\"有り\",\"○\",\"\")","v":{"$error":"#REF!"}},{"$f":"IF(団体データ!#REF!=\"有り\",\"○\",\"\")","v":{"$error":"#REF!"}},{"$f":"IF(団体データ!#REF!=\"有り\",\"○\",\"\")","v":{"$error":"#REF!"}},{"$f":"IF(団体データ!#REF!=\"有り\",\"○\",\"\")","v":{"$error":"#REF!"}},{"$f":"IF(団体データ!#REF!=\"有り\",\"○\",\"\")","v":{"$error":"#REF!"}},{"$f":"IF(団体データ!#REF!=\"有り\",\"○\",\"\")","v":{"$error":"#REF!"}},{"$f":"IF(団体データ!#REF!=\"有り\",\"○\",\"\")","v":{"$error":"#REF!"}},{"$f":"IF(団体データ!#REF!=\"有り\",\"○\",\"\")","v":{"$error":"#REF!"}},{"$f":"IF(団体データ!#REF!=\"有り\",\"○\",\"\")","v":{"$error":"#REF!"}},"□"]
[null,null,null,"③",null,"著作権料",null,null,null,null,null,null,null,null,null,"事業ごと固定金額（祭：1,500　コン：1,300　アン：700×ﾁｰﾑ　フェス：1,200）",null,null,null,null,null,null,null,null,null,null,null,null,null,null,null,null,null,null,null,null,null,{"$f":"700*団体データ!K30","v":0},null,null,null,null,null,null,null,null,null,null,null,null,null,"□"]
[null,null,null,"④",null,"プログラム購入希望数",null,null,null,null,null,null,null,null,null,"１冊￥５００円",null,null,null,null,null,null,null,null,null,null,null,null,{"$f":"団体データ!$K$34","v":0},null,null,null,null,"冊",null,"＝",null,{"$f":"500*AC32","v":0},null,null,null,null,null,null,null,null,null,null,null,null,null,"□"]
[null,null,null,"⑤",null,"合計金額",null,null,null,null,null,null,null,null,null,"参加費＋登録外部員＋著作権",null,null,null,null,null,null,null,null,null,null,null,null,null,null,null,null,null,null,null,null,null,{"$f":"SUM(AL29:AL32)","v":0},{"$f":"IF(団体データ!#REF!=\"有り\",\"○\",\"\")","v":{"$error":"#REF!"}},{"$f":"IF(団体データ!#REF!=\"有り\",\"○\",\"\")","v":{"$error":"#REF!"}},{"$f":"IF(団体データ!#REF!=\"有り\",\"○\",\"\")","v":{"$error":"#REF!"}},{"$f":"IF(団体データ!#REF!=\"有り\",\"○\",\"\")","v":{"$error":"#REF!"}},{"$f":"IF(団体データ!#REF!=\"有り\",\"○\",\"\")","v":{"$error":"#REF!"}},{"$f":"IF(団体データ!#REF!=\"有り\",\"○\",\"\")","v":{"$error":"#REF!"}},{"$f":"IF(団体データ!#REF!=\"有り\",\"○\",\"\")","v":{"$error":"#REF!"}},{"$f":"IF(団体データ!#REF!=\"有り\",\"○\",\"\")","v":{"$error":"#REF!"}},{"$f":"IF(団体データ!#REF!=\"有り\",\"○\",\"\")","v":{"$error":"#REF!"}},{"$f":"IF(団体データ!#REF!=\"有り\",\"○\",\"\")","v":{"$error":"#REF!"}},{"$f":"IF(団体データ!#REF!=\"有り\",\"○\",\"\")","v":{"$error":"#REF!"}},{"$f":"IF(団体データ!#REF!=\"有り\",\"○\",\"\")","v":{"$error":"#REF!"}},{"$f":"IF(団体データ!#REF!=\"有り\",\"○\",\"\")","v":{"$error":"#REF!"}},"□"]
[null,null,null,"⑥",null,"最終確認",null,null,null,null,null,null,null,null,null,"金額にお間違いはありませんか？",null,null,null,null,null,null,null,null,null,null,null,null,"ない→レ点にてチェック",null,null,null,null,null,null,null,null,null,null,null,null,null,null,null,null,null,null,null,null,null,null,"□"]
[null,null,null,null,null,null,null,null,null,null,null,null,null,null,null,null,null,null,null,null,null,null,null,null,null,null,null,null,"ある→二重線で消して正しい金額に訂正",null,null,null,null,null,null,null,null,null,null,null,null,null,null,null,null,null,null,null,null,null,null,"□"]
[null,null,null,"⑦",null,"振り込み請求書",null,null,null,null,null,null,null,null,null,"吹奏楽連盟からの請求書が必要ですか？",null,null,null,null,null,null,null,null,null,null,null,null,null,null,null,null,null,null,null,null,null,"いいえ，必要ありません。",null,null,null,null,null,null,null,null,null,null,null,null,null,"□"]
[null,null,null,null,null,null,null,null,null,null,null,null,null,null,null,null,null,null,null,null,null,null,null,null,null,null,null,null,null,null,null,null,null,null,null,null,null,"はい，持参しました。",null,null,null,null,null,null,null,null,null,null,null,null,null,"□"]
[null,null,null,null,null,null,null,null,null,null,null,null,null,null,null,null,null,null,null,null,null,null,null,null,null,null,null,null,null,null,null,null,null,null,null,null,null,"はい，しかし忘れました。",null,null,null,null,null,null,null,null,null,null,null,null,null,"□"]
[null,null,null,"⑧",null,"借用物",null,null,null,null,null,null,null,null,null,"ピアノ椅子",null,null,null,null,null,"Aチーム",null,null,null,null,null,null,null,null,{"$f":"IF(団体データ!Q35=\"有り\",\"○\",\"\")","v":""},null,null,"ピアノ椅子",null,null,null,null,null,"Bチーム",null,null,null,null,null,null,null,null,{"$f":"IF(団体データ!AA35=\"有り\",\"○\",\"\")","v":""},null,null,"□"]
[null,null,null,"事務局への連絡"]
[null,null,null,null,"楽器搬入車両を",null,null,null,null,null,null,null,null,null,{"$f":"団体データ!K36","v":"使用します"},null,null,null,null,null,null,null,null,{"$f":"IF(O41=\"使用します\",\"→\",\" \")","v":"→"},null,null,{"$f":"IF(O41=\"使用します\",\"(　トラック　・　自家用車等　）いずれかに○\",\" \")","v":"(　トラック　・　自家用車等　）いずれかに○"}]

{"sheet":"参加申込書","index":7,"n_rows":43,"n_cols":118,"rows_kept":43,"cut":false,"hidden":false,"merged":[[40,75,40,89],[40,90,40,91],[40,92,40,110],[37,75,37,78],[37,79,37,114],[38,75,38,81],[38,82,38,83],[38,84,38,89],[38,90,38,91],[38,92,38,110],[39,75,39,78],[39,79,39,114],[34,67,34,74],[34,75,34,102],[34,103,34,105],[35,67,35,74],[35,75,35,92],[35,93,35,94],[36,67,36,74],[36,75,36,81],[36,82,36,83],[36,84,36,89],[36,90,36,91],[36,92,36,110],[32,104,32,106],[32,107,32,108],[32,109,32,110],[32,111,32,112],[32,113,32,114],[32,115,32,116],[32,117,32,118],[33,67,33,74],[33,75,33,102],[29,60,29,118],[30,82,30,83],[30,84,30,86],[30,87,30,93],[30,94,30,95],[30,96,30,98],[30,99,30,106],[30,107,30,108],[31,60,31,118],[27,60,27,118],[28,61,28,80],[28,82,28,83],[28,84,28,86],[28,87,28,93],[28,94,28,95],[28,96,28,98],[28,99,28,106],[28,107,28,108],[19,60,19,65],[19,66,19,69],[19,70,19,92],[19,93,19,96],[19,97,19,118],[20,60,20,65],[20,66,20,69],[20,70,20,92],[20,93,20,96],[20,97,20,118],[17,66,17,102],[17,103,17,109],[17,110,17,112],[17,113,17,114],[17,115,17,116],[17,117,17,118],[18,60,18,65],[18,66,18,69],[18,70,18,92],[18,93,18,96],[18,97,18,118],[13,60,17,65],[13,66,13,102],[13,103,13,109],[13,110,13,112],[13,113,13,114],[13,115,13,116],[13,117,13,118],[14,66,14,102],[14,103,14,109],[14,110,14,112],[14,113,14,114],[14,115,14,116],[14,117,14,118],[15,66,15,102],[15,103,15,109],[15,110,15,112],[15,113,15,114],[15,115,15,116],[15,117,15,118],[16,66,16,102],[16,103,16,109],[16,110,16,112],[16,113,16,114],[16,115,16,116],[16,117,16,118],[9,60,12,65],[9,66,10,71],[9,72,10,109],[9,110,10,118],[11,66,12,71],[11,72,12,109],[11,110,12,112],[11,113,12,114],[11,115,12,116],[11,117,12,118],[1,61,1,118],[3,60,3,118],[4,60,4,118],[5,60,5,118],[6,60,6,65],[6,66,6,118],[7,60,7,65],[7,66,7,118],[8,60,8,65],[8,66,8,91],[8,92,8,96],[8,97,8,118],[6,0,6,5],[7,0,7,5],[1,1,1,58],[3,0,3,58],[4,0,4,58],[5,0,5,58],[6,6,6,58],[7,6,7,58],[8,0,8,5],[8,6,8,31],[8,32,8,36],[8,37,8,58],[11,6,12,11],[11,12,12,49],[9,6,10,11],[9,0,12,5],[9,50,10,58],[11,57,12,58],[11,53,12,54],[11,50,12,52],[11,55,12,56],[9,12,10,49],[13,50,13,52],[15,43,15,49],[15,50,15,52],[13,53,13,54],[13,55,13,56],[13,57,13,58],[14,43,14,49],[14,50,14,52],[14,53,14,54],[14,55,14,56],[14,57,14,58],[15,53,15,54],[15,55,15,56],[15,57,15,58],[13,43,13,49],[21,0,22,19],[23,25,24,58],[20,0,20,5],[20,6,20,9],[20,10,20,32],[20,33,20,36],[20,37,20,58],[16,50,16,52],[16,53,16,54],[16,55,16,56],[16,57,16,58],[17,43,17,49],[17,50,17,52],[17,53,17,54],[17,55,17,56],[17,57,17,58],[13,0,17,5],[13,6,13,42],[14,6,14,42],[15,6,15,42],[16,6,16,42],[17,6,17,42],[16,43,16,49],[18,0,18,5],[21,127,21,133],[21,134,21,135],[21,21,22,24],[21,25,22,34],[21,35,22,36],[21,37,22,48],[23,21,24,24],[25,127,25,134],[25,21,25,24],[25,25,25,37],[25,39,25,40],[25,41,25,57],[21,60,22,79],[21,81,22,84],[21,85,22,94],[21,95,22,96],[21,97,22,108],[23,81,24,84],[23,85,24,118],[25,81,25,84],[25,85,25,97],[25,99,25,100],[25,101,25,117],[27,0,27,58],[28,1,28,20],[28,22,28,23],[28,24,28,26],[28,27,28,33],[28,34,28,35],[28,36,28,38],[28,39,28,46],[34,43,34,45],[32,55,32,56],[32,53,32,54],[28,47,28,48],[29,0,29,58],[30,22,30,23],[30,24,30,26],[30,27,30,33],[30,34,30,35],[30,36,30,38],[30,39,30,46],[30,47,30,48],[32,57,32,58],[31,0,31,58],[33,7,33,14],[34,7,34,14],[35,7,35,14],[35,15,35,32],[35,33,35,34],[36,7,36,14],[36,15,36,21],[36,22,36,23],[36,24,36,29],[36,30,36,31],[36,32,36,50],[39,15,39,18],[39,19,39,54],[40,15,40,29],[40,30,40,31],[40,32,40,50],[32,44,32,46],[32,47,32,48],[32,49,32,50],[32,51,32,52],[37,15,37,18],[37,19,37,54],[38,15,38,21],[38,22,38,23],[38,24,38,29],[38,30,38,31],[38,32,38,50],[33,15,33,42],[34,15,34,42],[18,6,18,9],[18,10,18,32],[18,33,18,36],[18,37,18,58],[19,0,19,5],[19,6,19,9],[19,10,19,32],[19,33,19,36],[19,37,19,58]]}
[]
[null,"このシートに、入力する必要はありません。入力シートに入力すると、自動的に作成されます。このまま印刷できます。",null,null,null,null,null,null,null,null,null,null,null,null,null,null,null,null,null,null,null,null,null,null,null,null,null,null,null,null,null,null,null,null,null,null,null,null,null,null,null,null,null,null,null,null,null,null,null,null,null,null,null,null,null,null,null,null,null,null,null,"このシートに、入力する必要はありません。入力シートに入力すると、自動的に作成されます。このまま印刷できます。"]
[]
[]
["アンサンブルコンテスト参加申込書(A)",null,null,null,null,null,null,null,null,null,null,null,null,null,null,null,null,null,null,null,null,null,null,null,null,null,null,null,null,null,null,null,null,null,null,null,null,null,null,null,null,null,null,null,null,null,null,null,null,null,null,null,null,null,null,null,null,null,null,null,"アンサンブルコンテスト参加申込書(B)"]
["（九州吹連および支部兼用）",null,null,null,null,null,null,null,null,null,null,null,null,null,null,null,null,null,null,null,null,null,null,null,null,null,null,null,null,null,null,null,null,null,null,null,null,null,null,null,null,null,null,null,null,null,null,null,null,null,null,null,null,null,null,null,null,null,null,null,"（九州吹連および支部兼用）"]
["ﾌﾘｶﾞﾅ",null,null,null,null,null,{"$f":"団体データ!K14","v":""},null,null,null,null,null,null,null,null,null,null,null,null,null,null,null,null,null,null,null,null,null,null,null,null,null,null,null,null,null,null,null,null,null,null,null,null,null,null,null,null,null,null,null,null,null,null,null,null,null,null,null,null,null,"ﾌﾘｶﾞﾅ",null,null,null,null,null,{"$f":"団体データ!$K$14","v":""}]
["団体名",null,null,null,null,null,{"$f":"団体データ!K15","v":0},null,null,null,null,null,null,null,null,null,null,null,null,null,null,null,null,null,null,null,null,null,null,null,null,null,null,null,null,null,null,null,null,null,null,null,null,null,null,null,null,null,null,null,null,null,null,null,null,null,null,null,null,null,"団体名",null,null,null,null,null,{"$f":"団体データ!$K$15","v":0}]
["編成",null,null,null,null,null,{"$f":"団体データ!J31","v":0},null,null,null,null,null,null,null,null,null,null,null,null,null,null,null,null,null,null,null,null,null,null,null,null,null,{"$f":"団体データ!M31","v":0},null,null,null,null,"重奏",null,null,null,null,null,null,null,null,null,null,null,null,null,null,null,null,null,null,null,null,null,null,"編成",null,null,null,null,null,{"$f":"団体データ!$X$31","v":0},null,null,null,null,null,null,null,null,null,null,null,null,null,null,null,null,null,null,null,null,null,null,null,null,null,{"$f":"団体データ!$AA$31","v":0},null,null,null,null,"重奏"]
["演奏曲目",null,null,null,null,null,"（日本語）",null,null,null,null,null,{"$f":"プログラムデータ!S32","v":0},null,null,null,null,null,null,null,null,null,null,null,null,null,null,null,null,null,null,null,null,null,null,null,null,null,null,null,null,null,null,null,null,null,null,null,null,null,"演奏時間",null,null,null,null,null,null,null,null,null,"演奏曲目",null,null,null,null,null,"（日本語）",null,null,null,null,null,{"$f":"プログラムデータ!$CC$32","v":0},null,null,null,null,null,null,null,null,null,null,null,null,null,null,null,null,null,null,null,null,null,null,null,null,null,null,null,null,null,null,null,null,null,null,null,null,null,"演奏時間"]
[]
[null,null,null,null,null,null,"（原　語）",null,null,null,null,null,{"$f":"プログラムデータ!S33","v":0},null,null,null,null,null,null,null,null,null,null,null,null,null,null,null,null,null,null,null,null,null,null,null,null,null,null,null,null,null,null,null,null,null,null,null,null,null,{"$f":"プログラムデータ!AV47","v":0},null,null,"分",null,{"$f":"プログラムデータ!BA47","v":0},null,"秒",null,null,null,null,null,null,null,null,"（原　語）",null,null,null,null,null,{"$f":"プログラムデータ!$CC$33","v":0},null,null,null,null,null,null,null,null,null,null,null,null,null,null,null,null,null,null,null,null,null,null,null,null,null,null,null,null,null,null,null,null,null,null,null,null,null,{"$f":"プログラムデータ!$DF$47","v":0},null,null,"分",null,{"$f":"プログラムデータ!$DK$47","v":0},null,"秒"]
[]
["組曲等の\n演奏部分\nｻﾌﾞﾀｲﾄﾙ\n（日本語でよい）",null,null,null,null,null,{"$f":"プログラムデータ!W34","v":0},null,null,null,null,null,null,null,null,null,null,null,null,null,null,null,null,null,null,null,null,null,null,null,null,null,null,null,null,null,null,null,null,null,null,null,null,"演奏時間",null,null,null,null,null,null,{"$f":"プログラムデータ!AV34","v":0},null,null,"分",null,{"$f":"プログラムデータ!BA34","v":0},null,"秒",null,null,"組曲等の\n演奏部分\nｻﾌﾞﾀｲﾄﾙ\n（日本語でよい）",null,null,null,null,null,{"$f":"プログラムデータ!$CG$34","v":0},null,null,null,null,null,null,null,null,null,null,null,null,null,null,null,null,null,null,null,null,null,null,null,null,null,null,null,null,null,null,null,null,null,null,null,null,"演奏時間",null,null,null,null,null,null,{"$f":"プログラムデータ!DF34","v":0},null,null,"分",null,{"$f":"プログラムデータ!DK34","v":0},null,"秒"]
[null,null,null,null,null,null,{"$f":"プログラムデータ!W35","v":0},null,null,null,null,null,null,null,null,null,null,null,null,null,null,null,null,null,null,null,null,null,null,null,null,null,null,null,null,null,null,null,null,null,null,null,null,"演奏時間",null,null,null,null,null,null,{"$f":"プログラムデータ!AV35","v":0},null,null,"分",null,{"$f":"プログラムデータ!BA35","v":0},null,"秒",null,null,null,null,null,null,null,null,{"$f":"プログラムデータ!$CG$35","v":0},null,null,null,null,null,null,null,null,null,null,null,null,null,null,null,null,null,null,null,null,null,null,null,null,null,null,null,null,null,null,null,null,null,null,null,null,"演奏時間",null,null,null,null,null,null,{"$f":"プログラムデータ!DF35","v":0},null,null,"分",null,{"$f":"プログラムデータ!DK35","v":0},null,"秒"]
[null,null,null,null,null,null,{"$f":"プログラムデータ!W36","v":0},null,null,null,null,null,null,null,null,null,null,null,null,null,null,null,null,null,null,null,null,null,null,null,null,null,null,null,null,null,null,null,null,null,null,null,null,"演奏時間",null,null,null,null,null,null,{"$f":"プログラムデータ!AV36","v":0},null,null,"分",null,{"$f":"プログラムデータ!BA36","v":0},null,"秒",null,null,null,null,null,null,null,null,{"$f":"プログラムデータ!$CG$36","v":0},null,null,null,null,null,null,null,null,null,null,null,null,null,null,null,null,null,null,null,null,null,null,null,null,null,null,null,null,null,null,null,null,null,null,null,null,"演奏時間",null,null,null,null,null,null,{"$f":"プログラムデータ!DF36","v":0},null,null,"分",null,{"$f":"プログラムデータ!DK36","v":0},null,"秒"]
[null,null,null,null,null,null,{"$f":"プログラムデータ!W37","v":0},null,null,null,null,null,null,null,null,null,null,null,null,null,null,null,null,null,null,null,null,null,null,null,null,null,null,null,null,null,null,null,null,null,null,null,null,"演奏時間",null,null,null,null,null,null,{"$f":"プログラムデータ!AV37","v":0},null,null,"分",null,{"$f":"プログラムデータ!BA37","v":0},null,"秒",null,null,null,null,null,null,null,null,{"$f":"プログラムデータ!$CG$37","v":0},null,null,null,null,null,null,null,null,null,null,null,null,null,null,null,null,null,null,null,null,null,null,null,null,null,null,null,null,null,null,null,null,null,null,null,null,"演奏時間",null,null,null,null,null,null,{"$f":"プログラムデータ!DF37","v":0},null,null,"分",null,{"$f":"プログラムデータ!DK37","v":0},null,"秒"]
[null,null,null,null,null,null,{"$f":"プログラムデータ!W38","v":0},null,null,null,null,null,null,null,null,null,null,null,null,null,null,null,null,null,null,null,null,null,null,null,null,null,null,null,null,null,null,null,null,null,null,null,null,"演奏時間",null,null,null,null,null,null,{"$f":"プログラムデータ!AV38","v":0},null,null,"分",null,{"$f":"プログラムデータ!BA38","v":0},null,"秒",null,null,null,null,null,null,null,null,{"$f":"プログラムデータ!$CG$38","v":0},null,null,null,null,null,null,null,null,null,null,null,null,null,null,null,null,null,null,null,null,null,null,null,null,null,null,null,null,null,null,null,null,null,null,null,null,"演奏時間",null,null,null,null,null,null,{"$f":"プログラムデータ!DF38","v":0},null,null,"分",null,{"$f":"プログラムデータ!DK38","v":0},null,"秒"]
["作曲者",null,null,null,null,null,"（日本語）",null,null,null,{"$f":"プログラムデータ!S40","v":0},null,null,null,null,null,null,null,null,null,null,null,null,null,null,null,null,null,null,null,null,null,null,"（原　語）",null,null,null,{"$f":"プログラムデータ!S41","v":0},null,null,null,null,null,null,null,null,null,null,null,null,null,null,null,null,null,null,null,null,null,null,"作曲者",null,null,null,null,null,"（日本語）",null,null,null,{"$f":"プログラムデータ!$CC$40","v":0},null,null,null,null,null,null,null,null,null,null,null,null,null,null,null,null,null,null,null,null,null,null,"（原　語）",null,null,null,{"$f":"プログラムデータ!$CC$41","v":0}]
["編曲者",null,null,null,null,null,"（日本語）",null,null,null,{"$f":"プログラムデータ!S43","v":0},null,null,null,null,null,null,null,null,null,null,null,null,null,null,null,null,null,null,null,null,null,null,"（原　語）",null,null,null,{"$f":"プログラムデータ!S44","v":0},null,null,null,null,null,null,null,null,null,null,null,null,null,null,null,null,null,null,null,null,null,null,"編曲者",null,null,null,null,null,"（日本語）",null,null,null,{"$f":"プログラムデータ!$CC$43","v":0},null,null,null,null,null,null,null,null,null,null,null,null,null,null,null,null,null,null,null,null,null,null,"（原　語）",null,null,null,{"$f":"プログラムデータ!$CC$44","v":0}]
["出版社",null,null,null,null,null,"（日本語）",null,null,null,{"$f":"プログラムデータ!S46","v":0},null,null,null,null,null,null,null,null,null,null,null,null,null,null,null,null,null,null,null,null,null,null,"（原　語）",null,null,null,{"$f":"プログラムデータ!S45","v":0},null,null,null,null,null,null,null,null,null,null,null,null,null,null,null,null,null,null,null,null,null,null,"出版社",null,null,null,null,null,"（日本語）",null,null,null,{"$f":"プログラムデータ!$CC$46","v":0},null,null,null,null,null,null,null,null,null,null,null,null,null,null,null,null,null,null,null,null,null,null,"（原　語）",null,null,null,{"$f":"プログラムデータ!$CC$45","v":0}]
["著作権のある作品の編曲手続きは",null,null,null,null,null,null,null,null,null,null,null,null,null,null,null,null,null,null,null,null,{"$f":"IF(プログラムデータ!S47=\"済んでいる\",\"○\",\"\")","v":""},null,null,null," 済んでいる",null,null,null,null,null,null,null,null,null,{"$f":"IF(プログラムデータ!S47=\"済んでいない\",\"○\",\"\")","v":""},null," 済んでいない",null,null,null,null,null,null,null,null,null,null,null,null,null,null,null,null,null,null,null,null,null,null,"著作権のある作品の編曲手続きは",null,null,null,null,null,null,null,null,null,null,null,null,null,null,null,null,null,null,null,null,{"$f":"IF(プログラムデータ!$CC$47=\"済んでいる\",\"○\",\"\")","v":""},null,null,null,"済んでいる",null,null,null,null,null,null,null,null,null,{"$f":"IF(プログラムデータ!$CC$47=\"済んでいない\",\"○\",\"\")","v":""},null," 済んでいない"]
[]
[null,null,null,null,null,null,null,null,null,null,null,null,null,null,null,null,null,null,null,null,null,{"$f":"IF(プログラムデータ!S47=\"出版されている楽譜(レンタルを含む)を使用しているので不要\",\"○\",\"\")","v":""},null,null,null," 出版されている楽譜（レンタルを含む）を使用しているので不要",null,null,null,null,null,null,null,null,null,null,null,null,null,null,null,null,null,null,null,null,null,null,null,null,null,null,null,null,null,null,null,null,null,null,null,null,null,null,null,null,null,null,null,null,null,null,null,null,null,null,null,null,null,null,null,{"$f":"IF(プログラムデータ!$CC$47=\"出版されている楽譜(レンタルを含む)を使用しているので不要\",\"○\",\"\")","v":""},null,null,null,"出版されている楽譜（レンタルを含む）を使用しているので不要"]
[]
[null,null,null,null,null,null,null,null,null,null,null,null,null,null,null,null,null,null,null,null,null,{"$f":"IF(プログラムデータ!S47=\"権利消滅により不要\",\"○\",\"\")","v":""},null,null,null," 権利消滅により不要",null,null,null,null,null,null,null,null,null,null,null,null,null,{"$f":"IF(プログラムデータ!S47=\"オリジナル作品のため不要\",\"○\",\"\")","v":""},null," オリジナル作品のため不要",null,null,null,null,null,null,null,null,null,null,null,null,null,null,null,null,null,null,null,null,null,null,null,null,null,null,null,null,null,null,null,null,null,null,null,null,null,null,null,{"$f":"IF(プログラムデータ!$CC$47=\"権利消滅により不要\",\"○\",\"\")","v":""},null,null,null,"権利消滅により不要",null,null,null,null,null,null,null,null,null,null,null,null,null,{"$f":"IF(プログラムデータ!$CC$47=\"オリジナル作品のため不要\",\"○\",\"\")","v":""},null," オリジナル作品のため不要"]
[]
["＊アンサンブルコンテストにおける当団体の演奏について、吹奏楽連盟指定の各社により、録音・写真撮影・ビデオ",null,null,null,null,null,null,null,null,null,null,null,null,null,null,null,null,null,null,null,null,null,null,null,null,null,null,null,null,null,null,null,null,null,null,null,null,null,null,null,null,null,null,null,null,null,null,null,null,null,null,null,null,null,null,null,null,null,null,null,"＊アンサンブルコンテストにおける当団体の演奏について、吹奏楽連盟指定の各社により、録音・写真撮影・"]
[null,"収録・販売されることを",null,null,null,null,null,null,null,null,null,null,null,null,null,null,null,null,null,null,null,null,"〔",null,{"$f":"IF(団体データ!K39=\"承諾します\",\"ﾚ\",\"\")","v":"ﾚ"},null,null,"承諾します",null,null,null,null,null,null,"・",null,{"$f":"IF(団体データ!K39=\"承諾できません\",\"ﾚ\",\"\")","v":""},null,null,"承諾しません",null,null,null,null,null,null,null,"〕",null,null,null,null,null,null,null,null,null,null,null,null,null,"ビデオ収録・販売されることを",null,null,null,null,null,null,null,null,null,null,null,null,null,null,null,null,null,null,null,null,"〔",null,{"$f":"IF(団体データ!$K$39=\"承諾します\",\"ﾚ\",\"\")","v":"ﾚ"},null,null,"承諾します",null,null,null,null,null,null,"・",null,{"$f":"IF(団体データ!$K$39=\"承諾できません\",\"ﾚ\",\"\")","v":""},null,null,"承諾しません",null,null,null,null,null,null,null,"〕"]
["＊アンサンブルコンテストプログラムに団体名・出演者名が記載されることを",null,null,null,null,null,null,null,null,null,null,null,null,null,null,null,null,null,null,null,null,null,null,null,null,null,null,null,null,null,null,null,null,null,null,null,null,null,null,null,null,null,null,null,null,null,null,null,null,null,null,null,null,null,null,null,null,null,null,null,"＊アンサンブルコンテストプログラムに団体名・出演者名が記載されることを"]
[null,null,null,null,null,null,null,null,null,null,null,null,null,null,null,null,null,null,null,null,null,null,"〔",null,{"$f":"IF(団体データ!K41=\"承諾します\",\"ﾚ\",\"\")","v":"ﾚ"},null,null,"承諾します",null,null,null,null,null,null,"・",null,{"$f":"IF(団体データ!K41=\"承諾できません\",\"ﾚ\",\"\")","v":""},null,null,"承諾しません",null,null,null,null,null,null,null,"〕",null,null,null,null,null,null,null,null,null,null,null,null,null,null,null,null,null,null,null,null,null,null,null,null,null,null,null,null,null,null,null,null,null,null,"〔",null,{"$f":"IF(団体データ!$K$41=\"承諾します\",\"ﾚ\",\"\")","v":"ﾚ"},null,null,"承諾します",null,null,null,null,null,null,"・",null,{"$f":"IF(団体データ!$K$41=\"承諾できません\",\"ﾚ\",\"\")","v":""},null,null,"承諾しません",null,null,null,null,null,null,null,"〕"]
["上記内容により申込金をそえて出場申込みを致します。",null,null,null,null,null,null,null,null,null,null,null,null,null,null,null,null,null,null,null,null,null,null,null,null,null,null,null,null,null,null,null,null,null,null,null,null,null,null,null,null,null,null,null,null,null,null,null,null,null,null,null,null,null,null,null,null,null,null,null,"上記内容により申込金をそえて出場申込みを致します。"]
[null,null,null,null,null,null,null,null,null,null,null,null,null,null,null,null,null,null,null,null,null,null,null,null,null,null,null,null,null,null,null,null,null,null,null,null,null,null,null,null,null,null,null,null,{"$f":"団体データ!$K$12","v":"令和"},null,null,{"$f":"団体データ!N12","v":5},null,"年",null,{"$f":"団体データ!S12","v":11},null,"月",null,{"$f":"団体データ!X12","v":0},null,"日",null,null,null,null,null,null,null,null,null,null,null,null,null,null,null,null,null,null,null,null,null,null,null,null,null,null,null,null,null,null,null,null,null,null,null,null,null,null,null,null,null,null,null,null,null,null,{"$f":"団体データ!$K$12","v":"令和"},null,null,{"$f":"団体データ!$N$12","v":5},null,"年",null,{"$f":"団体データ!$S$12","v":11},null,"月",null,{"$f":"団体データ!$X$12","v":0},null,"日"]
[null,null,null,null,null,null,null,"団体名",null,null,null,null,null,null,null,{"$f":"団体データ!K15","v":0},null,null,null,null,null,null,null,null,null,null,null,null,null,null,null,null,null,null,null,null,null,null,null,null,null,null,null,null,null,null,null,null,null,null,null,null,null,null,null,null,null,null,null,null,null,null,null,null,null,null,null,"団体名",null,null,null,null,null,null,null,{"$f":"団体データ!$K$15","v":0}]
[null,null,null,null,null,null,null,"団体所属長名",null,null,null,null,null,null,null,{"$f":"団体データ!K16","v":0},null,null,null,null,null,null,null,null,null,null,null,null,null,null,null,null,null,null,null,null,null,null,null,null,null,null,null,"職印",null,null,null,null,null,null,null,null,null,null,null,null,null,null,null,null,null,null,null,null,null,null,null,"団体所属長名",null,null,null,null,null,null,null,{"$f":"団体データ!$K$16","v":0},null,null,null,null,null,null,null,null,null,null,null,null,null,null,null,null,null,null,null,null,null,null,null,null,null,null,null,"職印"]
[null,null,null,null,null,null,null,"責任者名",null,null,null,null,null,null,null,{"$f":"団体データ!K23","v":0},null,null,null,null,null,null,null,null,null,null,null,null,null,null,null,null,null,"印",null,null,null,null,null,null,null,null,null,null,null,null,null,null,null,null,null,null,null,null,null,null,null,null,null,null,null,null,null,null,null,null,null,"責任者名",null,null,null,null,null,null,null,{"$f":"団体データ!$K$23","v":0},null,null,null,null,null,null,null,null,null,null,null,null,null,null,null,null,null,"印"]
[null,null,null,null,null,null,null,"連絡先",null,null,null,null,null,null,null,"（団体所在地）",null,null,null,null,null,null,"〒",null,{"$f":"団体データ!P17","v":0},null,null,null,null,null,"TEL",null,{"$f":"団体データ!P19","v":0},null,null,null,null,null,null,null,null,null,null,null,null,null,null,null,null,null,null,null,null,null,null,null,null,null,null,null,null,null,null,null,null,null,null,"連絡先",null,null,null,null,null,null,null,"（団体所在地）",null,null,null,null,null,null,"〒",null,{"$f":"団体データ!$P$17","v":0},null,null,null,null,null,"TEL",null,{"$f":"団体データ!$P$19","v":0}]
[null,null,null,null,null,null,null,null,null,null,null,null,null,null,null,"住　所",null,null,null,{"$f":"団体データ!P18","v":0},null,null,null,null,null,null,null,null,null,null,null,null,null,null,null,null,null,null,null,null,null,null,null,null,null,null,null,null,null,null,null,null,null,null,null,null,null,null,null,null,null,null,null,null,null,null,null,null,null,null,null,null,null,null,null,"住　所",null,null,null,{"$f":"団体データ!$P$18","v":0}]
[null,null,null,null,null,null,null,null,null,null,null,null,null,null,null,"（責任者自宅）",null,null,null,null,null,null,"〒",null,{"$f":"団体データ!P24","v":0},null,null,null,null,null,"TEL",null,{"$f":"団体データ!P26","v":0},null,null,null,null,null,null,null,null,null,null,null,null,null,null,null,null,null,null,null,null,null,null,null,null,null,null,null,null,null,null,null,null,null,null,null,null,null,null,null,null,null,null,"（責任者自宅）",null,null,null,null,null,null,"〒",null,{"$f":"団体データ!$P$24","v":0},null,null,null,null,null,"TEL",null,{"$f":"団体データ!$P$26","v":0}]
[null,null,null,null,null,null,null,null,null,null,null,null,null,null,null,"住　所",null,null,null,{"$f":"団体データ!P25","v":0},null,null,null,null,null,null,null,null,null,null,null,null,null,null,null,null,null,null,null,null,null,null,null,null,null,null,null,null,null,null,null,null,null,null,null,null,null,null,null,null,null,null,null,null,null,null,null,null,null,null,null,null,null,null,null,"住　所",null,null,null,{"$f":"団体データ!$P$25","v":0}]
[null,null,null,null,null,null,null,null,null,null,null,null,null,null,null,"（緊急連絡先・携帯電話など）",null,null,null,null,null,null,null,null,null,null,null,null,null,null,"TEL",null,{"$f":"団体データ!P27","v":0},null,null,null,null,null,null,null,null,null,null,null,null,null,null,null,null,null,null,null,null,null,null,null,null,null,null,null,null,null,null,null,null,null,null,null,null,null,null,null,null,null,null,"（緊急連絡先・携帯電話など）",null,null,null,null,null,null,null,null,null,null,null,null,null,null,"TEL",null,{"$f":"団体データ!$P$27","v":0}]
[]
[null,null,null,"※支部予選では，チームごとに原本とコピー１部を提出してください。",null,null,null,null,null,null,null,null,null,null,null,null,null,null,null,null,null,null,null,null,null,null,null,null,null,null,null,null,null,null,null,null,null,null,null,null,null,null,null,null,null,null,null,null,null,null,null,null,null,null,null,null,null,null,null,null,null,null,null,"※支部予選では，チームごとに原本とコピー１部を提出してください。"]

{"sheet":"出演者名簿","index":8,"n_rows":52,"n_cols":161,"rows_kept":52,"cut":false,"hidden":true,"merged":[[49,152,49,153],[49,154,49,155],[49,156,49,157],[49,158,49,159],[49,160,49,161],[49,65,49,67],[49,68,49,69],[49,70,49,71],[49,72,49,73],[49,74,49,75],[49,76,49,77],[49,78,49,79],[49,147,49,149],[49,150,49,151],[42,85,43,160],[44,86,45,160],[47,85,48,160],[37,157,38,162],[39,83,40,94],[39,95,40,96],[39,97,40,102],[39,103,40,114],[39,115,40,116],[39,117,40,122],[39,123,40,134],[39,135,40,136],[39,137,40,142],[37,117,38,122],[37,123,38,134],[37,135,38,136],[37,137,38,142],[37,143,38,154],[37,155,38,156],[35,143,36,154],[35,155,36,156],[35,157,36,162],[37,83,38,94],[37,95,38,96],[37,97,38,102],[37,103,38,114],[37,115,38,116],[39,143,40,154],[39,155,40,156],[39,157,40,162],[35,83,36,94],[35,95,36,96],[35,97,36,102],[35,103,36,114],[35,115,36,116],[35,117,36,122],[35,123,36,134],[35,135,36,136],[35,137,36,142],[31,83,32,94],[31,95,32,96],[31,97,32,102],[31,103,32,114],[31,115,32,116],[31,157,32,162],[33,83,34,94],[33,95,34,96],[33,97,34,102],[33,103,34,114],[33,115,34,116],[33,117,34,122],[33,123,34,134],[33,135,34,136],[33,137,34,142],[31,117,32,122],[31,123,32,134],[31,135,32,136],[31,137,32,142],[31,143,32,154],[31,155,32,156],[33,143,34,154],[33,155,34,156],[33,157,34,162],[22,85,23,160],[24,85,25,160],[26,85,27,160],[29,83,30,94],[29,95,30,96],[29,97,30,102],[29,103,30,114],[29,115,30,116],[29,117,30,122],[29,123,30,134],[29,135,30,136],[29,137,30,142],[29,143,30,154],[29,155,30,156],[29,157,30,162],[14,149,16,150],[14,151,16,156],[14,157,16,162],[18,113,20,132],[14,117,16,122],[14,123,16,124],[14,125,16,128],[14,129,16,130],[14,131,16,136],[14,137,16,142],[11,157,13,162],[14,83,16,84],[14,85,16,88],[14,89,16,90],[14,91,16,96],[14,97,16,102],[14,103,16,104],[14,105,16,108],[14,109,16,110],[14,111,16,116],[11,131,13,136],[11,137,13,142],[11,143,13,144],[11,145,13,148],[11,149,13,150],[11,151,13,156],[11,109,13,110],[11,111,13,116],[11,117,13,122],[11,123,13,124],[11,125,13,128],[11,129,13,130],[14,143,16,144],[14,145,16,148],[11,83,13,84],[11,85,13,88],[11,89,13,90],[11,91,13,96],[11,97,13,102],[11,103,13,104],[11,105,13,108],[10,117,10,122],[10,125,10,128],[7,140,9,144],[7,145,9,150],[7,151,9,162],[10,85,10,88],[10,89,10,90],[10,91,10,96],[10,97,10,102],[10,105,10,108],[10,109,10,110],[10,111,10,116],[10,149,10,150],[10,151,10,156],[10,157,10,162],[10,129,10,130],[10,131,10,136],[10,137,10,142],[10,145,10,148],[42,3,43,78],[44,4,45,78],[47,3,48,78],[1,83,2,162],[4,83,6,162],[7,83,9,88],[7,89,9,128],[7,129,9,136],[7,137,9,139],[37,41,38,52],[37,53,38,54],[37,55,38,60],[37,61,38,72],[37,73,38,74],[37,75,38,80],[37,1,38,12],[37,13,38,14],[37,15,38,20],[37,21,38,32],[37,33,38,34],[37,35,38,40],[35,41,36,52],[35,53,36,54],[35,55,36,60],[33,33,34,34],[33,35,34,40],[35,61,36,72],[35,73,36,74],[35,75,36,80],[35,1,36,12],[35,13,36,14],[35,15,36,20],[35,21,36,32],[35,33,36,34],[35,35,36,40],[39,73,40,74],[39,75,40,80],[31,41,32,52],[31,53,32,54],[31,55,32,60],[31,61,32,72],[31,73,32,74],[31,75,32,80],[31,1,32,12],[31,13,32,14],[31,15,32,20],[31,21,32,32],[31,33,32,34],[31,35,32,40],[33,41,34,52],[33,53,34,54],[33,55,34,60],[33,61,34,72],[33,73,34,74],[33,75,34,80],[33,1,34,12],[33,13,34,14],[33,15,34,20],[33,21,34,32],[29,1,30,12],[29,13,30,14],[29,15,30,20],[29,21,30,32],[29,33,30,34],[29,35,30,40],[24,3,25,78],[26,3,27,78],[39,1,40,12],[39,13,40,14],[39,15,40,20],[39,21,40,32],[39,33,40,34],[39,35,40,40],[39,41,40,52],[39,53,40,54],[29,41,30,52],[29,53,30,54],[29,55,30,60],[29,61,30,72],[29,73,30,74],[29,75,30,80],[39,55,40,60],[39,61,40,72],[18,31,20,50],[22,3,23,78],[14,75,16,80],[10,23,10,26],[10,27,10,28],[10,29,10,34],[10,35,10,40],[10,43,10,46],[10,47,10,48],[10,49,10,54],[10,55,10,60],[10,63,10,66],[14,49,16,54],[14,55,16,60],[14,61,16,62],[14,63,16,66],[14,67,16,68],[14,69,16,74],[14,27,16,28],[14,29,16,34],[14,35,16,40],[14,41,16,42],[14,43,16,46],[14,47,16,48],[11,69,13,74],[11,75,13,80],[14,1,16,2],[14,3,16,6],[14,7,16,8],[14,9,16,14],[14,15,16,20],[14,21,16,22],[14,23,16,26],[11,43,13,46],[11,47,13,48],[11,49,13,54],[11,55,13,60],[11,61,13,62],[11,63,13,66],[11,21,13,22],[11,23,13,26],[11,27,13,28],[11,29,13,34],[7,1,9,6],[7,63,9,68],[7,69,9,80],[4,1,6,80],[1,1,2,80],[7,47,9,54],[7,55,9,57],[7,58,9,62],[11,35,13,40],[11,41,13,42],[10,3,10,6],[10,7,10,8],[10,9,10,14],[10,15,10,20],[11,1,13,2],[11,3,13,6],[11,7,13,8],[11,9,13,14],[11,15,13,20],[10,67,10,68],[10,69,10,74],[10,75,10,80],[7,7,9,46],[11,67,13,68],[51,88,52,97],[51,98,52,112],[51,113,52,116],[51,122,52,131],[51,132,52,146],[51,147,52,150],[51,6,52,15],[51,16,52,30],[51,31,52,34],[51,40,52,49],[51,50,52,64],[51,65,52,68]]}
[]
[null,"下記注意事項の留意して，このシートに出演者のパート・氏名を入力してください。",null,null,null,null,null,null,null,null,null,null,null,null,null,null,null,null,null,null,null,null,null,null,null,null,null,null,null,null,null,null,null,null,null,null,null,null,null,null,null,null,null,null,null,null,null,null,null,null,null,null,null,null,null,null,null,null,null,null,null,null,null,null,null,null,null,null,null,null,null,null,null,null,null,null,null,null,null,null,null,null,null,"下記注意事項の留意して，このシートに出演者のパート・氏名を入力してください。"]
[]
[]
[null,{"$f":"\"第\"&YEAR(TODAY())-1974&\"回九州アンサンブルコンテスト福岡県大会筑豊支部予選　登録者名簿A\"","v":"第49回九州アンサンブルコンテスト福岡県大会筑豊支部予選　登録者名簿A"},null,null,null,null,null,null,null,null,null,null,null,null,null,null,null,null,null,null,null,null,null,null,null,null,null,null,null,null,null,null,null,null,null,null,null,null,null,null,null,null,null,null,null,null,null,null,null,null,null,null,null,null,null,null,null,null,null,null,null,null,null,null,null,null,null,null,null,null,null,null,null,null,null,null,null,null,null,null,null,null,null,{"$f":"\"第\"&YEAR(TODAY())-1974&\"回九州アンサンブルコンテスト福岡県大会筑豊支部予選　登録者名簿B\"","v":"第49回九州アンサンブルコンテスト福岡県大会筑豊支部予選　登録者名簿B"}]
[]
[]
[null,"団体名",null,null,null,null,null,{"$f":"団体データ!K15","v":0},null,null,null,null,null,null,null,null,null,null,null,null,null,null,null,null,null,null,null,null,null,null,null,null,null,null,null,null,null,null,null,null,null,null,null,null,null,null,null,{"$f":"団体データ!J31","v":0},null,null,null,null,null,null,null,{"$f":"団体データ!M31","v":0},null,null,"重奏",null,null,null,null,"支部名",null,null,null,null,null,"筑豊支部",null,null,null,null,null,null,null,null,null,null,null,null,null,"団体名",null,null,null,null,null,{"$f":"H8","v":0},null,null,null,null,null,null,null,null,null,null,null,null,null,null,null,null,null,null,null,null,null,null,null,null,null,null,null,null,null,null,null,null,null,null,null,null,null,null,null,{"$f":"団体データ!X31","v":0},null,null,null,null,null,null,null,{"$f":"団体データ!AA31","v":0},null,null,"重奏",null,null,null,null,"支部名",null,null,null,null,null,"筑豊支部"]
[]
[]
[null,null,null,"パート",null,null,null,"sec",null,"姓",null,null,null,null,null,"名",null,null,null,null,null,null,null,"パート",null,null,null,"sec",null,"姓",null,null,null,null,null,"名",null,null,null,null,null,null,null,"パート",null,null,null,"sec",null,"姓",null,null,null,null,null,"名",null,null,null,null,null,null,null,"パート",null,null,null,"sec",null,"姓",null,null,null,null,null,"名",null,null,null,null,null,null,null,null,null,"パート",null,null,null,"sec",null,"姓",null,null,null,null,null,"名",null,null,null,null,null,null,null,"パート",null,null,null,"sec",null,"姓",null,null,null,null,null,"名",null,null,null,null,null,null,null,"パート",null,null,null,"sec",null,"姓",null,null,null,null,null,"名",null,null,null,null,null,null,null,"パート",null,null,null,"sec",null,"姓",null,null,null,null,null,"名"]
[null,1,null,null,null,null,null,null,null,null,null,null,null,null,null,null,null,null,null,null,null,2,null,null,null,null,null,null,null,null,null,null,null,null,null,null,null,null,null,null,null,3,null,null,null,null,null,null,null,null,null,null,null,null,null,null,null,null,null,null,null,4,null,null,null,null,null,null,null,null,null,null,null,null,null,null,null,null,null,null,null,null,null,1,null,null,null,null,null,null,null,null,null,null,null,null,null,null,null,null,null,null,null,2,null,null,null,null,null,null,null,null,null,null,null,null,null,null,null,null,null,null,null,3,null,null,null,null,null,null,null,null,null,null,null,null,null,null,null,null,null,null,null,4]
[]
[]
[null,5,null,null,null,null,null,null,null,null,null,null,null,null,null,null,null,null,null,null,null,6,null,null,null,null,null,null,null,null,null,null,null,null,null,null,null,null,null,null,null,7,null,null,null,null,null,null,null,null,null,null,null,null,null,null,null,null,null,null,null,8,null,null,null,null,null,null,null,null,null,null,null,null,null,null,null,null,null,null,null,null,null,5,null,null,null,null,null,null,null,null,null,null,null,null,null,null,null,null,null,null,null,6,null,null,null,null,null,null,null,null,null,null,null,null,null,null,null,null,null,null,null,7,null,null,null,null,null,null,null,null,null,null,null,null,null,null,null,null,null,null,null,8]
[]
[]
[]
[null,null,null,null,null,null,null,null,null,null,null,null,null,null,null,null,null,null,null,null,null,null,null,null,null,null,null,null,null,null,null,"申込書記入注意事項",null,null,null,null,null,null,null,null,null,null,null,null,null,null,null,null,null,null,null,null,null,null,null,null,null,null,null,null,null,null,null,null,null,null,null,null,null,null,null,null,null,null,null,null,null,null,null,null,null,null,null,null,null,null,null,null,null,null,null,null,null,null,null,null,null,null,null,null,null,null,null,null,null,null,null,null,null,null,null,null,null,"申込書記入注意事項"]
[]
[]
[]
[null,null,null,"＊団体名・編成・人数については，団体データシートよりリンクが通っています。間違いがないか確認してください。",null,null,null,null,null,null,null,null,null,null,null,null,null,null,null,null,null,null,null,null,null,null,null,null,null,null,null,null,null,null,null,null,null,null,null,null,null,null,null,null,null,null,null,null,null,null,null,null,null,null,null,null,null,null,null,null,null,null,null,null,null,null,null,null,null,null,null,null,null,null,null,null,null,null,null,null,null,null,null,null,null,"＊団体名・編成・人数については，団体データシートよりリンクが通っています。間違いがないか確認してください。"]
[]
[null,null,null,"＊出場者は，高音または1stはパートから番号順に記入してください。",null,null,null,null,null,null,null,null,null,null,null,null,null,null,null,null,null,null,null,null,null,null,null,null,null,null,null,null,null,null,null,null,null,null,null,null,null,null,null,null,null,null,null,null,null,null,null,null,null,null,null,null,null,null,null,null,null,null,null,null,null,null,null,null,null,null,null,null,null,null,null,null,null,null,null,null,null,null,null,null,null,"＊出場者は，高音または1stはパートから番号順に記入してください。"]
[]
[null,null,null,"＊楽器名の記入は，下記一覧表を参考に次のように入力してください。混合編成の場合は，スコアに記載されている順でお願いします。",null,null,null,null,null,null,null,null,null,null,null,null,null,null,null,null,null,null,null,null,null,null,null,null,null,null,null,null,null,null,null,null,null,null,null,null,null,null,null,null,null,null,null,null,null,null,null,null,null,null,null,null,null,null,null,null,null,null,null,null,null,null,null,null,null,null,null,null,null,null,null,null,null,null,null,null,null,null,null,null,null,"＊楽器名の記入は，下記一覧表を参考に次のように入力してください。混合編成の場合は，スコアに記載されている順でお願いします。"]
[]
[]
[null,"ピッコロ",null,null,null,null,null,null,null,null,null,null,null,"→",null,"Pic",null,null,null,null,null,"フルート",null,null,null,null,null,null,null,null,null,null,null,"→",null,"Fl",null,null,null,null,null,"オーボエ",null,null,null,null,null,null,null,null,null,null,null,"→",null,"Ob",null,null,null,null,null,"ファゴット",null,null,null,null,null,null,null,null,null,null,null,"→",null,"Fg",null,null,null,null,null,null,null,"ピッコロ",null,null,null,null,null,null,null,null,null,null,null,"→",null,"Pic",null,null,null,null,null,"フルート",null,null,null,null,null,null,null,null,null,null,null,"→",null,"Fl",null,null,null,null,null,"オーボエ",null,null,null,null,null,null,null,null,null,null,null,"→",null,"Ob",null,null,null,null,null,"ファゴット",null,null,null,null,null,null,null,null,null,null,null,"→",null,"Fg"]
[]
[null,"E♭クラリネット",null,null,null,null,null,null,null,null,null,null,null,"→",null,"E♭Cl",null,null,null,null,null,"B♭クラリネット",null,null,null,null,null,null,null,null,null,null,null,"→",null,"B♭Cl",null,null,null,null,null,"アルトクラリネット",null,null,null,null,null,null,null,null,null,null,null,"→",null,"A.Cl",null,null,null,null,null,"バスクラリネット",null,null,null,null,null,null,null,null,null,null,null,"→",null,"B.Cl",null,null,null,null,null,null,null,"E♭クラリネット",null,null,null,null,null,null,null,null,null,null,null,"→",null,"E♭Cl",null,null,null,null,null,"B♭クラリネット",null,null,null,null,null,null,null,null,null,null,null,"→",null,"B♭Cl",null,null,null,null,null,"アルトクラリネット",null,null,null,null,null,null,null,null,null,null,null,"→",null,"A.Cl",null,null,null,null,null,"バスクラリネット",null,null,null,null,null,null,null,null,null,null,null,"→",null,"B.Cl"]
[]
[null,"コントラバスクラリネット",null,null,null,null,null,null,null,null,null,null,null,"→",null,"CB.Cl",null,null,null,null,null,"ソプラノサクソフォン",null,null,null,null,null,null,null,null,null,null,null,"→",null,"S.Sax",null,null,null,null,null,"アルトサクソフォン",null,null,null,null,null,null,null,null,null,null,null,"→",null,"A.Sax",null,null,null,null,null,"テナーサクソフォン",null,null,null,null,null,null,null,null,null,null,null,"→",null,"T.Sax",null,null,null,null,null,null,null,"コントラバスクラリネット",null,null,null,null,null,null,null,null,null,null,null,"→",null,"CB.Cl",null,null,null,null,null,"ソプラノサクソフォン",null,null,null,null,null,null,null,null,null,null,null,"→",null,"S.Sax",null,null,null,null,null,"アルトサクソフォン",null,null,null,null,null,null,null,null,null,null,null,"→",null,"A.Sax",null,null,null,null,null,"テナーサクソフォン",null,null,null,null,null,null,null,null,null,null,null,"→",null,"T.Sax"]
[]
[null,"バリトンサクソフォン",null,null,null,null,null,null,null,null,null,null,null,"→",null,"B.Sax",null,null,null,null,null,"トランペット",null,null,null,null,null,null,null,null,null,null,null,"→",null,"Tp",null,null,null,null,null,"コルネット",null,null,null,null,null,null,null,null,null,null,null,"→",null,"Cor",null,null,null,null,null,"フリューゲルホルン",null,null,null,null,null,null,null,null,null,null,null,"→",null,"Flh",null,null,null,null,null,null,null,"バリトンサクソフォン",null,null,null,null,null,null,null,null,null,null,null,"→",null,"B.Sax",null,null,null,null,null,"トランペット",null,null,null,null,null,null,null,null,null,null,null,"→",null,"Tp",null,null,null,null,null,"コルネット",null,null,null,null,null,null,null,null,null,null,null,"→",null,"Cor",null,null,null,null,null,"フリューゲルホルン",null,null,null,null,null,null,null,null,null,null,null,"→",null,"Flh"]
[]
[null,"フレンチホルン",null,null,null,null,null,null,null,null,null,null,null,"→",null,"Hr",null,null,null,null,null,"トロンボーン",null,null,null,null,null,null,null,null,null,null,null,"→",null,"Tb",null,null,null,null,null,"ユーフォニアム",null,null,null,null,null,null,null,null,null,null,null,"→",null,"Eup",null,null,null,null,null,"バリトン",null,null,null,null,null,null,null,null,null,null,null,"→",null,"Br",null,null,null,null,null,null,null,"フレンチホルン",null,null,null,null,null,null,null,null,null,null,null,"→",null,"Hr",null,null,null,null,null,"トロンボーン",null,null,null,null,null,null,null,null,null,null,null,"→",null,"Tb",null,null,null,null,null,"ユーフォニアム",null,null,null,null,null,null,null,null,null,null,null,"→",null,"Eup",null,null,null,null,null,"バリトン",null,null,null,null,null,null,null,null,null,null,null,"→",null,"Br"]
[]
[null,"チューバ",null,null,null,null,null,null,null,null,null,null,null,"→",null,"Tub",null,null,null,null,null,"E♭チューバ",null,null,null,null,null,null,null,null,null,null,null,"→",null,"E♭Tub",null,null,null,null,null,"コントラバス",null,null,null,null,null,null,null,null,null,null,null,"→",null,"St.B",null,null,null,null,null,"打楽器",null,null,null,null,null,null,null,null,null,null,null,"→",null,"Per",null,null,null,null,null,null,null,"チューバ",null,null,null,null,null,null,null,null,null,null,null,"→",null,"Tub",null,null,null,null,null,"E♭チューバ",null,null,null,null,null,null,null,null,null,null,null,"→",null,"E♭Tub",null,null,null,null,null,"コントラバス",null,null,null,null,null,null,null,null,null,null,null,"→",null,"St.B",null,null,null,null,null,"打楽器",null,null,null,null,null,null,null,null,null,null,null,"→",null,"Per"]
[]
[]
[null,null,null,"*同楽器に1st・2nd・3rdがある場合は，上記略号にⅠ・Ⅱ・Ⅲをつけてください。（リストより選択できるようにしてあります）",null,null,null,null,null,null,null,null,null,null,null,null,null,null,null,null,null,null,null,null,null,null,null,null,null,null,null,null,null,null,null,null,null,null,null,null,null,null,null,null,null,null,null,null,null,null,null,null,null,null,null,null,null,null,null,null,null,null,null,null,null,null,null,null,null,null,null,null,null,null,null,null,null,null,null,null,null,null,null,null,null,"*同楽器に1st・2nd・3rdがある場合は，上記略号にⅠ・Ⅱ・Ⅲをつけてください。（リストより選択できるようにしてあります）"]
[]
[null,null,null,null,"（例）トランペットの3rd　→　Tp Ⅲ",null,null,null,null,null,null,null,null,null,null,null,null,null,null,null,null,null,null,null,null,null,null,null,null,null,null,null,null,null,null,null,null,null,null,null,null,null,null,null,null,null,null,null,null,null,null,null,null,null,null,null,null,null,null,null,null,null,null,null,null,null,null,null,null,null,null,null,null,null,null,null,null,null,null,null,null,null,null,null,null,null,"（例）トランペットの3rd　→　Tp Ⅲ"]
[]
[]
[null,null,null,"支部予選では，プログラム原稿及び団体保険申請用として原本の他に１部コピーして提出ください。（１チームにつき２枚）",null,null,null,null,null,null,null,null,null,null,null,null,null,null,null,null,null,null,null,null,null,null,null,null,null,null,null,null,null,null,null,null,null,null,null,null,null,null,null,null,null,null,null,null,null,null,null,null,null,null,null,null,null,null,null,null,null,null,null,null,null,null,null,null,null,null,null,null,null,null,null,null,null,null,null,null,null,null,null,null,null,"支部予選では，プログラム原稿及び団体保険申請用として原本の他に１部コピーして提出ください。（１チームにつき２枚）"]
[]
[null,null,null,null,null,null,null,null,null,null,null,null,null,null,null,null,null,null,null,null,null,null,null,null,null,null,null,null,null,null,null,null,null,null,null,null,null,null,null,null,null,null,null,null,null,null,null,null,null,null,null,null,null,null,null,null,null,null,null,null,null,null,null,null,"参加申込日：",{"$f":"参加申込書!AS33","v":"令和"},null,null,{"$f":"参加申込書!AV33","v":5},null,{"$f":"参加申込書!AX33","v":"年"},null,{"$f":"参加申込書!AZ33","v":11},null,{"$f":"参加申込書!BB33","v":"月"},null,{"$f":"参加申込書!BD33","v":0},null,{"$f":"参加申込書!BF33","v":"日"},null,null,null,null,null,null,null,null,null,null,null,null,null,null,null,null,null,null,null,null,null,null,null,null,null,null,null,null,null,null,null,null,null,null,null,null,null,null,null,null,null,null,null,null,null,null,null,null,null,null,null,null,null,null,null,null,null,null,null,null,null,null,null,null,null,null,null,{"$f":"BM50","v":"参加申込日："},{"$f":"BN50","v":"令和"},null,null,{"$f":"BQ50","v":5},null,{"$f":"BS50","v":"年"},null,{"$f":"BU50","v":11},null,{"$f":"BW50","v":"月"},null,{"$f":"BY50","v":0},null,{"$f":"CA50","v":"日"}]
[]
[null,null,null,null,null,null,"団体所属長名",null,null,null,null,null,null,null,null,null,{"$f":"団体データ!K16","v":0},null,null,null,null,null,null,null,null,null,null,null,null,null,null,"職印",null,null,null,null,null,null,null,null,"責任者名",null,null,null,null,null,null,null,null,null,{"$f":"団体データ!K23","v":0},null,null,null,null,null,null,null,null,null,null,null,null,null,null,"印",null,null,null,null,null,null,null,null,null,null,null,null,null,null,null,null,null,null,null,null,null,null,"団体所属長名",null,null,null,null,null,null,null,null,null,{"$f":"団体データ!K16","v":0},null,null,null,null,null,null,null,null,null,null,null,null,null,null,"職印",null,null,null,null,null,null,null,null,"責任者名",null,null,null,null,null,null,null,null,null,{"$f":"団体データ!K23","v":0},null,null,null,null,null,null,null,null,null,null,null,null,null,null,"印"]

{"sheet":"登録外名簿","index":9,"n_rows":25,"n_cols":15,"rows_kept":25,"cut":false,"hidden":false,"merged":[[19,11,20,13],[1,0,1,2],[1,12,1,14],[2,0,2,14],[3,0,3,2],[3,3,3,5],[3,6,3,8],[3,9,3,11],[3,12,3,14],[20,2,20,3],[20,9,20,10],[1,3,1,4],[1,5,1,10],[19,4,20,6]]}
[]
["理事会・大会当日に提出",null,null,"団体名",null,{"$f":"団体データ!K15","v":0},null,null,null,null,null,null,"支部名  筑豊支部"]
["アンサンブルコンテスト出演外（ステージで演奏しない部員・団員）登録者名簿【支部予選専用】"]
["　　氏　　　　名",null,null,"　　氏　　　　名",null,null,"　　氏　　　　名",null,null,"　　氏　　　　名",null,null,"　　氏　　　　名"]
[1,null,null,2,null,null,3,null,null,4,null,null,5]
[6,null,null,7,null,null,8,null,null,9,null,null,10]
[11,null,null,12,null,null,13,null,null,14,null,null,15]
[16,null,null,17,null,null,18,null,null,19,null,null,20]
[21,null,null,22,null,null,23,null,null,24,null,null,25]
[26,null,null,27,null,null,28,null,null,29,null,null,30]
[31,null,null,32,null,null,33,null,null,34,null,null,35]
[36,null,null,37,null,null,38,null,null,39,null,null,40]
[41,null,null,42,null,null,43,null,null,44,null,null,45]
[46,null,null,47,null,null,48,null,null,49,null,null,50]
[51,null,null,52,null,null,53,null,null,54,null,null,55]
[56,null,null,57,null,null,58,null,null,59,null,null,60]
[]
["以上",{"$f":"COUNTA(B5:B16)+COUNTA(E5:E16)+COUNTA(H5:H16)+COUNTA(K5:K16)+COUNTA(N5:N16)","v":0},"名の部員・団員を出演外登録者として申請いたします",null,null,null,null,null,null,null,null,{"$f":"団体データ!N12","v":5},"年",{"$f":"団体データ!S12","v":11},{"$f":"団体データ!X12","v":0}]
[]
[null,null,null,null,null,null,null,null,null,null,null,{"$f":"団体データ!K23","v":0}]
[null,null,null,null,null,null,null,null,null,"責任者名",null,null,null,null,"印"]
[]
[null,"団体保険申請用として使用しますので，理事会の際の提出をお忘れなくお願いします。"]
[null,"大会当日に理事会での申し込みとの整合を行いますので提出の前にコピーをおとりの上，保管してください。"]
[null,"なお，登録外チケット購入に必要となりますので大会当日にお忘れなくコピー(必要があれば訂正を加えて)を団体受付に提出ください。"]

{"sheet":"著作権申請","index":10,"n_rows":91,"n_cols":39,"rows_kept":91,"cut":false,"hidden":false,"merged":[[1,1,1,40],[3,2,4,3],[4,5,4,8],[5,2,5,4],[5,5,6,5],[5,6,6,8],[5,9,6,40],[10,2,12,3],[10,4,12,6],[10,7,12,7],[10,8,12,8],[10,9,12,9],[10,10,12,17],[7,25,8,29],[7,30,10,30],[7,31,12,39],[9,18,10,20],[9,21,10,24],[9,25,12,29],[11,18,12,20],[11,21,12,24],[11,30,12,30],[7,2,9,3],[7,4,9,8],[7,9,9,9],[7,10,9,17],[7,18,8,20],[7,21,8,24],[13,18,14,39],[14,2,16,3],[14,4,16,9],[14,10,16,10],[14,11,16,17],[22,2,23,7],[22,8,23,10],[22,11,23,16],[22,17,23,19],[17,2,20,3],[17,4,20,9],[17,10,20,10],[17,11,20,17],[19,18,19,40],[22,24,23,24],[22,25,22,30],[22,31,23,38],[22,40,23,40],[23,25,23,30],[22,20,23,21],[22,22,23,23],[24,39,25,39],[24,40,25,40],[25,3,25,7],[25,8,25,10],[25,11,25,16],[25,20,25,21],[24,30,25,30],[24,31,25,31],[24,32,25,32],[24,33,25,33],[24,34,25,34],[24,35,25,35],[24,22,25,23],[24,25,25,25],[24,26,25,26],[24,27,25,27],[24,28,25,28],[24,29,25,29],[24,3,24,7],[24,8,24,10],[24,11,24,16],[24,17,25,19],[26,2,27,2],[26,3,26,7],[26,8,26,10],[26,11,26,16],[26,17,27,19],[26,22,27,23],[24,36,25,36],[24,37,25,37],[24,38,25,38],[26,37,27,37],[26,38,27,38],[24,2,25,2],[26,39,27,39],[26,40,27,40],[27,3,27,7],[27,8,27,10],[27,11,27,16],[27,20,27,21],[26,31,27,31],[26,32,27,32],[26,33,27,33],[26,34,27,34],[26,35,27,35],[26,36,27,36],[26,25,27,25],[26,26,27,26],[26,27,27,27],[26,28,27,28],[26,29,27,29],[26,30,27,30],[28,40,29,40],[29,3,29,7],[29,8,29,10],[29,11,29,16],[29,20,29,21],[28,31,29,31],[28,32,29,32],[28,33,29,33],[28,34,29,34],[28,35,29,35],[28,36,29,36],[28,25,29,25],[28,26,29,26],[28,27,29,27],[28,28,29,28],[28,29,29,29],[28,30,29,30],[28,3,28,7],[28,8,28,10],[28,11,28,16],[28,17,29,19],[28,22,29,23],[30,2,31,2],[30,3,30,7],[30,8,30,10],[30,11,30,16],[30,17,31,19],[30,22,31,23],[28,37,29,37],[28,38,29,38],[28,39,29,39],[28,2,29,2],[30,37,31,37],[30,38,31,38],[30,39,31,39],[30,40,31,40],[31,3,31,7],[31,8,31,10],[31,11,31,16],[31,20,31,21],[30,31,31,31],[30,32,31,32],[30,33,31,33],[30,34,31,34],[30,35,31,35],[30,36,31,36],[30,25,31,25],[30,26,31,26],[30,27,31,27],[30,28,31,28],[30,29,31,29],[30,30,31,30],[32,40,33,40],[33,3,33,7],[33,8,33,10],[33,11,33,16],[33,20,33,21],[32,31,33,31],[32,32,33,32],[32,33,33,33],[32,34,33,34],[32,35,33,35],[32,36,33,36],[32,25,33,25],[32,26,33,26],[32,27,33,27],[32,28,33,28],[32,29,33,29],[32,30,33,30],[32,3,32,7],[32,8,32,10],[32,11,32,16],[32,17,33,19],[32,22,33,23],[34,2,35,2],[34,3,34,7],[34,8,34,10],[34,11,34,16],[34,17,35,19],[34,22,35,23],[32,37,33,37],[32,38,33,38],[32,39,33,39],[32,2,33,2],[34,37,35,37],[34,38,35,38],[34,39,35,39],[34,40,35,40],[35,3,35,7],[35,8,35,10],[35,11,35,16],[35,20,35,21],[34,31,35,31],[34,32,35,32],[34,33,35,33],[34,34,35,34],[34,35,35,35],[34,36,35,36],[34,25,35,25],[34,26,35,26],[34,27,35,27],[34,28,35,28],[34,29,35,29],[34,30,35,30],[36,40,37,40],[37,3,37,7],[37,8,37,10],[37,11,37,16],[37,20,37,21],[36,31,37,31],[36,32,37,32],[36,33,37,33],[36,34,37,34],[36,35,37,35],[36,36,37,36],[36,25,37,25],[36,26,37,26],[36,27,37,27],[36,28,37,28],[36,29,37,29],[36,30,37,30],[36,3,36,7],[36,8,36,10],[36,11,36,16],[36,17,37,19],[36,22,37,23],[38,2,39,2],[38,3,38,7],[38,8,38,10],[38,11,38,16],[38,17,39,19],[38,22,39,23],[36,37,37,37],[36,38,37,38],[36,39,37,39],[36,2,37,2],[38,37,39,37],[38,38,39,38],[38,39,39,39],[38,40,39,40],[39,3,39,7],[39,8,39,10],[39,11,39,16],[39,20,39,21],[38,31,39,31],[38,32,39,32],[38,33,39,33],[38,34,39,34],[38,35,39,35],[38,36,39,36],[38,25,39,25],[38,26,39,26],[38,27,39,27],[38,28,39,28],[38,29,39,29],[38,30,39,30],[40,40,41,40],[41,3,41,7],[41,8,41,10],[41,11,41,16],[41,20,41,21],[40,31,41,31],[40,32,41,32],[40,33,41,33],[40,34,41,34],[40,35,41,35],[40,36,41,36],[40,25,41,25],[40,26,41,26],[40,27,41,27],[40,28,41,28],[40,29,41,29],[40,30,41,30],[40,3,40,7],[40,8,40,10],[40,11,40,16],[40,17,41,19],[40,22,41,23],[42,2,43,2],[42,3,42,7],[42,8,42,10],[42,11,42,16],[42,17,43,19],[42,22,43,23],[40,37,41,37],[40,38,41,38],[40,39,41,39],[40,2,41,2],[42,40,43,40],[43,3,43,7],[43,8,43,10],[43,11,43,16],[43,20,43,21],[42,31,43,31],[42,32,43,32],[42,33,43,33],[42,34,43,34],[42,35,43,35],[42,36,43,36],[42,25,43,25],[42,26,43,26],[42,27,43,27],[42,28,43,28],[42,29,43,29],[42,30,43,30],[44,3,45,8],[44,9,44,17],[44,19,44,22],[45,10,45,11],[45,19,45,22],[45,31,45,39],[42,37,43,37],[42,38,43,38],[42,39,43,39],[46,10,46,11],[46,12,46,14],[46,19,46,22],[47,2,48,3],[48,5,48,8],[49,2,49,4],[49,5,50,5],[49,6,50,8],[49,9,50,40],[54,2,56,3],[54,4,56,6],[54,7,56,7],[54,8,56,8],[54,9,56,9],[54,10,56,17],[51,25,52,29],[51,30,54,30],[51,31,56,39],[53,18,54,20],[53,21,54,24],[53,25,56,29],[55,18,56,20],[55,21,56,24],[55,30,56,30],[51,2,53,3],[51,4,53,8],[51,9,53,9],[51,10,53,17],[51,18,52,20],[51,21,52,24],[57,18,58,39],[58,2,60,3],[58,4,60,9],[58,10,60,10],[58,11,60,17],[61,2,64,3],[61,4,64,9],[61,10,64,10],[61,11,64,17],[63,18,63,40],[66,24,67,24],[66,25,66,30],[66,31,67,38],[66,40,67,40],[67,25,67,30],[68,2,69,2],[68,3,68,7],[68,8,68,10],[68,11,68,16],[68,17,69,19],[66,2,67,7],[66,8,67,10],[66,11,67,16],[66,17,67,19],[66,20,67,21],[66,22,67,23],[68,39,69,39],[68,40,69,40],[69,3,69,7],[69,8,69,10],[69,11,69,16],[69,20,69,21],[68,30,69,30],[68,31,69,31],[70,2,71,2],[70,3,70,7],[70,8,70,10],[70,11,70,16],[70,17,71,19],[70,22,71,23],[68,36,69,36],[68,37,69,37],[68,38,69,38],[70,37,71,37],[70,38,71,38],[68,32,69,32],[68,33,69,33],[68,34,69,34],[68,35,69,35],[68,22,69,23],[68,25,69,25],[68,26,69,26],[68,27,69,27],[68,28,69,28],[68,29,69,29],[70,39,71,39],[70,40,71,40],[71,3,71,7],[71,8,71,10],[71,11,71,16],[71,20,71,21],[70,31,71,31],[70,32,71,32],[70,33,71,33],[70,34,71,34],[70,35,71,35],[70,36,71,36],[70,25,71,25],[70,26,71,26],[70,27,71,27],[70,28,71,28],[70,29,71,29],[70,30,71,30],[72,40,73,40],[73,3,73,7],[73,8,73,10],[73,11,73,16],[73,20,73,21],[72,31,73,31],[72,32,73,32],[72,33,73,33],[72,34,73,34],[72,35,73,35],[72,36,73,36],[72,25,73,25],[72,26,73,26],[72,27,73,27],[72,28,73,28],[72,29,73,29],[72,30,73,30],[72,3,72,7],[72,8,72,10],[72,11,72,16],[72,17,73,19],[72,22,73,23],[74,2,75,2],[74,3,74,7],[74,8,74,10],[74,11,74,16],[74,17,75,19],[74,22,75,23],[72,37,73,37],[72,38,73,38],[72,39,73,39],[72,2,73,2],[74,37,75,37],[74,38,75,38],[74,39,75,39],[74,40,75,40],[75,3,75,7],[75,8,75,10],[75,11,75,16],[75,20,75,21],[74,31,75,31],[74,32,75,32],[74,33,75,33],[74,34,75,34],[74,35,75,35],[74,36,75,36],[74,25,75,25],[74,26,75,26],[74,27,75,27],[74,28,75,28],[74,29,75,29],[74,30,75,30],[76,40,77,40],[77,3,77,7],[77,8,77,10],[77,11,77,16],[77,20,77,21],[76,31,77,31],[76,32,77,32],[76,33,77,33],[76,34,77,34],[76,35,77,35],[76,36,77,36],[76,25,77,25],[76,26,77,26],[76,27,77,27],[76,28,77,28],[76,29,77,29],[76,30,77,30],[76,3,76,7],[76,8,76,10],[76,11,76,16],[76,17,77,19],[76,22,77,23],[78,2,79,2],[78,3,78,7],[78,8,78,10],[78,11,78,16],[78,17,79,19],[78,22,79,23],[76,37,77,37],[76,38,77,38],[76,39,77,39],[76,2,77,2],[78,37,79,37],[78,38,79,38],[78,39,79,39],[78,40,79,40],[79,3,79,7],[79,8,79,10],[79,11,79,16],[79,20,79,21],[78,31,79,31],[78,32,79,32],[78,33,79,33],[78,34,79,34],[78,35,79,35],[78,36,79,36],[78,25,79,25],[78,26,79,26],[78,27,79,27],[78,28,79,28],[78,29,79,29],[78,30,79,30],[80,40,81,40],[81,3,81,7],[81,8,81,10],[81,11,81,16],[81,20,81,21],[80,31,81,31],[80,32,81,32],[80,33,81,33],[80,34,81,34],[80,35,81,35],[80,36,81,36],[80,25,81,25],[80,26,81,26],[80,27,81,27],[80,28,81,28],[80,29,81,29],[80,30,81,30],[80,3,80,7],[80,8,80,10],[80,11,80,16],[80,17,81,19],[80,22,81,23],[82,2,83,2],[82,3,82,7],[82,8,82,10],[82,11,82,16],[82,17,83,19],[82,22,83,23],[80,37,81,37],[80,38,81,38],[80,39,81,39],[80,2,81,2],[82,37,83,37],[82,38,83,38],[82,39,83,39],[82,40,83,40],[83,3,83,7],[83,8,83,10],[83,11,83,16],[83,20,83,21],[82,31,83,31],[82,32,83,32],[82,33,83,33],[82,34,83,34],[82,35,83,35],[82,36,83,36],[82,25,83,25],[82,26,83,26],[82,27,83,27],[82,28,83,28],[82,29,83,29],[82,30,83,30],[84,40,85,40],[85,3,85,7],[85,8,85,10],[85,11,85,16],[85,20,85,21],[84,31,85,31],[84,32,85,32],[84,33,85,33],[84,34,85,34],[84,35,85,35],[84,36,85,36],[84,25,85,25],[84,26,85,26],[84,27,85,27],[84,28,85,28],[84,29,85,29],[84,30,85,30],[84,3,84,7],[84,8,84,10],[84,11,84,16],[84,17,85,19],[84,22,85,23],[86,2,87,2],[86,3,86,7],[86,8,86,10],[86,11,86,16],[86,17,87,19],[86,22,87,23],[84,37,85,37],[84,38,85,38],[84,39,85,39],[84,2,85,2],[86,37,87,37],[86,38,87,38],[86,39,87,39],[86,40,87,40],[87,3,87,7],[87,8,87,10],[87,11,87,16],[87,20,87,21],[86,31,87,31],[86,32,87,32],[86,33,87,33],[86,34,87,34],[86,35,87,35],[86,36,87,36],[86,25,87,25],[86,26,87,26],[86,27,87,27],[86,28,87,28],[86,29,87,29],[86,30,87,30],[90,10,90,11],[90,12,90,14],[90,19,90,22],[88,3,89,8],[88,9,88,17],[88,19,88,22],[89,10,89,11],[89,19,89,22],[89,31,89,39]]}
[]
[null,"このシートに、入力する必要はありません。入力シートに入力すると、自動的に作成されます。このまま印刷できます。"]
[null,null,null,null,null,"　↓太枠の提出日は、事務局記入欄ですので何も書かないで下さい。"]
[null,null,"様式３"]
[null,null,null,null,null,"＊太線の枠内のみ記入してください。"]
[null,null,"No,　  /",null,null,"提出日","　　　　 年  　 月 　　  日",null,null,"　　　　演　奏　利　用　明　細　書"]
[]
[null,null,"催物名",null,{"$f":"\"第\"&YEAR(TODAY())-1974&\"回九州アンサンブルコンテスト福岡県大会筑豊支部予選\"","v":"第49回九州アンサンブルコンテスト福岡県大会筑豊支部予選"},null,null,null,null,"会場名","イイヅカコスモスコモン 大ホール",null,null,null,null,null,null,null,"公演回数",null,null,"１回",null,null,null,"平均入場料",null,null,null,null,"レコード"]
[]
[null,null,null,null,null,null,null,null,null,null,null,null,null,null,null,null,null,null,"公演所要時間",null,null,"分",null,null,null,"１１００円"]
[null,null,"開催日",null,{"$f":"YEAR(TODAY())&\"年\"&\"　12月\"&\"　　　日\"","v":"2023年　12月　　　日"},null,null,1,"日間","申込者名","筑豊吹奏楽連盟"]
[null,null,null,null,null,null,null,null,null,null,null,null,null,null,null,null,null,null,"会場の定員数",null,null,"1,392名",null,null,null,null,null,null,null,null,"適"]
[]
[null,null,null,null,null,null,null,null,null,null,null,null,null,null,null,null,null,null,"  ※記入上のご注意  "]
[null,null,"団体名",null,{"$f":"団体データ!K15","v":0},null,null,null,null,null,"TEL",{"$f":"団体データ!P19","v":0}]
[null,null,null,null,null,null,null,null,null,null,null,null,null,null,null,null,null,null,"  １．太枠のなかのみご記入下さい。"]
[null,null,null,null,null,null,null,null,null,null,null,null,null,null,null,null,null,null,"  ２．曲名は原題を、人名はフルネーム（外国人はｱﾙﾌｧﾍﾞｯﾄ）をご記入下さい。"]
[null,null,"担当者名",null,{"$f":"団体データ!K23","v":0},null,null,null,null,null,"FAX",{"$f":"団体データ!P20","v":0},null,null,null,null,null,null,"  ３．メドレー曲は、含まれている1曲ごとに曲名・作曲者・編曲者等をご記入下さい。"]
[null,null,null,null,null,null,null,null,null,null,null,null,null,null,null,null,null,null,"  ４．組曲を全曲利用する場合は、〝全曲〟とご記入下さい。"]
[null,null,null,null,null,null,null,null,null,null,null,null,null,null,null,null,null,null,"  ５．組曲を抜粋利用する場合は、１曲ごとに曲名・作曲者・編曲者等をご記入下さい。"]
[]
[]
[null,null,"演奏曲目",null,null,null,null,null,"作曲者",null,null,"編曲者",null,null,null,null,null,"出版者名",null,null,"演奏\n時間",null,"演奏\n回数",null,"純軽","使　用　料\n（作品バリュー）",null,null,null,null,null,"作品コード"]
[null,null,null,null,null,null,null,null,null,null,null,null,null,null,null,null,null,null,null,null,null,null,null,null,null,"（作品バリュー）"]
[null,null,1,{"$f":"著作権データ!D19","v":0},null,null,null,null,{"$f":"著作権データ!AM19","v":0},null,null,{"$f":"著作権データ!AW19","v":0},null,null,null,null,null,{"$f":"著作権データ!BG19","v":0},null,null,{"$f":"著作権データ!BQ19","v":0},{"$f":"著作権データ!BU19","v":0},"1\n回",null,"Ｓ純"]
[null,null,null,{"$f":"著作権データ!X19","v":0},null,null,null,null,null,null,null,null,null,null,null,null,null,null,null,null,"分",null,null,null,"･軽"]
[null,null,2,{"$f":"著作権データ!D20","v":0},null,null,null,null,{"$f":"著作権データ!AM20","v":0},null,null,{"$f":"著作権データ!AW20","v":0},null,null,null,null,null,{"$f":"著作権データ!BG20","v":0},null,null,{"$f":"著作権データ!$BQ$20","v":0},{"$f":"著作権データ!$BU$20","v":0},"1\n回",null,"Ｓ純"]
[null,null,null,{"$f":"著作権データ!X20","v":0},null,null,null,null,null,null,null,null,null,null,null,null,null,null,null,null,"分",null,null,null,"･軽"]
[null,null,3,{"$f":"著作権データ!D21","v":0},null,null,null,null,{"$f":"著作権データ!AM21","v":0},null,null,{"$f":"著作権データ!AW21","v":0},null,null,null,null,null,{"$f":"著作権データ!BG21","v":0},null,null,{"$f":"著作権データ!$BQ$21","v":0},{"$f":"著作権データ!$BU$21","v":0},"1\n回",null,"Ｓ純"]
[null,null,null,{"$f":"著作権データ!X21","v":0},null,null,null,null,null,null,null,null,null,null,null,null,null,null,null,null,"分",null,null,null,"･軽"]
[null,null,4,{"$f":"著作権データ!D22","v":0},null,null,null,null,{"$f":"著作権データ!AM22","v":0},null,null,{"$f":"著作権データ!AW22","v":0},null,null,null,null,null,{"$f":"著作権データ!BG22","v":0},null,null,{"$f":"著作権データ!$BQ$22","v":0},{"$f":"著作権データ!$BU$22","v":0},"1\n回",null,"Ｓ純"]
[null,null,null,{"$f":"著作権データ!X22","v":0},null,null,null,null,null,null,null,null,null,null,null,null,null,null,null,null,"分",null,null,null,"･軽"]
[null,null,5,{"$f":"著作権データ!D23","v":0},null,null,null,null,{"$f":"著作権データ!AM23","v":0},null,null,{"$f":"著作権データ!AW23","v":0},null,null,null,null,null,{"$f":"著作権データ!BG23","v":0},null,null,{"$f":"著作権データ!$BQ$23","v":0},{"$f":"著作権データ!$BU$23","v":0},"1\n回",null,"Ｓ純"]
[null,null,null,{"$f":"著作権データ!X23","v":0},null,null,null,null,null,null,null,null,null,null,null,null,null,null,null,null,"分",null,null,null,"･軽"]
[null,null,6,{"$f":"著作権データ!D24","v":0},null,null,null,null,{"$f":"著作権データ!AM24","v":0},null,null,{"$f":"著作権データ!AW24","v":0},null,null,null,null,null,{"$f":"著作権データ!BG24","v":0},null,null,{"$f":"著作権データ!$BQ$24","v":0},{"$f":"著作権データ!$BU$24","v":0},"1\n回",null,"Ｓ純"]
[null,null,null,{"$f":"著作権データ!X24","v":0},null,null,null,null,null,null,null,null,null,null,null,null,null,null,null,null,"分",null,null,null,"･軽"]
[null,null,7,{"$f":"著作権データ!D25","v":0},null,null,null,null,{"$f":"著作権データ!AM25","v":0},null,null,{"$f":"著作権データ!AW25","v":0},null,null,null,null,null,{"$f":"著作権データ!BG25","v":0},null,null,{"$f":"著作権データ!$BQ$25","v":0},{"$f":"著作権データ!$BU$25","v":0},"1\n回",null,"Ｓ純"]
[null,null,null,{"$f":"著作権データ!X25","v":0},null,null,null,null,null,null,null,null,null,null,null,null,null,null,null,null,"分",null,null,null,"･軽"]
[null,null,8,{"$f":"著作権データ!D26","v":0},null,null,null,null,{"$f":"著作権データ!AM26","v":0},null,null,{"$f":"著作権データ!AW26","v":0},null,null,null,null,null,{"$f":"著作権データ!BG26","v":0},null,null,{"$f":"著作権データ!$BQ$26","v":0},{"$f":"著作権データ!$BU$26","v":0},"1\n回",null,"Ｓ純"]
[null,null,null,{"$f":"著作権データ!X26","v":0},null,null,null,null,null,null,null,null,null,null,null,null,null,null,null,null,"分",null,null,null,"･軽"]
[null,null,9,{"$f":"著作権データ!D27","v":0},null,null,null,null,{"$f":"著作権データ!AM27","v":0},null,null,{"$f":"著作権データ!AW27","v":0},null,null,null,null,null,{"$f":"著作権データ!BG27","v":0},null,null,{"$f":"著作権データ!$BQ$27","v":0},{"$f":"著作権データ!$BU$27","v":0},"1\n回",null,"Ｓ純"]
[null,null,null,{"$f":"著作権データ!X27","v":0},null,null,null,null,null,null,null,null,null,null,null,null,null,null,null,null,"分",null,null,null,"･軽"]
[null,null,10,{"$f":"著作権データ!D28","v":0},null,null,null,null,{"$f":"著作権データ!AM28","v":0},null,null,{"$f":"著作権データ!AW28","v":0},null,null,null,null,null,{"$f":"著作権データ!BG28","v":0},null,null,{"$f":"著作権データ!$BQ$28","v":0},{"$f":"著作権データ!$BU$28","v":0},"1\n回",null,"Ｓ純"]
[null,null,null,{"$f":"著作権データ!X28","v":0},null,null,null,null,null,null,null,null,null,null,null,null,null,null,null,null,"分",null,null,null,"･軽"]
[null,null,null,null,null,null,null,null,null,"Ｎ・Ｍ･･･当協会管理外　　Ｐ・Ｄ･･･著作権消滅",null,null,null,null,null,null,null,null,null,"小計",null,null,null,null,null,null,null,null,null,null,null,9,9,9,9,9,9,9,9]
[null,null,null,null,null,null,null,null,null,null,"請求日",null,null,null,null,null,null,null,null,"消費税相当額",null,null,null,null,null,null,null,null,null,null,null,"請求書番号"]
[null,null,null," ＪＡＳＲＡＣ提出用",null,null,null,null,null,null,"種目\n規定区分",null,"Ａ",null,null,null,null,null,null,"合計"]
[null,null,"様式３"]
[null,null,null,null,null,"＊太線の枠内のみ記入してください。"]
[null,null,"No,　  /",null,null,"提出日","　　　　 年  　 月 　　  日",null,null,"　　　　演　奏　利　用　明　細　書"]
[]
[null,null,"催物名",null,{"$f":"E8","v":"第49回九州アンサンブルコンテスト福岡県大会筑豊支部予選"},null,null,null,null,"会場名",{"$f":"K8","v":"イイヅカコスモスコモン 大ホール"},null,null,null,null,null,null,null,"公演回数",null,null,"１回",null,null,null,"平均入場料",null,null,null,null,"レコード"]
[]
[null,null,null,null,null,null,null,null,null,null,null,null,null,null,null,null,null,null,"公演所要時間",null,null,"分",null,null,null,{"$f":"Z10","v":"１１００円"}]
[null,null,"開催日",null,{"$f":"E11","v":"2023年　12月　　　日"},null,null,1,"日間","申込者名","筑豊吹奏楽連盟"]
[null,null,null,null,null,null,null,null,null,null,null,null,null,null,null,null,null,null,"会場の定員数",null,null,{"$f":"V12","v":"1,392名"},null,null,null,null,null,null,null,null,"適"]
[]
[null,null,null,null,null,null,null,null,null,null,null,null,null,null,null,null,null,null,"  ※記入上のご注意  "]
[null,null,"団体名",null,{"$f":"E15","v":0},null,null,null,null,null,"TEL",{"$f":"L15","v":0}]
[null,null,null,null,null,null,null,null,null,null,null,null,null,null,null,null,null,null,"  １．太枠のなかのみご記入下さい。"]
[null,null,null,null,null,null,null,null,null,null,null,null,null,null,null,null,null,null,"  ２．曲名は原題を、人名はフルネーム（外国人はｱﾙﾌｧﾍﾞｯﾄ）をご記入下さい。"]
[null,null,"担当者名",null,{"$f":"E18","v":0},null,null,null,null,null,"FAX",{"$f":"L18","v":0},null,null,null,null,null,null,"  ３．メドレー曲は、含まれている1曲ごとに曲名・作曲者・編曲者等をご記入下さい。"]
[null,null,null,null,null,null,null,null,null,null,null,null,null,null,null,null,null,null,"  ４．組曲を全曲利用する場合は、〝全曲〟とご記入下さい。"]
[null,null,null,null,null,null,null,null,null,null,null,null,null,null,null,null,null,null,"  ５．組曲を抜粋利用する場合は、１曲ごとに曲名・作曲者・編曲者等をご記入下さい。"]
[]
[]
[null,null,"演奏曲目",null,null,null,null,null,"作曲者",null,null,"編曲者",null,null,null,null,null,"出版者名",null,null,"演奏\n時間",null,"演奏\n回数",null,"純軽","使　用　料\n（作品バリュー）",null,null,null,null,null,"作品コード"]
[null,null,null,null,null,null,null,null,null,null,null,null,null,null,null,null,null,null,null,null,null,null,null,null,null,"（作品バリュー）"]
[null,null,1,{"$f":"著作権データ!D29","v":0},null,null,null,null,{"$f":"著作権データ!AM29","v":0},null,null,{"$f":"著作権データ!AW29","v":0},null,null,null,null,null,{"$f":"著作権データ!BG29","v":0},null,null,{"$f":"著作権データ!$BQ$29","v":0},{"$f":"著作権データ!$BU$29","v":0},"1\n回",null,"Ｓ純"]
[null,null,null,{"$f":"著作権データ!X29","v":0},null,null,null,null,null,null,null,null,null,null,null,null,null,null,null,null,"分",null,null,null,"･軽"]
[null,null,2,{"$f":"著作権データ!D30","v":0},null,null,null,null,{"$f":"著作権データ!AM30","v":0},null,null,{"$f":"著作権データ!AW30","v":0},null,null,null,null,null,{"$f":"著作権データ!BG30","v":0},null,null,{"$f":"著作権データ!$BQ$30","v":0},{"$f":"著作権データ!$BU$30","v":0},"1\n回",null,"Ｓ純"]
[null,null,null,{"$f":"著作権データ!X30","v":0},null,null,null,null,null,null,null,null,null,null,null,null,null,null,null,null,"分",null,null,null,"･軽"]
[null,null,3,{"$f":"著作権データ!D31","v":0},null,null,null,null,{"$f":"著作権データ!AM31","v":0},null,null,{"$f":"著作権データ!AW31","v":0},null,null,null,null,null,{"$f":"著作権データ!BG31","v":0},null,null,{"$f":"著作権データ!$BQ$31","v":0},{"$f":"著作権データ!$BU$31","v":0},"1\n回",null,"Ｓ純"]
[null,null,null,{"$f":"著作権データ!X31","v":0},null,null,null,null,null,null,null,null,null,null,null,null,null,null,null,null,"分",null,null,null,"･軽"]
[null,null,4,{"$f":"著作権データ!D32","v":0},null,null,null,null,{"$f":"著作権データ!AM32","v":0},null,null,{"$f":"著作権データ!AW32","v":0},null,null,null,null,null,{"$f":"著作権データ!BG32","v":0},null,null,{"$f":"著作権データ!$BQ$32","v":0},{"$f":"著作権データ!$BU$32","v":0},"1\n回",null,"Ｓ純"]
[null,null,null,{"$f":"著作権データ!X32","v":0},null,null,null,null,null,null,null,null,null,null,null,null,null,null,null,null,"分",null,null,null,"･軽"]
[null,null,5,{"$f":"著作権データ!D33","v":0},null,null,null,null,{"$f":"著作権データ!AM33","v":0},null,null,{"$f":"著作権データ!AW33","v":0},null,null,null,null,null,{"$f":"著作権データ!BG33","v":0},null,null,{"$f":"著作権データ!$BQ$33","v":0},{"$f":"著作権データ!$BU$33","v":0},"1\n回",null,"Ｓ純"]
[null,null,null,{"$f":"著作権データ!X33","v":0},null,null,null,null,null,null,null,null,null,null,null,null,null,null,null,null,"分",null,null,null,"･軽"]
[null,null,6,{"$f":"著作権データ!D34","v":0},null,null,null,null,{"$f":"著作権データ!AM34","v":0},null,null,{"$f":"著作権データ!AW34","v":0},null,null,null,null,null,{"$f":"著作権データ!BG34","v":0},null,null,{"$f":"著作権データ!$BQ$34","v":0},{"$f":"著作権データ!$BU$34","v":0},"1\n回",null,"Ｓ純"]
[null,null,null,{"$f":"著作権データ!X34","v":0},null,null,null,null,null,null,null,null,null,null,null,null,null,null,null,null,"分",null,null,null,"･軽"]
[null,null,7,{"$f":"著作権データ!D35","v":0},null,null,null,null,{"$f":"著作権データ!AM35","v":0},null,null,{"$f":"著作権データ!AW35","v":0},null,null,null,null,null,{"$f":"著作権データ!BG35","v":0},null,null,{"$f":"著作権データ!$BQ$35","v":0},{"$f":"著作権データ!$BU$35","v":0},"1\n回",null,"Ｓ純"]
[null,null,null,{"$f":"著作権データ!X35","v":0},null,null,null,null,null,null,null,null,null,null,null,null,null,null,null,null,"分",null,null,null,"･軽"]
[null,null,8,{"$f":"著作権データ!D36","v":0},null,null,null,null,{"$f":"著作権データ!AM36","v":0},null,null,{"$f":"著作権データ!AW36","v":0},null,null,null,null,null,{"$f":"著作権データ!BG36","v":0},null,null,{"$f":"著作権データ!$BQ$36","v":0},{"$f":"著作権データ!$BU$36","v":0},"1\n回",null,"Ｓ純"]
[null,null,null,{"$f":"著作権データ!X36","v":0},null,null,null,null,null,null,null,null,null,null,null,null,null,null,null,null,"分",null,null,null,"･軽"]
[null,null,9,{"$f":"著作権データ!D37","v":0},null,null,null,null,{"$f":"著作権データ!AM37","v":0},null,null,{"$f":"著作権データ!AW37","v":0},null,null,null,null,null,{"$f":"著作権データ!BG37","v":0},null,null,{"$f":"著作権データ!$BQ$37","v":0},{"$f":"著作権データ!$BU$37","v":0},"1\n回",null,"Ｓ純"]
[null,null,null,{"$f":"著作権データ!X37","v":0},null,null,null,null,null,null,null,null,null,null,null,null,null,null,null,null,"分",null,null,null,"･軽"]
[null,null,10,{"$f":"著作権データ!D38","v":0},null,null,null,null,{"$f":"著作権データ!AM38","v":0},null,null,{"$f":"著作権データ!AW38","v":0},null,null,null,null,null,{"$f":"著作権データ!BG38","v":0},null,null,{"$f":"著作権データ!$BQ$38","v":0},{"$f":"著作権データ!$BU$38","v":0},"1\n回",null,"Ｓ純"]
[null,null,null,{"$f":"著作権データ!X38","v":0},null,null,null,null,null,null,null,null,null,null,null,null,null,null,null,null,"分",null,null,null,"･軽"]
[null,null,null,null,null,null,null,null,null,"Ｎ・Ｍ･･･当協会管理外　　Ｐ・Ｄ･･･著作権消滅",null,null,null,null,null,null,null,null,null,"小計",null,null,null,null,null,null,null,null,null,null,null,9,9,9,9,9,9,9,9]
[null,null,null,null,null,null,null,null,null,null,"請求日",null,null,null,null,null,null,null,null,"消費税相当額",null,null,null,null,null,null,null,null,null,null,null,"請求書番号"]
[null,null,null," ＪＡＳＲＡＣ提出用",null,null,null,null,null,null,"種目\n規定区分",null,"Ａ",null,null,null,null,null,null,"合計"]

{"sheet":"アナウンス原稿","index":11,"n_rows":21,"n_cols":115,"rows_kept":21,"cut":false,"hidden":false,"merged":[[14,70,14,73],[14,74,14,117],[10,70,10,117],[11,62,14,69],[11,70,11,73],[11,74,11,89],[11,90,11,93],[11,94,11,97],[11,98,11,113],[11,114,11,117],[12,70,12,73],[12,74,12,89],[12,90,12,93],[12,94,12,97],[12,98,12,113],[12,114,12,117],[13,70,13,73],[13,74,13,117],[12,10,12,13],[12,30,12,33],[11,30,11,33],[8,70,8,117],[1,61,1,119],[3,62,3,118],[4,62,4,118],[5,65,5,70],[5,71,5,79],[9,62,9,69],[9,70,9,117],[10,62,10,69],[6,2,6,12],[6,13,6,19],[6,20,6,43],[8,2,8,9],[9,2,9,9],[8,10,8,57],[9,10,9,57],[10,2,10,9],[10,10,10,57],[6,62,6,72],[6,73,6,79],[6,80,6,103],[8,62,8,69],[11,2,14,9],[12,14,12,29],[11,38,11,53],[12,38,12,53],[11,14,11,29],[13,14,13,57],[14,14,14,57],[13,10,13,13],[14,10,14,13],[12,54,12,57],[11,54,11,57],[12,34,12,37],[11,34,11,37],[11,10,11,13],[3,2,3,58],[4,2,4,58],[5,5,5,10],[5,11,5,19],[1,1,1,59]]}
[]
[null,"このシートに、入力する必要はありません。入力シートに入力すると、自動的に作成されます。このまま印刷できます。",null,null,null,null,null,null,null,null,null,null,null,null,null,null,null,null,null,null,null,null,null,null,null,null,null,null,null,null,null,null,null,null,null,null,null,null,null,null,null,null,null,null,null,null,null,null,null,null,null,null,null,null,null,null,null,null,null,null,null,"このシートに、入力する必要はありません。入力シートに入力すると、自動的に作成されます。このまま印刷できます。"]
[]
[]
[null,null,{"$f":"\"第 \"&YEAR(TODAY())-1974&\" 回　アンサンブルコンテスト筑豊支部予選\nアナウンス原稿A\"","v":"第 49 回　アンサンブルコンテスト筑豊支部予選\nアナウンス原稿A"},null,null,null,null,null,null,null,null,null,null,null,null,null,null,null,null,null,null,null,null,null,null,null,null,null,null,null,null,null,null,null,null,null,null,null,null,null,null,null,null,null,null,null,null,null,null,null,null,null,null,null,null,null,null,null,null,null,null,null,{"$f":"\"第 \"&YEAR(TODAY())-1974&\" 回　アンサンブルコンテスト筑豊支部予選\nアナウンス原稿B\"","v":"第 49 回　アンサンブルコンテスト筑豊支部予選\nアナウンス原稿B"}]
[null,null,null,null,null,"出演日",null,null,null,null,null,{"$f":"団体データ!K29","v":0},null,null,null,null,null,null,null,null,null,null,null,null,null,null,null,null,null,null,null,null,null,null,null,null,null,null,null,null,null,null,null,null,null,null,null,null,null,null,null,null,null,null,null,null,null,null,null,null,null,null,null,null,null,"出演日",null,null,null,null,null,{"$f":"L6","v":0}]
[null,null,"プログラム",null,null,null,null,null,null,null,null,null,null,null,null,null,null,null,null,null,"番 ※事務局にて記入します",null,null,null,null,null,null,null,null,null,null,null,null,null,null,null,null,null,null,null,null,null,null,null,null,null,null,null,null,null,null,null,null,null,null,null,null,null,null,null,null,null,"プログラム",null,null,null,null,null,null,null,null,null,null,null,null,null,null,null,null,null,"番 ※事務局にて記入します"]
[]
[null,null,"フリガナ",null,null,null,null,null,null,null,{"$f":"団体データ!K14","v":""},null,null,null,null,null,null,null,null,null,null,null,null,null,null,null,null,null,null,null,null,null,null,null,null,null,null,null,null,null,null,null,null,null,null,null,null,null,null,null,null,null,null,null,null,null,null,null,null,null,null,null,"フリガナ",null,null,null,null,null,null,null,{"$f":"K9","v":""}]
[null,null,"団体名",null,null,null,null,null,null,null,{"$f":"団体データ!K15","v":0},null,null,null,null,null,null,null,null,null,null,null,null,null,null,null,null,null,null,null,null,null,null,null,null,null,null,null,null,null,null,null,null,null,null,null,null,null,null,null,null,null,null,null,null,null,null,null,null,null,null,null,"団体名",null,null,null,null,null,null,null,{"$f":"K10","v":0}]
[null,null,"編成",null,null,null,null,null,null,null,{"$f":"団体データ!J31&団体データ!M31&団体データ!O31","v":"重奏"},null,null,null,null,null,null,null,null,null,null,null,null,null,null,null,null,null,null,null,null,null,null,null,null,null,null,null,null,null,null,null,null,null,null,null,null,null,null,null,null,null,null,null,null,null,null,null,null,null,null,null,"編成",null,null,null,null,null,null,null,{"$f":"団体データ!X31&団体データ!AA31&団体データ!AC31","v":"重奏"}]
[null,null,"演奏曲",null,null,null,null,null,null,null,"フリガナ",null,null,null,{"$f":"プログラムデータ!S39","v":0},null,null,null,null,null,null,null,null,null,null,null,null,null,null,null,null,null,null,null,"フリガナ",null,null,null,{"$f":"プログラムデータ!S42","v":0},null,null,null,null,null,null,null,null,null,null,null,null,null,null,null,null,null,null,null,null,null,null,null,"演奏曲",null,null,null,null,null,null,null,"フリガナ",null,null,null,{"$f":"プログラムデータ!CC39","v":0},null,null,null,null,null,null,null,null,null,null,null,null,null,null,null,null,null,null,null,"フリガナ",null,null,null,{"$f":"プログラムデータ!CC42","v":0}]
[null,null,null,null,null,null,null,null,null,null,"作曲者",null,null,null,{"$f":"プログラムデータ!S40","v":0},null,null,null,null,null,null,null,null,null,null,null,null,null,null,null,"作曲",null,null,null,"編曲者",null,null,null,{"$f":"プログラムデータ!S43","v":0},null,null,null,null,null,null,null,null,null,null,null,null,null,null,null,"編曲",null,null,null,null,null,null,null,null,null,null,null,null,null,null,null,"作曲者",null,null,null,{"$f":"プログラムデータ!CC40","v":0},null,null,null,null,null,null,null,null,null,null,null,null,null,null,null,"作曲",null,null,null,"編曲者",null,null,null,{"$f":"プログラムデータ!CC43","v":0},null,null,null,null,null,null,null,null,null,null,null,null,null,null,null,"編曲"]
[null,null,null,null,null,null,null,null,null,null,"フリガナ",null,null,null,{"$f":"プログラムデータ!S31","v":0},null,null,null,null,null,null,null,null,null,null,null,null,null,null,null,null,null,null,null,null,null,null,null,null,null,null,null,null,null,null,null,null,null,null,null,null,null,null,null,null,null,null,null,null,null,null,null,null,null,null,null,null,null,null,null,"フリガナ",null,null,null,{"$f":"プログラムデータ!CC31","v":0}]
[null,null,null,null,null,null,null,null,null,null,"曲目",null,null,null,{"$f":"プログラムデータ!S32","v":0},null,null,null,null,null,null,null,null,null,null,null,null,null,null,null,null,null,null,null,null,null,null,null,null,null,null,null,null,null,null,null,null,null,null,null,null,null,null,null,null,null,null,null,null,null,null,null,null,null,null,null,null,null,null,null,"曲目",null,null,null,{"$f":"プログラムデータ!CC32","v":0}]
[]
[]
[null,null,"※出演順は吹奏楽連盟事務局にて記入いたします。",null,null,null,null,null,null,null,null,null,null,null,null,null,null,null,null,null,null,null,null,null,null,null,null,null,null,null,null,null,null,null,null,null,null,null,null,null,null,null,null,null,null,null,null,null,null,null,null,null,null,null,null,null,null,null,null,null,null,null,"※出演順は吹奏楽連盟事務局にて記入いたします。"]
[null,null,"※中学校・高等学校の団体名は正式名称でアナウンスいたします。",null,null,null,null,null,null,null,null,null,null,null,null,null,null,null,null,null,null,null,null,null,null,null,null,null,null,null,null,null,null,null,null,null,null,null,null,null,null,null,null,null,null,null,null,null,null,null,null,null,null,null,null,null,null,null,null,null,null,null,"※中学校・高等学校の団体名は正式名称でアナウンスいたします。"]
[null,null,"（クラブ名はアナウンスされません）",null,null,null,null,null,null,null,null,null,null,null,null,null,null,null,null,null,null,null,null,null,null,null,null,null,null,null,null,null,null,null,null,null,null,null,null,null,null,null,null,null,null,null,null,null,null,null,null,null,null,null,null,null,null,null,null,null,null,null,"（クラブ名はアナウンスされません）"]
[null,null,"※楽章・組曲・メドレーはアナウンスされません。",null,null,null,null,null,null,null,null,null,null,null,null,null,null,null,null,null,null,null,null,null,null,null,null,null,null,null,null,null,null,null,null,null,null,null,null,null,null,null,null,null,null,null,null,null,null,null,null,null,null,null,null,null,null,null,null,null,null,null,"※楽章・組曲・メドレーはアナウンスされません。"]

{"sheet":"請求書","index":12,"n_rows":108,"n_cols":41,"rows_kept":108,"cut":false,"hidden":false,"merged":[[95,30,95,31],[100,30,100,41],[105,4,105,39],[105,40,105,49],[107,13,107,31],[107,32,107,44],[95,11,95,14],[95,15,95,18],[95,19,95,21],[95,22,95,24],[95,25,95,26],[95,27,95,29],[70,40,70,49],[90,7,90,15],[76,4,79,47],[82,4,83,22],[82,23,83,25],[85,11,88,15],[85,16,88,36],[85,37,88,44],[90,16,90,38],[90,39,90,47],[29,30,29,41],[19,7,19,15],[72,13,72,31],[72,32,72,44],[34,4,34,39],[34,40,34,49],[36,13,36,31],[36,32,36,44],[55,7,55,15],[55,39,55,47],[55,16,55,38],[60,11,60,14],[60,15,60,18],[60,19,60,21],[65,30,65,41],[70,4,70,39],[60,22,60,24],[60,25,60,26],[60,27,60,29],[60,30,60,31],[41,4,44,47],[47,4,48,22],[47,23,48,25],[50,11,53,15],[50,16,53,36],[50,37,53,44],[24,11,24,14],[24,15,24,18],[24,19,24,21],[24,22,24,24],[1,1,1,50],[5,4,8,47],[11,4,12,22],[11,23,12,25],[14,11,17,15],[14,16,17,36],[14,37,17,44],[24,25,24,26],[24,27,24,29],[24,30,24,31],[19,16,19,38]]}
[]
[null,"このシートに、入力する必要はありません。入力シートに入力すると、自動的に作成されます。このまま印刷できます。"]
[]
[]
[]
[null,null,null,null,"請　求　書"]
[]
[]
[]
[]
[]
[null,null,null,null,{"$f":"団体データ!K15","v":0},null,null,null,null,null,null,null,null,null,null,null,null,null,null,null,null,null,null,"様"]
[]
[]
[null,null,null,null,null,null,null,null,null,null,null,"金",null,null,null,null,{"$f":"提出書類確認!AL29","v":0},null,null,null,null,null,null,null,null,null,null,null,null,null,null,null,null,null,null,null,null,"円也"]
[]
[]
[]
[]
[null,null,null,null,null,null,null,"上記の通り，",null,null,null,null,null,null,null,null,{"$f":"著作権申請!E8","v":"第49回九州アンサンブルコンテスト福岡県大会筑豊支部予選"},null,null,null,null,null,null,null,null,null,null,null,null,null,null,null,null,null,null,null,null,null,null,"参加費として"]
[]
[null,null,null,null,null,null,"請求いたします。"]
[]
[]
[null,null,null,null,null,null,null,null,null,null,null,{"$f":"団体データ!$K$12","v":"令和"},null,null,null,{"$f":"YEAR(TODAY())-2018","v":5},{"$f":"YEAR(TODAY())-1988","v":35},{"$f":"YEAR(TODAY())-1988","v":35},{"$f":"YEAR(TODAY())-1988","v":35},"年",null,null,null,null,null,"月",null,null,null,null,"日"]
[]
[]
[null,null,null,null,null,null,null,null,null,null,null,null,null,null,null,null,null,null,null,null,null,"筑豊吹奏楽連盟"]
[]
[null,null,null,null,null,null,null,null,null,null,null,null,null,null,null,null,null,null,null,null,null,null,null,"理事長",null,null,null,null,null,null,"伏　見　宣　秀"]
[]
[]
[]
[]
[null,null,null,null,"振込先：福岡銀行　飯塚支店　普通預金　口座番号",null,null,null,null,null,null,null,null,null,null,null,null,null,null,null,null,null,null,null,null,null,null,null,null,null,null,null,null,null,null,null,null,null,null,null,2116079]
[]
[null,null,null,null,null,null,null,null,null,null,null,null,null,"筑豊吹奏楽連盟　理事長",null,null,null,null,null,null,null,null,null,null,null,null,null,null,null,null,null,null,"溝口　英"]
[]
[]
[]
[]
[null,null,null,null,"請　求　書"]
[]
[]
[]
[]
[]
[null,null,null,null,{"$f":"$E$12","v":0},null,null,null,null,null,null,null,null,null,null,null,null,null,null,null,null,null,null,"様"]
[]
[]
[null,null,null,null,null,null,null,null,null,null,null,"金",null,null,null,null,{"$f":"提出書類確認!AL31","v":0},null,null,null,null,null,null,null,null,null,null,null,null,null,null,null,null,null,null,null,null,"円也"]
[]
[]
[]
[]
[null,null,null,null,null,null,null,"上記の通り，",null,null,null,null,null,null,null,null,{"$f":"$Q$20","v":"第49回九州アンサンブルコンテスト福岡県大会筑豊支部予選"},null,null,null,null,null,null,null,null,null,null,null,null,null,null,null,null,null,null,null,null,null,null,"著作権料として"]
[]
[null,null,null,null,null,null,"請求いたします。"]
[]
[]
[null,null,null,null,null,null,null,null,null,null,null,{"$f":"L25","v":"令和"},null,null,null,5,null,null,null,"年",null,null,{"$f":"W25","v":0},null,null,"月",null,null,null,null,"日"]
[]
[]
[null,null,null,null,null,null,null,null,null,null,null,null,null,null,null,null,null,null,null,null,null,"筑豊吹奏楽連盟"]
[]
[null,null,null,null,null,null,null,null,null,null,null,null,null,null,null,null,null,null,null,null,null,null,null,"理事長",null,null,null,null,null,null,{"$f":"$AE$30","v":"伏　見　宣　秀"}]
[]
[]
[]
[]
[null,null,null,null,{"$f":"$E$35","v":"振込先：福岡銀行　飯塚支店　普通預金　口座番号"},null,null,null,null,null,null,null,null,null,null,null,null,null,null,null,null,null,null,null,null,null,null,null,null,null,null,null,null,null,null,null,null,null,null,null,{"$f":"$AO$35","v":2116079}]
[]
[null,null,null,null,null,null,null,null,null,null,null,null,null,"筑豊吹奏楽連盟　理事長",null,null,null,null,null,null,null,null,null,null,null,null,null,null,null,null,null,null,{"$f":"$AG$37","v":"溝口　英"}]
[]
[]
[]
[null,null,null,null,"請　求　書"]
[]
[]
[]
[]
[]
[null,null,null,null,{"$f":"$E$12","v":0},null,null,null,null,null,null,null,null,null,null,null,null,null,null,null,null,null,null,"様"]
[]
[]
[null,null,null,null,null,null,null,null,null,null,null,"金",null,null,null,null,{"$f":"提出書類確認!AL30","v":0},null,null,null,null,null,null,null,null,null,null,null,null,null,null,null,null,null,null,null,null,"円也"]
[]
[]
[]
[]
[null,null,null,null,null,null,null,"上記の通り，",null,null,null,null,null,null,null,null,{"$f":"$Q$20","v":"第49回九州アンサンブルコンテスト福岡県大会筑豊支部予選"},null,null,null,null,null,null,null,null,null,null,null,null,null,null,null,null,null,null,null,null,null,null,"登録外部員参加料として"]
[]
[null,null,null,null,null,null,"請求いたします。"]
[]
[]
[null,null,null,null,null,null,null,null,null,null,null,{"$f":"L25","v":"令和"},null,null,null,5,null,null,null,"年",null,null,{"$f":"$W$25","v":0},null,null,"月",null,null,null,null,"日"]
[]
[]
[null,null,null,null,null,null,null,null,null,null,null,null,null,null,null,null,null,null,null,null,null,"筑豊吹奏楽連盟"]
[]
[null,null,null,null,null,null,null,null,null,null,null,null,null,null,null,null,null,null,null,null,null,null,null,"理事長",null,null,null,null,null,null,{"$f":"$AE$30","v":"伏　見　宣　秀"}]
[]
[]
[]
[]
[null,null,null,null,{"$f":"$E$35","v":"振込先：福岡銀行　飯塚支店　普通預金　口座番号"},null,null,null,null,null,null,null,null,null,null,null,null,null,null,null,null,null,null,null,null,null,null,null,null,null,null,null,null,null,null,null,null,null,null,null,{"$f":"$AO$35","v":2116079}]
[]
[null,null,null,null,null,null,null,null,null,null,null,null,null,"筑豊吹奏楽連盟　理事長",null,null,null,null,null,null,null,null,null,null,null,null,null,null,null,null,null,null,{"$f":"$AG$37","v":"溝口　英"}]

{"sheet":"ステージ配置図","index":13,"n_rows":107,"n_cols":220,"rows_kept":107,"cut":false,"hidden":false,"merged":[[5,35,8,39],[5,40,8,46],[5,47,8,51],[5,52,8,80],[5,81,8,109],[106,8,113,26],[94,27,95,53],[1,1,1,44],[87,3,89,12],[87,13,89,19],[90,3,92,12],[90,13,92,19],[90,20,92,22],[90,23,92,24],[93,3,95,12],[3,24,4,31],[5,33,7,34],[5,25,7,32],[5,23,7,24],[8,31,13,31],[56,1,61,12],[24,25,29,25],[14,25,23,31],[88,34,89,71],[72,137,77,137],[62,131,71,137],[14,113,23,119],[30,119,39,125],[46,125,55,131],[24,119,29,119],[40,125,45,125],[56,131,61,131],[8,113,13,113],[93,13,95,19],[93,20,95,22],[93,23,95,24],[30,19,39,25],[46,13,55,19],[62,7,71,13],[40,19,45,19],[56,13,61,13],[85,3,86,14],[87,20,89,25],[86,20,86,25],[72,7,77,7],[98,27,107,45],[98,96,107,115],[98,121,107,138],[85,44,87,47],[85,72,87,75],[85,58,87,61],[85,34,87,43],[85,62,87,71],[85,48,87,57],[3,162,4,169],[5,161,7,162],[5,163,7,170],[5,171,7,172],[5,173,8,177],[5,178,8,184],[5,185,8,189],[5,190,8,218],[5,219,8,247],[8,169,13,169],[8,251,13,251],[14,163,23,169],[14,251,23,257],[24,163,29,163],[24,257,29,257],[30,157,39,163],[30,257,39,263],[40,157,45,157],[40,263,45,263],[46,151,55,157],[46,263,55,269],[56,139,61,150],[56,151,61,151],[56,269,61,269],[62,145,71,151],[62,269,71,275],[72,145,77,145],[72,275,77,275],[85,141,86,152],[85,172,87,181],[85,182,87,185],[85,186,87,195],[85,196,87,199],[85,200,87,209],[85,210,87,213],[86,158,86,163],[87,141,89,150],[87,151,89,157],[87,158,89,163],[88,172,89,209],[90,141,92,150],[90,151,92,157],[90,158,92,160],[90,161,92,162],[93,141,95,150],[93,151,95,157],[93,158,95,160],[93,161,95,162],[94,165,95,191]]}
[]
[null,"大会当日にA4サイズで２部提出してください"]
[]
[null,null,null,null,null,null,null,null,null,null,null,null,null,null,null,null,null,null,null,null,null,null,null,null,"出演日",null,null,null,null,null,null,null,null,null,null,null,null,null,null,null,null,null,null,null,null,null,null,null,null,null,null,null,null,null,null,null,null,null,null,null,null,null,null,null,null,null,null,null,null,null,null,null,null,null,null,null,null,null,null,null,null,null,null,null,null,null,null,null,null,null,null,null,null,null,null,null,null,null,null,null,null,null,null,null,null,null,null,null,null,null,null,null,null,null,null,null,null,null,null,null,null,null,null,null,null,null,null,null,null,null,null,null,null,null,null,null,null,null,null,null,null,null,null,null,null,null,null,null,null,null,null,null,null,null,null,null,null,null,null,null,null,null,"出演日"]
[]
[null,null,null,null,null,null,null,null,null,null,null,null,null,null,null,null,null,null,null,null,null,null,null,"（",null,{"$f":"団体データ!K29","v":0},null,null,null,null,null,null,null,"）",null,"出演順",null,null,null,null,null,null,null,null,null,null,null,"団体名",null,null,null,null,{"$f":"団体データ!K15","v":0},null,null,null,null,null,null,null,null,null,null,null,null,null,null,null,null,null,null,null,null,null,null,null,null,null,null,null,null,{"$f":"団体データ!J31&団体データ!M31&団体データ!O31","v":"重奏"},null,null,null,null,null,null,null,null,null,null,null,null,null,null,null,null,null,null,null,null,null,null,null,null,null,null,null,null,null,null,null,null,null,null,null,null,null,null,null,null,null,null,null,null,null,null,null,null,null,null,null,null,null,null,null,null,null,null,null,null,null,null,null,null,null,null,null,null,null,null,null,null,null,null,null,null,null,null,null,"（",null,{"$f":"Z6","v":0},null,null,null,null,null,null,null,"）",null,"出演順",null,null,null,null,null,null,null,null,null,null,null,"団体名",null,null,null,null,{"$f":"BA6","v":0},null,null,null,null,null,null,null,null,null,null,null,null,null,null,null,null,null,null,null,null,null,null,null,null,null,null,null,null,{"$f":"団体データ!X31&団体データ!AA31&団体データ!AC31","v":"重奏"}]
[]
[]
[]
[]
[]
[]
[]
[]
[]
[]
[]
[]
[]
[]
[]
[]
[]
[]
[]
[]
[]
[]
[]
[]
[]
[]
[]
[]
[]
[]
[]
[]
[]
[]
[]
[]
[]
[]
[]
[]
[]
[]
[]
[]
[null,null,null,null,null,null,null,null,null,null,null,null,null,null,null,null,null,null,null,null,null,null,null,null,null,null,null,null,null,null,null,null,null,null,null,null,"　　　※下手固定※",null,null,null,null,null,null,null,null,null,null,null,null,null,null,null,null,null,null,null,null,null,null,null,null,null,null,null,null,null,null,null,null,null,null,null,null,null,null,null,null,null,null,null,null,null,null,null,null,null,null,null,null,null,null,null,null,null,null,null,null,null,null,null,null,null,null,null,null,null,null,null,null,null,null,null,null,null,null,null,null,null,null,null,null,null,null,null,null,null,null,null,null,null,null,null,null,null,null,null,null,null,null,null,null,null,null,null,null,null,null,null,null,null,null,null,null,null,null,null,null,null,null,null,null,null,null,null,null,null,null,null,null,null,null,null,null,null,"　　　※下手固定※"]
[]
[]
[]
[]
[]
[]
[]
[]
[]
[]
[]
[]
[]
[]
[]
[]
[]
[]
[]
[]
[]
[]
[]
[]
[]
[]
[]
[]
[]
[]
[]
[]
[]
[]
[null,null,null,"※事前申請が必要です",null,null,null,null,null,null,null,null,null,null,null,null,null,null,null,null,null,null,null,null,null,null,null,null,null,null,null,null,null,null,"椅子（○）",null,null,null,null,null,null,null,null,null,null,null,null,null,"ピアノ椅子（ P ）",null,null,null,null,null,null,null,null,null,null,null,null,null,"譜面台（Y）",null,null,null,null,null,null,null,null,null,null,null,null,null,null,null,null,null,null,null,null,null,null,null,null,null,null,null,null,null,null,null,null,null,null,null,null,null,null,null,null,null,null,null,null,null,null,null,null,null,null,null,null,null,null,null,null,null,null,null,null,null,null,null,null,null,null,null,null,null,null,null,null,null,null,null,null,null,null,"※事前申請が必要です",null,null,null,null,null,null,null,null,null,null,null,null,null,null,null,null,null,null,null,null,null,null,null,null,null,null,null,null,null,null,"椅子（○）",null,null,null,null,null,null,null,null,null,null,null,null,null,"ピアノ椅子（ P ）",null,null,null,null,null,null,null,null,null,null,null,null,null,"譜面台（Y）"]
[null,null,null,null,null,null,null,null,null,null,null,null,null,null,null,null,null,null,null,null,"↓〇を付けてください",null,null,null,null,null,null,null,null,null,null,null,null,null,null,null,null,null,null,null,null,null,null,null,null,null,null,null,null,null,null,null,null,null,null,null,null,null,null,null,null,null,null,null,null,null,null,null,null,null,null,null,null,null,null,null,null,null,null,null,null,null,null,null,null,null,null,null,null,null,null,null,null,null,null,null,null,null,null,null,null,null,null,null,null,null,null,null,null,null,null,null,null,null,null,null,null,null,null,null,null,null,null,null,null,null,null,null,null,null,null,null,null,null,null,null,null,null,null,null,null,null,null,null,null,null,null,null,null,null,null,null,null,null,null,null,null,null,"↓〇を付けてください"]
[null,null,null,"・ピアノ使用",null,null,null,null,null,null,null,null,null,null,null,null,null,null,null,null,"（全開･半開）",null,null,null,null,null,null,null,null,null,null,null,null,null,null,null,null,null,null,null,null,null,null,null,null,null,null,null,null,null,null,null,null,null,null,null,null,null,null,null,null,null,null,null,null,null,null,null,null,null,null,null,null,null,null,null,null,null,null,null,null,null,null,null,null,null,null,null,null,null,null,null,null,null,null,null,null,null,null,null,null,null,null,null,null,null,null,null,null,null,null,null,null,null,null,null,null,null,null,null,null,null,null,null,null,null,null,null,null,null,null,null,null,null,null,null,null,null,null,null,null,"・ピアノ使用",null,null,null,null,null,null,null,null,null,null,null,null,null,null,null,null,"（全開･半開）"]
[null,null,null,null,null,null,null,null,null,null,null,null,null,null,null,null,null,null,null,null,null,null,null,null,null,null,null,null,null,null,null,null,null,null,"↑必要数を上記空欄にご記入の上，配置を図示してください。",null,null,null,null,null,null,null,null,null,null,null,null,null,null,null,null,null,null,null,null,null,null,null,null,null,null,null,null,null,null,null,null,null,null,null,null,null,null,null,null,null,null,null,null,null,null,null,null,null,null,null,null,null,null,null,null,null,null,null,null,null,null,null,null,null,null,null,null,null,null,null,null,null,null,null,null,null,null,null,null,null,null,null,null,null,null,null,null,null,null,null,null,null,null,null,null,null,null,null,null,null,null,null,null,null,null,null,null,null,null,null,null,null,null,null,null,null,null,null,null,null,null,null,null,null,null,null,null,null,null,null,null,null,null,null,null,null,"↑必要数を上記空欄にご記入の上，配置を図示してください。"]
[]
[null,null,null,"・マイク使用",null,null,null,null,null,null,null,null,null,null,null,null,null,null,null,null,null,null,null,"本",null,null,null,null,null,null,null,null,null,null,null,null,null,null,null,null,null,null,null,null,null,null,null,null,null,null,null,null,null,null,null,null,null,null,null,null,null,null,null,null,null,null,null,null,null,null,null,null,null,null,null,null,null,null,null,null,null,null,null,null,null,null,null,null,null,null,null,null,null,null,null,null,null,null,null,null,null,null,null,null,null,null,null,null,null,null,null,null,null,null,null,null,null,null,null,null,null,null,null,null,null,null,null,null,null,null,null,null,null,null,null,null,null,null,null,null,null,"・マイク使用",null,null,null,null,null,null,null,null,null,null,null,null,null,null,null,null,null,null,null,"本"]
[]
[]
[null,null,null,"・ピアノ椅子使用",null,null,null,null,null,null,null,null,null,{"$f":"\"( \"&IF(団体データ!Q35=\"有り\",\"○\",\"×\")&\" )\"","v":"( × )"},null,null,null,null,null,null,null,null,null,"脚",null,null,null,null,null,null,null,null,null,null,null,null,null,null,null,null,null,null,null,null,null,null,null,null,null,null,null,null,null,null,null,null,null,null,null,null,null,null,null,null,null,null,null,null,null,null,null,null,null,null,null,null,null,null,null,null,null,null,null,null,null,null,null,null,null,null,null,null,null,null,null,null,null,null,null,null,null,null,null,null,null,null,null,null,null,null,null,null,null,null,null,null,null,null,null,null,null,null,null,null,null,null,null,null,null,null,null,null,null,null,null,null,null,null,null,null,null,"・ピアノ椅子使用",null,null,null,null,null,null,null,null,null,{"$f":"\"( \"&IF(団体データ!AA35=\"有り\",\"○\",\"×\")&\" )\"","v":"( × )"},null,null,null,null,null,null,null,null,null,"脚"]
[null,null,null,null,null,null,null,null,null,null,null,null,null,null,null,null,null,null,null,null,null,null,null,null,null,null,null,"↑楽器名を四角囲みで記入して利用してください。",null,null,null,null,null,null,null,null,null,null,null,null,null,null,null,null,null,null,null,null,null,null,null,null,null,null,null,null,null,null,null,null,null,null,null,null,null,null,null,null,null,null,null,null,null,null,null,null,null,null,null,null,null,null,null,null,null,null,null,null,null,null,null,null,null,null,null,null,null,null,null,null,null,null,null,null,null,null,null,null,null,null,null,null,null,null,null,null,null,null,null,null,null,null,null,null,null,null,null,null,null,null,null,null,null,null,null,null,null,null,null,null,null,null,null,null,null,null,null,null,null,null,null,null,null,null,null,null,null,null,null,null,null,null,null,null,null,"↑楽器名を四角囲みで記入して利用してください。"]
[]
[]
[]
[null,null,null,null,null,null,null,null,null,null,null,null,null,null,null,null,null,null,null,null,null,null,null,null,null,null,null,"持ち込み打楽器については、それぞれで配置場所へご記入ください。"]
[]
[]
[]
[]
[]
[]
[]
[null,null,null,null,null,null,null,null,"↑ドラムセットを使用する場合はこちらの譜面台マークを使用してください。"]

{"sheet":"運搬車輌用団体確認票","index":14,"n_rows":9,"n_cols":18,"rows_kept":9,"cut":false,"hidden":false,"merged":[[8,1,8,23],[1,1,1,23],[0,1,0,23],[2,1,2,23],[6,17,6,23],[4,1,4,22]]}
[null,{"$f":"著作権申請!E8","v":"第49回九州アンサンブルコンテスト福岡県大会筑豊支部予選"}]
[null,"楽器運搬車輌用団体確認票"]
[null,"団 体 名"]
[]
[null,{"$f":"団体データ!K15","v":0}]
[]
[null,null,null,null,null,null,null,null,null,null,null,null,null,null,null,null,null,"吹奏楽部"]
[]
[null,"筑豊吹奏楽連盟"]